Organisation Code,Organisation Label,Effective Date,Organisational Unit,Service Division Label,Category Internal Name,Purpose,Detailed Expenditure Code,Payment Date,Transaction Number,Irrecoverable VAT Amount,Amount,Capital Or Revenue,Beneficiary Name,Procurement Card
Http://opendatacommunities.org/id/metropolitan-district-council/leeds,Leeds City Council,31/03/2022,Strategic Landlord,HRA Housing Leeds,Capital,OTHER COSTS,7,10/03/2022,2203-00001 ,0.00,100.00,C,REDACTED PERSONAL DATA,No
Http://opendatacommunities.org/id/metropolitan-district-council/leeds,Leeds City Council,31/03/2022,Adults and Health,Services For Older People Under 65 P/Dis,Agency Payments,Sheltered Accommodation,569,02/03/2022,2203-00002,0.00,5400.00,R,A & V TRANSITIONAL HOMES,No
Http://opendatacommunities.org/id/metropolitan-district-council/leeds,Leeds City Council,31/03/2022,Adults and Health,Services For Older People Under 65 P/Dis,Agency Payments,Sheltered Accommodation,569,30/03/2022,2203-00003,0.00,5400.00,R,A & V TRANSITIONAL HOMES,No
Http://opendatacommunities.org/id/metropolitan-district-council/leeds,Leeds City Council,31/03/2022,Communities Housing and Environment,Elections Licensing and Registration,External Income,Admissions Booking Fees & Ticket Sales,933,01/03/2022,2203-00004,0.00,260.00,R,REDACTED PERSONAL DATA,No
Http://opendatacommunities.org/id/metropolitan-district-council/leeds,Leeds City Council,31/03/2022,Children and Families,Social Care,Agency Payments,Services Rendered By Other Organisations,511,02/03/2022,2203-00005,0.00,321.60,R,REDACTED PERSONAL DATA,No
Http://opendatacommunities.org/id/metropolitan-district-council/leeds,Leeds City Council,31/03/2022,Children and Families,Social Care,Agency Payments,Services Rendered By Other Organisations,511,04/03/2022,2203-00006,0.00,267.60,R,REDACTED PERSONAL DATA,No
Http://opendatacommunities.org/id/metropolitan-district-council/leeds,Leeds City Council,31/03/2022,Strategic Landlord,HRA Housing Leeds,Capital,OTHER COSTS,7,10/03/2022,2203-00007,0.00,100.00,C,REDACTED PERSONAL DATA,No
Http://opendatacommunities.org/id/metropolitan-district-council/leeds,Leeds City Council,31/03/2022,City Development,Libraries Arts & Heritage,Supplies and Services,Operational Furniture And Equipment,203,02/03/2022,2203-00008,0.00,294.37,R,A C Entertainment Technologies Ltd,No
Http://opendatacommunities.org/id/metropolitan-district-council/leeds,Leeds City Council,31/03/2022,City Development,Libraries Arts & Heritage,External Income,Other cultural & rec fees & charges,924,24/03/2022,2203-00009,0.00,237.00,R,A C Entertainment Technologies Ltd,No
Http://opendatacommunities.org/id/metropolitan-district-council/leeds,Leeds City Council,31/03/2022,Children and Families,Social Care,Agency Payments,Services Rendered By Other Organisations,511,04/03/2022,2203-00010,0.00,267.60,R,REDACTED PERSONAL DATA,No
Http://opendatacommunities.org/id/metropolitan-district-council/leeds,Leeds City Council,31/03/2022,Strategic Landlord,HRA Housing Leeds,Capital,CONSTRUCTION,3,11/03/2022,2203-00011,0.00,150000.00,C,A Connolly Limited,No
Http://opendatacommunities.org/id/metropolitan-district-council/leeds,Leeds City Council,31/03/2022,Strategic Landlord,HRA Housing Leeds,Capital,CONSTRUCTION,3,11/03/2022,2203-00012,0.00,73383.77,C,A Connolly Limited,No
Http://opendatacommunities.org/id/metropolitan-district-council/leeds,Leeds City Council,31/03/2022,Strategic Landlord,HRA Housing Leeds,Capital,CONSTRUCTION,3,11/03/2022,2203-00013,0.00,73179.85,C,A Connolly Limited,No
Http://opendatacommunities.org/id/metropolitan-district-council/leeds,Leeds City Council,31/03/2022,Resources,Leeds Building Services,Supplies and Services,Other Hired And Contracted Services,265,18/03/2022,2203-00014,0.00,3925.00,R,A Coole Electrical Ltd,No
Http://opendatacommunities.org/id/metropolitan-district-council/leeds,Leeds City Council,31/03/2022,Resources,Leeds Building Services,Supplies and Services,Other Hired And Contracted Services,265,18/03/2022,2203-00015,0.00,3677.00,R,A Coole Electrical Ltd,No
Http://opendatacommunities.org/id/metropolitan-district-council/leeds,Leeds City Council,31/03/2022,Resources,Leeds Building Services,Supplies and Services,Other Hired And Contracted Services,265,30/03/2022,2203-00016,0.00,7939.00,R,A Coole Electrical Ltd,No
Http://opendatacommunities.org/id/metropolitan-district-council/leeds,Leeds City Council,31/03/2022,Communities Housing and Environment,Customer Access,Supplies and Services,Bought In Professional Services,277,02/03/2022,2203-00017,0.00,18.00,R,A D Dumitru,No
Http://opendatacommunities.org/id/metropolitan-district-council/leeds,Leeds City Council,31/03/2022,Communities Housing and Environment,Customer Access,Supplies and Services,Bought In Professional Services,277,02/03/2022,2203-00018,0.00,18.00,R,A D Dumitru,No
Http://opendatacommunities.org/id/metropolitan-district-council/leeds,Leeds City Council,31/03/2022,Communities Housing and Environment,Customer Access,Supplies and Services,Bought In Professional Services,277,02/03/2022,2203-00019,0.00,9.00,R,A D Dumitru,No
Http://opendatacommunities.org/id/metropolitan-district-council/leeds,Leeds City Council,31/03/2022,Communities Housing and Environment,Customer Access,Supplies and Services,Bought In Professional Services,277,10/03/2022,2203-00020,0.00,9.00,R,A D Dumitru,No
Http://opendatacommunities.org/id/metropolitan-district-council/leeds,Leeds City Council,31/03/2022,Communities Housing and Environment,Customer Access,Supplies and Services,Bought In Professional Services,277,10/03/2022,2203-00021,0.00,18.00,R,A D Dumitru,No
Http://opendatacommunities.org/id/metropolitan-district-council/leeds,Leeds City Council,31/03/2022,Communities Housing and Environment,Customer Access,Supplies and Services,Bought In Professional Services,277,10/03/2022,2203-00022,0.00,9.00,R,A D Dumitru,No
Http://opendatacommunities.org/id/metropolitan-district-council/leeds,Leeds City Council,31/03/2022,Communities Housing and Environment,Customer Access,Supplies and Services,Bought In Professional Services,277,10/03/2022,2203-00023,0.00,36.00,R,A D Dumitru,No
Http://opendatacommunities.org/id/metropolitan-district-council/leeds,Leeds City Council,31/03/2022,Communities Housing and Environment,Customer Access,Supplies and Services,Bought In Professional Services,277,16/03/2022,2203-00024,0.00,36.00,R,A D Dumitru,No
Http://opendatacommunities.org/id/metropolitan-district-council/leeds,Leeds City Council,31/03/2022,Communities Housing and Environment,Customer Access,Supplies and Services,Bought In Professional Services,277,16/03/2022,2203-00025,0.00,18.00,R,A D Dumitru,No
Http://opendatacommunities.org/id/metropolitan-district-council/leeds,Leeds City Council,31/03/2022,Communities Housing and Environment,Customer Access,Supplies and Services,Bought In Professional Services,277,16/03/2022,2203-00026,0.00,9.00,R,A D Dumitru,No
Http://opendatacommunities.org/id/metropolitan-district-council/leeds,Leeds City Council,31/03/2022,Communities Housing and Environment,Customer Access,Supplies and Services,Bought In Professional Services,277,16/03/2022,2203-00027,0.00,9.00,R,A D Dumitru,No
Http://opendatacommunities.org/id/metropolitan-district-council/leeds,Leeds City Council,31/03/2022,Communities Housing and Environment,Customer Access,Supplies and Services,Bought In Professional Services,277,16/03/2022,2203-00028,0.00,18.00,R,A D Dumitru,No
Http://opendatacommunities.org/id/metropolitan-district-council/leeds,Leeds City Council,31/03/2022,Communities Housing and Environment,Customer Access,Supplies and Services,Bought In Professional Services,277,16/03/2022,2203-00029,0.00,18.00,R,A D Dumitru,No
Http://opendatacommunities.org/id/metropolitan-district-council/leeds,Leeds City Council,31/03/2022,Communities Housing and Environment,Customer Access,Supplies and Services,Bought In Professional Services,277,23/03/2022,2203-00030,0.00,18.00,R,A D Dumitru,No
Http://opendatacommunities.org/id/metropolitan-district-council/leeds,Leeds City Council,31/03/2022,Communities Housing and Environment,Customer Access,Supplies and Services,Bought In Professional Services,277,23/03/2022,2203-00031,0.00,36.00,R,A D Dumitru,No
Http://opendatacommunities.org/id/metropolitan-district-council/leeds,Leeds City Council,31/03/2022,Communities Housing and Environment,Customer Access,Supplies and Services,Bought In Professional Services,277,23/03/2022,2203-00032,0.00,18.00,R,A D Dumitru,No
Http://opendatacommunities.org/id/metropolitan-district-council/leeds,Leeds City Council,31/03/2022,Communities Housing and Environment,Customer Access,Supplies and Services,Bought In Professional Services,277,23/03/2022,2203-00033,0.00,18.00,R,A D Dumitru,No
Http://opendatacommunities.org/id/metropolitan-district-council/leeds,Leeds City Council,31/03/2022,Communities Housing and Environment,Customer Access,Supplies and Services,Bought In Professional Services,277,23/03/2022,2203-00034,0.00,28.50,R,A D Dumitru,No
Http://opendatacommunities.org/id/metropolitan-district-council/leeds,Leeds City Council,31/03/2022,Communities Housing and Environment,Customer Access,Supplies and Services,Bought In Professional Services,277,23/03/2022,2203-00035,0.00,9.00,R,A D Dumitru,No
Http://opendatacommunities.org/id/metropolitan-district-council/leeds,Leeds City Council,31/03/2022,Communities Housing and Environment,Customer Access,Supplies and Services,Bought In Professional Services,277,30/03/2022,2203-00036,0.00,27.00,R,A D Dumitru,No
Http://opendatacommunities.org/id/metropolitan-district-council/leeds,Leeds City Council,31/03/2022,Communities Housing and Environment,Customer Access,Supplies and Services,Bought In Professional Services,277,30/03/2022,2203-00037,0.00,36.00,R,A D Dumitru,No
Http://opendatacommunities.org/id/metropolitan-district-council/leeds,Leeds City Council,31/03/2022,Communities Housing and Environment,Customer Access,Supplies and Services,Bought In Professional Services,277,30/03/2022,2203-00038,0.00,40.50,R,A D Dumitru,No
Http://opendatacommunities.org/id/metropolitan-district-council/leeds,Leeds City Council,31/03/2022,Communities Housing and Environment,Customer Access,Supplies and Services,Bought In Professional Services,277,30/03/2022,2203-00039,0.00,18.00,R,A D Dumitru,No
Http://opendatacommunities.org/id/metropolitan-district-council/leeds,Leeds City Council,31/03/2022,City Development,Recreation,External Income,Sporting & Other Recreational Fees,928,16/03/2022,2203-00040,0.00,99.80,R,REDACTED PERSONAL DATA,No
Http://opendatacommunities.org/id/metropolitan-district-council/leeds,Leeds City Council,31/03/2022,Children and Families,Social Care,Agency Payments,Services Rendered By Voluntary Sector,505,02/03/2022,2203-00041,0.00,2733.60,R,REDACTED PERSONAL DATA,No
Http://opendatacommunities.org/id/metropolitan-district-council/leeds,Leeds City Council,31/03/2022,Children and Families,Social Care,Agency Payments,Services Rendered By Voluntary Sector,505,04/03/2022,2203-00042,0.00,5084.40,R,REDACTED PERSONAL DATA,No
Http://opendatacommunities.org/id/metropolitan-district-council/leeds,Leeds City Council,31/03/2022,Children and Families,Social Care,Agency Payments,Services Rendered By Voluntary Sector,505,04/03/2022,2203-00043,0.00,315.00,R,REDACTED PERSONAL DATA,No
Http://opendatacommunities.org/id/metropolitan-district-council/leeds,Leeds City Council,31/03/2022,Children and Families,Social Care,Agency Payments,Services Rendered By Other Organisations,511,04/03/2022,2203-00044,0.00,267.60,R,REDACTED PERSONAL DATA,No
Http://opendatacommunities.org/id/metropolitan-district-council/leeds,Leeds City Council,31/03/2022,Strategic Landlord,HRA Housing Leeds,Capital,OTHER COSTS,7,10/03/2022,2203-00045,0.00,100.00,C,REDACTED PERSONAL DATA,No
Http://opendatacommunities.org/id/metropolitan-district-council/leeds,Leeds City Council,31/03/2022,Strategic Landlord,HRA Housing Leeds,Capital,OTHER COSTS,7,11/03/2022,2203-00046,0.00,100.00,C,REDACTED PERSONAL DATA,No
Http://opendatacommunities.org/id/metropolitan-district-council/leeds,Leeds City Council,31/03/2022,Children and Families,Social Care,Agency Payments,Services Rendered By Other Organisations,511,04/03/2022,2203-00047,0.00,900.92,R,REDACTED PERSONAL DATA,No
Http://opendatacommunities.org/id/metropolitan-district-council/leeds,Leeds City Council,31/03/2022,Children and Families,Social Care,Agency Payments,Services Rendered By Other Organisations,511,04/03/2022,2203-00048,0.00,95.40,R,REDACTED PERSONAL DATA,No
Http://opendatacommunities.org/id/metropolitan-district-council/leeds,Leeds City Council,31/03/2022,Adults and Health,Other Generic Services,Agency Payments,Fees To Carers,563,04/03/2022,2203-00049,0.00,122.85,R,REDACTED PERSONAL DATA,No
Http://opendatacommunities.org/id/metropolitan-district-council/leeds,Leeds City Council,31/03/2022,Adults and Health,Other Generic Services,Agency Payments,Fees To Carers,563,18/03/2022,2203-00050,0.00,424.35,R,REDACTED PERSONAL DATA,No
Http://opendatacommunities.org/id/metropolitan-district-council/leeds,Leeds City Council,31/03/2022,Adults and Health,Other Generic Services,Agency Payments,Fees To Carers,563,18/03/2022,2203-00051,0.00,50.40,R,REDACTED PERSONAL DATA,No
Http://opendatacommunities.org/id/metropolitan-district-council/leeds,Leeds City Council,31/03/2022,Strategic Landlord,HRA Housing Leeds,Capital,OTHER COSTS,7,22/03/2022,2203-00052,0.00,170.09,C,REDACTED PERSONAL DATA,No
Http://opendatacommunities.org/id/metropolitan-district-council/leeds,Leeds City Council,31/03/2022,Resources,Leeds Building Services,Supplies and Services,Operational Materials,205,10/03/2022,2203-00053,0.00,1304.00,R,A J H  Pump Supply & Repair Ltd,No
Http://opendatacommunities.org/id/metropolitan-district-council/leeds,Leeds City Council,31/03/2022,Resources,Corporate Property Management,Premises,Maintenance Of Buildings,101,11/03/2022,2203-00054,0.00,496.42,R,A J H  Pump Supply & Repair Ltd,No
Http://opendatacommunities.org/id/metropolitan-district-council/leeds,Leeds City Council,31/03/2022,Resources,Leeds Building Services,Supplies and Services,Operational Materials,205,17/03/2022,2203-00055,0.00,795.00,R,A J H  Pump Supply & Repair Ltd,No
Http://opendatacommunities.org/id/metropolitan-district-council/leeds,Leeds City Council,31/03/2022,Resources,Leeds Building Services,Supplies and Services,Operational Materials,205,18/03/2022,2203-00056,0.00,1030.00,R,A J H  Pump Supply & Repair Ltd,No
Http://opendatacommunities.org/id/metropolitan-district-council/leeds,Leeds City Council,31/03/2022,Resources,Corporate Property Management,Premises,Maintenance Of Buildings,101,23/03/2022,2203-00057,0.00,536.00,R,A J H  Pump Supply & Repair Ltd,No
Http://opendatacommunities.org/id/metropolitan-district-council/leeds,Leeds City Council,31/03/2022,Resources,Corporate Property Management,Premises,Maintenance Of Buildings,101,23/03/2022,2203-00058,0.00,250.00,R,A J H  Pump Supply & Repair Ltd,No
Http://opendatacommunities.org/id/metropolitan-district-council/leeds,Leeds City Council,31/03/2022,Resources,Leeds Building Services,Supplies and Services,Operational Materials,205,23/03/2022,2203-00059,0.00,58.00,R,A J H  Pump Supply & Repair Ltd,No
Http://opendatacommunities.org/id/metropolitan-district-council/leeds,Leeds City Council,31/03/2022,Resources,Leeds Building Services,Supplies and Services,Operational Materials,205,24/03/2022,2203-00060,0.00,1584.00,R,A J H  Pump Supply & Repair Ltd,No
Http://opendatacommunities.org/id/metropolitan-district-council/leeds,Leeds City Council,31/03/2022,Resources,Leeds Building Services,Supplies and Services,Operational Materials,205,24/03/2022,2203-00061,0.00,-387.00,R,A J H  Pump Supply & Repair Ltd,No
Http://opendatacommunities.org/id/metropolitan-district-council/leeds,Leeds City Council,31/03/2022,Resources,Leeds Building Services,Supplies and Services,Operational Materials,205,25/03/2022,2203-00062,0.00,465.00,R,A J H  Pump Supply & Repair Ltd,No
Http://opendatacommunities.org/id/metropolitan-district-council/leeds,Leeds City Council,31/03/2022,Children and Families,Social Care,Agency Payments,Services Rendered By Other Organisations,511,04/03/2022,2203-00063,0.00,1605.60,R,REDACTED PERSONAL DATA,No
Http://opendatacommunities.org/id/metropolitan-district-council/leeds,Leeds City Council,31/03/2022,Children and Families,Social Care,Agency Payments,Services Rendered By Other Organisations,511,04/03/2022,2203-00064,0.00,54.00,R,REDACTED PERSONAL DATA,No
Http://opendatacommunities.org/id/metropolitan-district-council/leeds,Leeds City Council,31/03/2022,Strategic Landlord,Housing Management,Supplies and Services,Compensation Claims,200,22/03/2022,2203-00065,0.00,100.00,R,REDACTED PERSONAL DATA,No
Http://opendatacommunities.org/id/metropolitan-district-council/leeds,Leeds City Council,31/03/2022,Communities Housing and Environment,Benefits Welfare and Poverty,Supplies and Services,Grant Related Expenditure,290,14/03/2022,2203-00066,0.00,500.00,R,REDACTED PERSONAL DATA,No
Http://opendatacommunities.org/id/metropolitan-district-council/leeds,Leeds City Council,31/03/2022,Strategic Landlord,HRA Housing Leeds,Capital,OTHER COSTS,7,31/03/2022,2203-00067,0.00,100.00,C,REDACTED PERSONAL DATA,No
Http://opendatacommunities.org/id/metropolitan-district-council/leeds,Leeds City Council,31/03/2022,Children and Families,Social Care,Employees,Agency Staff,8,02/03/2022,2203-00068,0.00,525.00,R,A Little Something Extra Ltd,No
Http://opendatacommunities.org/id/metropolitan-district-council/leeds,Leeds City Council,31/03/2022,Children and Families,Social Care,Employees,Agency Staff,8,21/03/2022,2203-00069,0.00,875.00,R,A Little Something Extra Ltd,No
Http://opendatacommunities.org/id/metropolitan-district-council/leeds,Leeds City Council,31/03/2022,Children and Families,Social Care,Employees,Agency Staff,8,31/03/2022,2203-00070,0.00,367.50,R,A Little Something Extra Ltd,No
Http://opendatacommunities.org/id/metropolitan-district-council/leeds,Leeds City Council,31/03/2022,Children and Families,Social Care,Employees,Agency Staff,8,31/03/2022,2203-00071,0.00,437.50,R,A Little Something Extra Ltd,No
Http://opendatacommunities.org/id/metropolitan-district-council/leeds,Leeds City Council,31/03/2022,Strategic Landlord,HRA Housing Leeds,Capital,OTHER COSTS,7,31/03/2022,2203-00072,0.00,100.00,C,REDACTED PERSONAL DATA,No
Http://opendatacommunities.org/id/metropolitan-district-council/leeds,Leeds City Council,31/03/2022,Children and Families,Social Care,Agency Payments,Allowances,546,03/03/2022,2203-00073,0.00,135.19,R,REDACTED PERSONAL DATA,No
Http://opendatacommunities.org/id/metropolitan-district-council/leeds,Leeds City Council,31/03/2022,Communities Housing and Environment,Customer Access,Supplies and Services,Bought In Professional Services,277,02/03/2022,2203-00074,0.00,18.00,R,A MOHAMMED,No
Http://opendatacommunities.org/id/metropolitan-district-council/leeds,Leeds City Council,31/03/2022,Communities Housing and Environment,Customer Access,Supplies and Services,Bought In Professional Services,277,02/03/2022,2203-00075,0.00,126.00,R,A MOHAMMED,No
Http://opendatacommunities.org/id/metropolitan-district-council/leeds,Leeds City Council,31/03/2022,Communities Housing and Environment,Customer Access,Supplies and Services,Bought In Professional Services,277,02/03/2022,2203-00076,0.00,18.00,R,A MOHAMMED,No
Http://opendatacommunities.org/id/metropolitan-district-council/leeds,Leeds City Council,31/03/2022,Communities Housing and Environment,Customer Access,Supplies and Services,Bought In Professional Services,277,02/03/2022,2203-00077,0.00,27.00,R,A MOHAMMED,No
Http://opendatacommunities.org/id/metropolitan-district-council/leeds,Leeds City Council,31/03/2022,Communities Housing and Environment,Customer Access,Supplies and Services,Bought In Professional Services,277,02/03/2022,2203-00078,0.00,9.00,R,A MOHAMMED,No
Http://opendatacommunities.org/id/metropolitan-district-council/leeds,Leeds City Council,31/03/2022,Communities Housing and Environment,Customer Access,Supplies and Services,Bought In Professional Services,277,02/03/2022,2203-00079,0.00,72.00,R,A MOHAMMED,No
Http://opendatacommunities.org/id/metropolitan-district-council/leeds,Leeds City Council,31/03/2022,Communities Housing and Environment,Customer Access,Supplies and Services,Bought In Professional Services,277,02/03/2022,2203-00080,0.00,18.00,R,A MOHAMMED,No
Http://opendatacommunities.org/id/metropolitan-district-council/leeds,Leeds City Council,31/03/2022,Communities Housing and Environment,Customer Access,Supplies and Services,Bought In Professional Services,277,02/03/2022,2203-00081,0.00,36.00,R,A MOHAMMED,No
Http://opendatacommunities.org/id/metropolitan-district-council/leeds,Leeds City Council,31/03/2022,Communities Housing and Environment,Customer Access,Supplies and Services,Bought In Professional Services,277,02/03/2022,2203-00082,0.00,27.00,R,A MOHAMMED,No
Http://opendatacommunities.org/id/metropolitan-district-council/leeds,Leeds City Council,31/03/2022,Communities Housing and Environment,Customer Access,Supplies and Services,Bought In Professional Services,277,02/03/2022,2203-00083,0.00,18.00,R,A MOHAMMED,No
Http://opendatacommunities.org/id/metropolitan-district-council/leeds,Leeds City Council,31/03/2022,Communities Housing and Environment,Customer Access,Supplies and Services,Bought In Professional Services,277,02/03/2022,2203-00084,0.00,18.00,R,A MOHAMMED,No
Http://opendatacommunities.org/id/metropolitan-district-council/leeds,Leeds City Council,31/03/2022,Communities Housing and Environment,Customer Access,Supplies and Services,Bought In Professional Services,277,02/03/2022,2203-00085,0.00,27.00,R,A MOHAMMED,No
Http://opendatacommunities.org/id/metropolitan-district-council/leeds,Leeds City Council,31/03/2022,Communities Housing and Environment,Customer Access,Supplies and Services,Bought In Professional Services,277,10/03/2022,2203-00086,0.00,72.00,R,A MOHAMMED,No
Http://opendatacommunities.org/id/metropolitan-district-council/leeds,Leeds City Council,31/03/2022,Communities Housing and Environment,Customer Access,Supplies and Services,Bought In Professional Services,277,10/03/2022,2203-00087,0.00,47.25,R,A MOHAMMED,No
Http://opendatacommunities.org/id/metropolitan-district-council/leeds,Leeds City Council,31/03/2022,Communities Housing and Environment,Customer Access,Supplies and Services,Bought In Professional Services,277,10/03/2022,2203-00088,0.00,22.50,R,A MOHAMMED,No
Http://opendatacommunities.org/id/metropolitan-district-council/leeds,Leeds City Council,31/03/2022,Communities Housing and Environment,Customer Access,Supplies and Services,Bought In Professional Services,277,10/03/2022,2203-00089,0.00,13.50,R,A MOHAMMED,No
Http://opendatacommunities.org/id/metropolitan-district-council/leeds,Leeds City Council,31/03/2022,Communities Housing and Environment,Customer Access,Supplies and Services,Bought In Professional Services,277,10/03/2022,2203-00090,0.00,18.00,R,A MOHAMMED,No
Http://opendatacommunities.org/id/metropolitan-district-council/leeds,Leeds City Council,31/03/2022,Communities Housing and Environment,Customer Access,Supplies and Services,Bought In Professional Services,277,10/03/2022,2203-00091,0.00,18.00,R,A MOHAMMED,No
Http://opendatacommunities.org/id/metropolitan-district-council/leeds,Leeds City Council,31/03/2022,Communities Housing and Environment,Customer Access,Supplies and Services,Bought In Professional Services,277,10/03/2022,2203-00092,0.00,18.00,R,A MOHAMMED,No
Http://opendatacommunities.org/id/metropolitan-district-council/leeds,Leeds City Council,31/03/2022,Communities Housing and Environment,Customer Access,Supplies and Services,Bought In Professional Services,277,10/03/2022,2203-00093,0.00,13.50,R,A MOHAMMED,No
Http://opendatacommunities.org/id/metropolitan-district-council/leeds,Leeds City Council,31/03/2022,Communities Housing and Environment,Customer Access,Supplies and Services,Bought In Professional Services,277,16/03/2022,2203-00094,0.00,18.00,R,A MOHAMMED,No
Http://opendatacommunities.org/id/metropolitan-district-council/leeds,Leeds City Council,31/03/2022,Communities Housing and Environment,Customer Access,Supplies and Services,Bought In Professional Services,277,16/03/2022,2203-00095,0.00,27.00,R,A MOHAMMED,No
Http://opendatacommunities.org/id/metropolitan-district-council/leeds,Leeds City Council,31/03/2022,Communities Housing and Environment,Customer Access,Supplies and Services,Bought In Professional Services,277,16/03/2022,2203-00096,0.00,18.00,R,A MOHAMMED,No
Http://opendatacommunities.org/id/metropolitan-district-council/leeds,Leeds City Council,31/03/2022,Communities Housing and Environment,Customer Access,Supplies and Services,Bought In Professional Services,277,16/03/2022,2203-00097,0.00,27.00,R,A MOHAMMED,No
Http://opendatacommunities.org/id/metropolitan-district-council/leeds,Leeds City Council,31/03/2022,Communities Housing and Environment,Customer Access,Supplies and Services,Bought In Professional Services,277,30/03/2022,2203-00098,0.00,18.00,R,A MOHAMMED,No
Http://opendatacommunities.org/id/metropolitan-district-council/leeds,Leeds City Council,31/03/2022,Communities Housing and Environment,Customer Access,Supplies and Services,Bought In Professional Services,277,30/03/2022,2203-00099,0.00,18.00,R,A MOHAMMED,No
Http://opendatacommunities.org/id/metropolitan-district-council/leeds,Leeds City Council,31/03/2022,Communities Housing and Environment,Customer Access,Supplies and Services,Bought In Professional Services,277,30/03/2022,2203-00100,0.00,81.00,R,A MOHAMMED,No
Http://opendatacommunities.org/id/metropolitan-district-council/leeds,Leeds City Council,31/03/2022,Communities Housing and Environment,Customer Access,Supplies and Services,Bought In Professional Services,277,30/03/2022,2203-00101,0.00,18.00,R,A MOHAMMED,No
Http://opendatacommunities.org/id/metropolitan-district-council/leeds,Leeds City Council,31/03/2022,Communities Housing and Environment,Customer Access,Supplies and Services,Bought In Professional Services,277,30/03/2022,2203-00102,0.00,18.00,R,A MOHAMMED,No
Http://opendatacommunities.org/id/metropolitan-district-council/leeds,Leeds City Council,31/03/2022,Communities Housing and Environment,Customer Access,Supplies and Services,Bought In Professional Services,277,30/03/2022,2203-00103,0.00,36.00,R,A MOHAMMED,No
Http://opendatacommunities.org/id/metropolitan-district-council/leeds,Leeds City Council,31/03/2022,Children and Families,Social Care,Agency Payments,Services Rendered By Other Organisations,511,02/03/2022,2203-00104,0.00,2251.20,R,REDACTED PERSONAL DATA,No
Http://opendatacommunities.org/id/metropolitan-district-council/leeds,Leeds City Council,31/03/2022,Children and Families,Social Care,Agency Payments,Services Rendered By Other Organisations,511,04/03/2022,2203-00105,0.00,1873.20,R,REDACTED PERSONAL DATA,No
Http://opendatacommunities.org/id/metropolitan-district-council/leeds,Leeds City Council,31/03/2022,Children and Families,Social Care,Agency Payments,Services Rendered By Other Organisations,511,04/03/2022,2203-00106,0.00,1485.00,R,REDACTED PERSONAL DATA,No
Http://opendatacommunities.org/id/metropolitan-district-council/leeds,Leeds City Council,31/03/2022,Children and Families,Social Care,Agency Payments,Services Rendered By Other Organisations,511,04/03/2022,2203-00107,0.00,381.60,R,REDACTED PERSONAL DATA,No
Http://opendatacommunities.org/id/metropolitan-district-council/leeds,Leeds City Council,31/03/2022,Communities Housing and Environment,Customer Access,Supplies and Services,Bought In Professional Services,277,02/03/2022,2203-00108,0.00,72.00,R,A NAMAKI,No
Http://opendatacommunities.org/id/metropolitan-district-council/leeds,Leeds City Council,31/03/2022,Communities Housing and Environment,Customer Access,Supplies and Services,Bought In Professional Services,277,02/03/2022,2203-00109,0.00,18.00,R,A NAMAKI,No
Http://opendatacommunities.org/id/metropolitan-district-council/leeds,Leeds City Council,31/03/2022,Communities Housing and Environment,Customer Access,Supplies and Services,Bought In Professional Services,277,02/03/2022,2203-00110,0.00,76.50,R,A NAMAKI,No
Http://opendatacommunities.org/id/metropolitan-district-council/leeds,Leeds City Council,31/03/2022,Communities Housing and Environment,Customer Access,Supplies and Services,Bought In Professional Services,277,02/03/2022,2203-00111,0.00,18.00,R,A NAMAKI,No
Http://opendatacommunities.org/id/metropolitan-district-council/leeds,Leeds City Council,31/03/2022,Communities Housing and Environment,Customer Access,Supplies and Services,Bought In Professional Services,277,10/03/2022,2203-00112,0.00,108.00,R,A NAMAKI,No
Http://opendatacommunities.org/id/metropolitan-district-council/leeds,Leeds City Council,31/03/2022,Communities Housing and Environment,Customer Access,Supplies and Services,Bought In Professional Services,277,10/03/2022,2203-00113,0.00,18.00,R,A NAMAKI,No
Http://opendatacommunities.org/id/metropolitan-district-council/leeds,Leeds City Council,31/03/2022,Communities Housing and Environment,Customer Access,Supplies and Services,Bought In Professional Services,277,10/03/2022,2203-00114,0.00,27.00,R,A NAMAKI,No
Http://opendatacommunities.org/id/metropolitan-district-council/leeds,Leeds City Council,31/03/2022,Communities Housing and Environment,Customer Access,Supplies and Services,Bought In Professional Services,277,10/03/2022,2203-00115,0.00,18.00,R,A NAMAKI,No
Http://opendatacommunities.org/id/metropolitan-district-council/leeds,Leeds City Council,31/03/2022,Communities Housing and Environment,Customer Access,Supplies and Services,Bought In Professional Services,277,10/03/2022,2203-00116,0.00,40.50,R,A NAMAKI,No
Http://opendatacommunities.org/id/metropolitan-district-council/leeds,Leeds City Council,31/03/2022,Communities Housing and Environment,Customer Access,Supplies and Services,Bought In Professional Services,277,10/03/2022,2203-00117,0.00,54.00,R,A NAMAKI,No
Http://opendatacommunities.org/id/metropolitan-district-council/leeds,Leeds City Council,31/03/2022,Communities Housing and Environment,Customer Access,Supplies and Services,Bought In Professional Services,277,10/03/2022,2203-00118,0.00,9.00,R,A NAMAKI,No
Http://opendatacommunities.org/id/metropolitan-district-council/leeds,Leeds City Council,31/03/2022,Communities Housing and Environment,Customer Access,Supplies and Services,Bought In Professional Services,277,10/03/2022,2203-00119,0.00,13.50,R,A NAMAKI,No
Http://opendatacommunities.org/id/metropolitan-district-council/leeds,Leeds City Council,31/03/2022,Communities Housing and Environment,Customer Access,Supplies and Services,Bought In Professional Services,277,16/03/2022,2203-00120,0.00,18.00,R,A NAMAKI,No
Http://opendatacommunities.org/id/metropolitan-district-council/leeds,Leeds City Council,31/03/2022,Communities Housing and Environment,Customer Access,Supplies and Services,Bought In Professional Services,277,16/03/2022,2203-00121,0.00,72.00,R,A NAMAKI,No
Http://opendatacommunities.org/id/metropolitan-district-council/leeds,Leeds City Council,31/03/2022,Communities Housing and Environment,Customer Access,Supplies and Services,Bought In Professional Services,277,16/03/2022,2203-00122,0.00,18.00,R,A NAMAKI,No
Http://opendatacommunities.org/id/metropolitan-district-council/leeds,Leeds City Council,31/03/2022,Communities Housing and Environment,Customer Access,Supplies and Services,Bought In Professional Services,277,16/03/2022,2203-00123,0.00,36.00,R,A NAMAKI,No
Http://opendatacommunities.org/id/metropolitan-district-council/leeds,Leeds City Council,31/03/2022,Communities Housing and Environment,Customer Access,Supplies and Services,Bought In Professional Services,277,23/03/2022,2203-00124,0.00,27.00,R,A NAMAKI,No
Http://opendatacommunities.org/id/metropolitan-district-council/leeds,Leeds City Council,31/03/2022,Communities Housing and Environment,Customer Access,Supplies and Services,Bought In Professional Services,277,23/03/2022,2203-00125,0.00,18.00,R,A NAMAKI,No
Http://opendatacommunities.org/id/metropolitan-district-council/leeds,Leeds City Council,31/03/2022,Communities Housing and Environment,Customer Access,Supplies and Services,Bought In Professional Services,277,23/03/2022,2203-00126,0.00,18.00,R,A NAMAKI,No
Http://opendatacommunities.org/id/metropolitan-district-council/leeds,Leeds City Council,31/03/2022,Communities Housing and Environment,Customer Access,Supplies and Services,Bought In Professional Services,277,23/03/2022,2203-00127,0.00,72.00,R,A NAMAKI,No
Http://opendatacommunities.org/id/metropolitan-district-council/leeds,Leeds City Council,31/03/2022,Communities Housing and Environment,Customer Access,Supplies and Services,Bought In Professional Services,277,23/03/2022,2203-00128,0.00,72.00,R,A NAMAKI,No
Http://opendatacommunities.org/id/metropolitan-district-council/leeds,Leeds City Council,31/03/2022,Communities Housing and Environment,Customer Access,Supplies and Services,Bought In Professional Services,277,23/03/2022,2203-00129,0.00,18.00,R,A NAMAKI,No
Http://opendatacommunities.org/id/metropolitan-district-council/leeds,Leeds City Council,31/03/2022,Communities Housing and Environment,Customer Access,Supplies and Services,Bought In Professional Services,277,23/03/2022,2203-00130,0.00,18.00,R,A NAMAKI,No
Http://opendatacommunities.org/id/metropolitan-district-council/leeds,Leeds City Council,31/03/2022,Communities Housing and Environment,Customer Access,Supplies and Services,Bought In Professional Services,277,30/03/2022,2203-00131,0.00,18.00,R,A NAMAKI,No
Http://opendatacommunities.org/id/metropolitan-district-council/leeds,Leeds City Council,31/03/2022,Communities Housing and Environment,Customer Access,Supplies and Services,Bought In Professional Services,277,30/03/2022,2203-00132,0.00,18.00,R,A NAMAKI,No
Http://opendatacommunities.org/id/metropolitan-district-council/leeds,Leeds City Council,31/03/2022,Communities Housing and Environment,Customer Access,Supplies and Services,Bought In Professional Services,277,30/03/2022,2203-00133,0.00,27.00,R,A NAMAKI,No
Http://opendatacommunities.org/id/metropolitan-district-council/leeds,Leeds City Council,31/03/2022,Communities Housing and Environment,Customer Access,Supplies and Services,Bought In Professional Services,277,30/03/2022,2203-00134,0.00,49.50,R,A NAMAKI,No
Http://opendatacommunities.org/id/metropolitan-district-council/leeds,Leeds City Council,31/03/2022,Children and Families,Social Care,Agency Payments,Services Rendered By Other Organisations,511,04/03/2022,2203-00135,0.00,535.20,R,REDACTED PERSONAL DATA,No
Http://opendatacommunities.org/id/metropolitan-district-council/leeds,Leeds City Council,31/03/2022,City Development,Libraries Arts & Heritage,Supplies and Services,Bought In Professional Services,277,03/03/2022,2203-00136,0.00,1000.00,R,A P Wood,No
Http://opendatacommunities.org/id/metropolitan-district-council/leeds,Leeds City Council,31/03/2022,City Development,Libraries Arts & Heritage,Supplies and Services,Non-Recurring Grants,227,16/03/2022,2203-00137,0.00,1500.00,R,A Quiet Word Ltd,No
Http://opendatacommunities.org/id/metropolitan-district-council/leeds,Leeds City Council,31/03/2022,City Development,Libraries Arts & Heritage,Supplies and Services,Non-Recurring Grants,227,30/03/2022,2203-00138,0.00,1500.00,R,A Quiet Word Ltd,No
Http://opendatacommunities.org/id/metropolitan-district-council/leeds,Leeds City Council,31/03/2022,Communities Housing and Environment,Parks and Countryside,Supplies and Services,Operational Furniture And Equipment,203,31/03/2022,2203-00139,0.00,239.75,R,A R Twigg & Son Limited,No
Http://opendatacommunities.org/id/metropolitan-district-council/leeds,Leeds City Council,31/03/2022,Adults and Health,Social Services Support Services,Employees,Training & Development,70,11/03/2022,2203-00140,0.00,13.00,R,REDACTED PERSONAL DATA,No
Http://opendatacommunities.org/id/metropolitan-district-council/leeds,Leeds City Council,31/03/2022,Resources,Commercial Services,Supplies and Services,Other Hired And Contracted Services,265,30/03/2022,2203-00141,0.00,88.00,R,REDACTED PERSONAL DATA,No
Http://opendatacommunities.org/id/metropolitan-district-council/leeds,Leeds City Council,31/03/2022,Children and Families,Social Care,Agency Payments,Services Rendered By Other Organisations,511,04/03/2022,2203-00142,0.00,802.80,R,REDACTED PERSONAL DATA,No
Http://opendatacommunities.org/id/metropolitan-district-council/leeds,Leeds City Council,31/03/2022,Resources,Shared Services,Supplies and Services,Other Hired And Contracted Services,265,04/03/2022,2203-00143,0.00,110.00,R,A Star Couriers Ltd,No
Http://opendatacommunities.org/id/metropolitan-district-council/leeds,Leeds City Council,31/03/2022,Resources,Shared Services,Supplies and Services,Other Hired And Contracted Services,265,30/03/2022,2203-00144,0.00,35.00,R,A Star Couriers Ltd,No
Http://opendatacommunities.org/id/metropolitan-district-council/leeds,Leeds City Council,31/03/2022,Children and Families,Social Care,Agency Payments,Placement Support,550,04/03/2022,2203-00145,0.00,750.00,R,A Strevett-Smith,No
Http://opendatacommunities.org/id/metropolitan-district-council/leeds,Leeds City Council,31/03/2022,Children and Families,Social Care,Agency Payments,Placement Support,550,04/03/2022,2203-00146,0.00,750.00,R,A Strevett-Smith,No
Http://opendatacommunities.org/id/metropolitan-district-council/leeds,Leeds City Council,31/03/2022,Children and Families,Social Care,Agency Payments,Placement Support,550,31/03/2022,2203-00147,0.00,1633.50,R,A Strevett-Smith,No
Http://opendatacommunities.org/id/metropolitan-district-council/leeds,Leeds City Council,31/03/2022,Children and Families,Social Care,Agency Payments,Placement Support,550,31/03/2022,2203-00148,0.00,742.50,R,A Strevett-Smith,No
Http://opendatacommunities.org/id/metropolitan-district-council/leeds,Leeds City Council,31/03/2022,Children and Families,Social Care,Agency Payments,Placement Support,550,31/03/2022,2203-00149,0.00,742.50,R,A Strevett-Smith,No
Http://opendatacommunities.org/id/metropolitan-district-council/leeds,Leeds City Council,31/03/2022,Communities Housing and Environment,Waste Management,Employees,Training & Development,70,30/03/2022,2203-00150,0.00,207.30,R,A T Nerac Ltd,No
Http://opendatacommunities.org/id/metropolitan-district-council/leeds,Leeds City Council,31/03/2022,Children and Families,Social Care,Agency Payments,Independent Fostering Agencies,509,11/03/2022,2203-00151,0.00,1440.00,R,A Taxis,No
Http://opendatacommunities.org/id/metropolitan-district-council/leeds,Leeds City Council,31/03/2022,City Development,Economic Development,Supplies and Services,Grant Related Expenditure,290,28/03/2022,2203-00152,0.00,2068.00,R,A Tulu,No
Http://opendatacommunities.org/id/metropolitan-district-council/leeds,Leeds City Council,31/03/2022,Children and Families,Social Care,Agency Payments,Services Rendered By Other Organisations,511,04/03/2022,2203-00153,0.00,535.20,R,REDACTED PERSONAL DATA,No
Http://opendatacommunities.org/id/metropolitan-district-council/leeds,Leeds City Council,31/03/2022,Children and Families,Social Care,Agency Payments,Services Rendered By Other Organisations,511,04/03/2022,2203-00154,0.00,234.00,R,REDACTED PERSONAL DATA,No
Http://opendatacommunities.org/id/metropolitan-district-council/leeds,Leeds City Council,31/03/2022,Strategic Landlord,Housing Management,Supplies and Services,Compensation Claims,200,01/03/2022,2203-00155,0.00,50.00,R,REDACTED PERSONAL DATA,No
Http://opendatacommunities.org/id/metropolitan-district-council/leeds,Leeds City Council,31/03/2022,Children and Families,Social Care,Agency Payments,Services Rendered By Other Organisations,511,04/03/2022,2203-00156,0.00,267.60,R,REDACTED PERSONAL DATA,No
Http://opendatacommunities.org/id/metropolitan-district-council/leeds,Leeds City Council,31/03/2022,Children and Families,Social Care,Agency Payments,Services Rendered By Other Organisations,511,04/03/2022,2203-00157,0.00,63.00,R,REDACTED PERSONAL DATA,No
Http://opendatacommunities.org/id/metropolitan-district-council/leeds,Leeds City Council,31/03/2022,Children and Families,Social Care,Agency Payments,General External Residential Placements,507,10/03/2022,2203-00158,0.00,60.30,R,A Wilderness Way Ltd,No
Http://opendatacommunities.org/id/metropolitan-district-council/leeds,Leeds City Council,31/03/2022,Children and Families,Social Care,Agency Payments,General External Residential Placements,507,30/03/2022,2203-00159,0.00,27200.04,R,A Wilderness Way Ltd,No
Http://opendatacommunities.org/id/metropolitan-district-council/leeds,Leeds City Council,31/03/2022,Children and Families,Social Care,Agency Payments,General External Residential Placements,507,30/03/2022,2203-00160,0.00,60.30,R,A Wilderness Way Ltd,No
Http://opendatacommunities.org/id/metropolitan-district-council/leeds,Leeds City Council,31/03/2022,Communities Housing and Environment,Waste Management,Capital,FURNITURE AND EQUIPMENT,5,04/03/2022,2203-00161,0.00,1074.70,C,A&C Weber Uk Ltd,No
Http://opendatacommunities.org/id/metropolitan-district-council/leeds,Leeds City Council,31/03/2022,Communities Housing and Environment,Waste Management,Supplies and Services,Office Consumables,210,04/03/2022,2203-00162,0.00,295.00,R,A&C Weber Uk Ltd,No
Http://opendatacommunities.org/id/metropolitan-district-council/leeds,Leeds City Council,31/03/2022,Communities Housing and Environment,Waste Management,Capital,FURNITURE AND EQUIPMENT,5,09/03/2022,2203-00163,0.00,9134.96,C,A&C Weber Uk Ltd,No
Http://opendatacommunities.org/id/metropolitan-district-council/leeds,Leeds City Council,31/03/2022,Communities Housing and Environment,Waste Management,Capital,FURNITURE AND EQUIPMENT,5,28/03/2022,2203-00164,0.00,0.00,C,A&C Weber Uk Ltd,No
Http://opendatacommunities.org/id/metropolitan-district-council/leeds,Leeds City Council,31/03/2022,Communities Housing and Environment,Waste Management,Capital,FURNITURE AND EQUIPMENT,5,28/03/2022,2203-00165,0.00,0.00,C,A&C Weber Uk Ltd,No
Http://opendatacommunities.org/id/metropolitan-district-council/leeds,Leeds City Council,31/03/2022,Communities Housing and Environment,Waste Management,Capital,FURNITURE AND EQUIPMENT,5,28/03/2022,2203-00166,0.00,13048.00,C,A&C Weber Uk Ltd,No
Http://opendatacommunities.org/id/metropolitan-district-council/leeds,Leeds City Council,31/03/2022,Resources,Leeds Building Services,Supplies and Services,Other Hired And Contracted Services,265,04/03/2022,2203-00167,0.00,91.00,R,A1 STAIR LIFT SERVICES,No
Http://opendatacommunities.org/id/metropolitan-district-council/leeds,Leeds City Council,31/03/2022,Resources,Leeds Building Services,Supplies and Services,Other Hired And Contracted Services,265,04/03/2022,2203-00168,0.00,325.50,R,A1 STAIR LIFT SERVICES,No
Http://opendatacommunities.org/id/metropolitan-district-council/leeds,Leeds City Council,31/03/2022,Resources,Leeds Building Services,Supplies and Services,Other Hired And Contracted Services,265,04/03/2022,2203-00169,0.00,799.50,R,A1 STAIR LIFT SERVICES,No
Http://opendatacommunities.org/id/metropolitan-district-council/leeds,Leeds City Council,31/03/2022,Resources,Leeds Building Services,Supplies and Services,Other Hired And Contracted Services,265,09/03/2022,2203-00170,0.00,610.50,R,A1 STAIR LIFT SERVICES,No
Http://opendatacommunities.org/id/metropolitan-district-council/leeds,Leeds City Council,31/03/2022,Resources,Leeds Building Services,Supplies and Services,Other Hired And Contracted Services,265,09/03/2022,2203-00171,0.00,506.50,R,A1 STAIR LIFT SERVICES,No
Http://opendatacommunities.org/id/metropolitan-district-council/leeds,Leeds City Council,31/03/2022,Resources,Leeds Building Services,Supplies and Services,Operational Materials,205,18/03/2022,2203-00172,0.00,1195.00,R,A1 STAIR LIFT SERVICES,No
Http://opendatacommunities.org/id/metropolitan-district-council/leeds,Leeds City Council,31/03/2022,Resources,Leeds Building Services,Supplies and Services,Other Hired And Contracted Services,265,30/03/2022,2203-00173,0.00,1454.50,R,A1 STAIR LIFT SERVICES,No
Http://opendatacommunities.org/id/metropolitan-district-council/leeds,Leeds City Council,31/03/2022,Communities Housing and Environment,Parks and Countryside,Supplies and Services,Food & Drink,231,23/02/2022,2203-00174,0.00,76.00,R,Aagrah Foods,Yes
Http://opendatacommunities.org/id/metropolitan-district-council/leeds,Leeds City Council,31/03/2022,Communities Housing and Environment,Parks and Countryside,Supplies and Services,Resaleable Materials,204,23/02/2022,2203-00175,0.00,136.84,R,Aagrah Foods,Yes
Http://opendatacommunities.org/id/metropolitan-district-council/leeds,Leeds City Council,31/03/2022,Communities Housing and Environment,Communities,Supplies and Services,Non-Recurring Grants,227,30/03/2022,2203-00176,0.00,4984.12,R,Aalfy Ltd,No
Http://opendatacommunities.org/id/metropolitan-district-council/leeds,Leeds City Council,31/03/2022,Communities Housing and Environment,Benefits Welfare and Poverty,Supplies and Services,Grant Related Expenditure,298,23/03/2022,2203-00177,0.00,500.00,R,REDACTED PERSONAL DATA,No
Http://opendatacommunities.org/id/metropolitan-district-council/leeds,Leeds City Council,31/03/2022,Adults and Health,Services For Older People - 65 And Over,Agency Payments,Residential Care Dementia,571,02/03/2022,2203-00178,0.00,1245.20,R,Aaron Court Care Home,No
Http://opendatacommunities.org/id/metropolitan-district-council/leeds,Leeds City Council,31/03/2022,Adults and Health,Services For Older People - 65 And Over,Agency Payments,Residential Care Dementia,571,30/03/2022,2203-00179,0.00,1245.20,R,Aaron Court Care Home,No
Http://opendatacommunities.org/id/metropolitan-district-council/leeds,Leeds City Council as Accountable Body,31/03/2022,Social Services Pooled Budgets,Leeds Community Equip Store Pooled Budgt,Supplies and Services,Other Equipment,203,11/03/2022,2203-00180,0.00,1129.00,R,AAT (GB) LTD,No
Http://opendatacommunities.org/id/metropolitan-district-council/leeds,Leeds City Council as Accountable Body,31/03/2022,Social Services Pooled Budgets,Jcs For People With Learning Disabilitie,Agency Payments,Residential,580,30/03/2022,2203-00181,0.00,47717.96,R,Abbey Care And Education,No
Http://opendatacommunities.org/id/metropolitan-district-council/leeds,Leeds City Council,31/03/2022,Resources,Human Resources,Employees,Occupational Health,85,25/03/2022,2203-00182,0.00,30.00,R,Abbey Grange Medical Practice,No
Http://opendatacommunities.org/id/metropolitan-district-council/leeds,Leeds City Council,31/03/2022,Communities Housing and Environment,Benefits Welfare and Poverty,Supplies and Services,Grant Related Expenditure,298,07/03/2022,2203-00183,0.00,500.00,R,REDACTED PERSONAL DATA,No
Http://opendatacommunities.org/id/metropolitan-district-council/leeds,Leeds City Council,31/03/2022,Adults and Health,Public Health,Premises,Hire of meeting rooms,143,01/03/2022,2203-00184,0.00,380.00,R,Abbey Multi Academy Trust,No
Http://opendatacommunities.org/id/metropolitan-district-council/leeds,Leeds City Council,31/03/2022,Children and Families,Social Care,Agency Payments,Services Rendered By Other Organisations,511,04/03/2022,2203-00185,0.00,46455.36,R,Abbey Multi Academy Trust,No
Http://opendatacommunities.org/id/metropolitan-district-council/leeds,Leeds City Council,31/03/2022,Children and Families,Social Care,Agency Payments,Services Rendered By Other Organisations,511,04/03/2022,2203-00186,0.00,1107.60,R,Abbey Multi Academy Trust,No
Http://opendatacommunities.org/id/metropolitan-district-council/leeds,Leeds City Council,31/03/2022,Children and Families,Social Care,Agency Payments,Services Rendered By Other Organisations,511,04/03/2022,2203-00187,0.00,190.80,R,Abbey Multi Academy Trust,No
Http://opendatacommunities.org/id/metropolitan-district-council/leeds,Leeds City Council,31/03/2022,Children and Families,Learning Places,Capital,FURNITURE AND EQUIPMENT,5,11/03/2022,2203-00188,0.00,24925.02,C,Abbey Multi Academy Trust,No
Http://opendatacommunities.org/id/metropolitan-district-council/leeds,Leeds City Council,31/03/2022,Children and Families,Learning,Supplies and Services,Food & Drink,231,14/03/2022,2203-00189,0.00,43.20,R,Abbey Multi Academy Trust,No
Http://opendatacommunities.org/id/metropolitan-district-council/leeds,Leeds City Council,31/03/2022,Communities Housing and Environment,Benefits Welfare and Poverty,Supplies and Services,Grant Related Expenditure,290,10/03/2022,2203-00190,0.00,500.00,R,REDACTED PERSONAL DATA,No
Http://opendatacommunities.org/id/metropolitan-district-council/leeds,Leeds City Council,31/03/2022,Communities Housing and Environment,Benefits Welfare and Poverty,Supplies and Services,Grant Related Expenditure,298,04/03/2022,2203-00191,0.00,500.00,R,REDACTED PERSONAL DATA,No
Http://opendatacommunities.org/id/metropolitan-district-council/leeds,Leeds City Council,31/03/2022,Children and Families,Social Care,Agency Payments,Services Rendered By Other Organisations,511,02/03/2022,2203-00192,0.00,1447.20,R,REDACTED PERSONAL DATA,No
Http://opendatacommunities.org/id/metropolitan-district-council/leeds,Leeds City Council,31/03/2022,Children and Families,Social Care,Agency Payments,Services Rendered By Other Organisations,511,04/03/2022,2203-00193,0.00,481.68,R,REDACTED PERSONAL DATA,No
Http://opendatacommunities.org/id/metropolitan-district-council/leeds,Leeds City Council,31/03/2022,Children and Families,Social Care,Agency Payments,Services Rendered By Other Organisations,511,04/03/2022,2203-00194,0.00,70.20,R,REDACTED PERSONAL DATA,No
Http://opendatacommunities.org/id/metropolitan-district-council/leeds,Leeds City Council,31/03/2022,Communities Housing and Environment,Parks and Countryside,Supplies and Services,Other Hired And Contracted Services,265,10/03/2022,2203-00195,0.00,4100.00,R,Abbotts Memorials,No
Http://opendatacommunities.org/id/metropolitan-district-council/leeds,Leeds City Council,31/03/2022,Communities Housing and Environment,Parks and Countryside,Supplies and Services,Other Hired And Contracted Services,265,18/03/2022,2203-00196,0.00,1650.00,R,Abbotts Memorials,No
Http://opendatacommunities.org/id/metropolitan-district-council/leeds,Leeds City Council,31/03/2022,Communities Housing and Environment,Parks and Countryside,Supplies and Services,Other Hired And Contracted Services,265,18/03/2022,2203-00197,0.00,3300.00,R,Abbotts Memorials,No
Http://opendatacommunities.org/id/metropolitan-district-council/leeds,Leeds City Council,31/03/2022,Communities Housing and Environment,Parks and Countryside,Supplies and Services,Other Hired And Contracted Services,265,18/03/2022,2203-00198,0.00,6700.00,R,Abbotts Memorials,No
Http://opendatacommunities.org/id/metropolitan-district-council/leeds,Leeds City Council,31/03/2022,Communities Housing and Environment,Parks and Countryside,Supplies and Services,Other Hired And Contracted Services,265,25/03/2022,2203-00199,0.00,2750.00,R,Abbotts Memorials,No
Http://opendatacommunities.org/id/metropolitan-district-council/leeds,Leeds City Council,31/03/2022,Children and Families,Social Care,Agency Payments,General External Residential Placements,507,09/03/2022,2203-00200,0.00,14400.12,R,ABC Care and Educationd LTD,No
Http://opendatacommunities.org/id/metropolitan-district-council/leeds,Leeds City Council,31/03/2022,Children and Families,Social Care,Agency Payments,Services Rendered By Other Organisations,511,02/03/2022,2203-00201,0.00,7477.20,R,ABC NURSERY AT LUFC,No
Http://opendatacommunities.org/id/metropolitan-district-council/leeds,Leeds City Council,31/03/2022,Children and Families,Social Care,Agency Payments,Services Rendered By Other Organisations,511,04/03/2022,2203-00202,0.00,11105.40,R,ABC NURSERY AT LUFC,No
Http://opendatacommunities.org/id/metropolitan-district-council/leeds,Leeds City Council,31/03/2022,Children and Families,Social Care,Agency Payments,Services Rendered By Other Organisations,511,04/03/2022,2203-00203,0.00,2848.50,R,ABC NURSERY AT LUFC,No
Http://opendatacommunities.org/id/metropolitan-district-council/leeds,Leeds City Council,31/03/2022,Children and Families,Social Care,Agency Payments,Services Rendered By Other Organisations,511,04/03/2022,2203-00204,0.00,429.30,R,ABC NURSERY AT LUFC,No
Http://opendatacommunities.org/id/metropolitan-district-council/leeds,Leeds City Council,31/03/2022,Children and Families,Social Care,Agency Payments,Services Rendered By Other Organisations,511,02/03/2022,2203-00205,0.00,1608.00,R,Abc@D'S Childcare,No
Http://opendatacommunities.org/id/metropolitan-district-council/leeds,Leeds City Council,31/03/2022,Children and Families,Social Care,Agency Payments,Services Rendered By Other Organisations,511,04/03/2022,2203-00206,0.00,10168.80,R,Abc@D'S Childcare,No
Http://opendatacommunities.org/id/metropolitan-district-council/leeds,Leeds City Council,31/03/2022,Children and Families,Social Care,Agency Payments,Services Rendered By Other Organisations,511,04/03/2022,2203-00207,0.00,1854.00,R,Abc@D'S Childcare,No
Http://opendatacommunities.org/id/metropolitan-district-council/leeds,Leeds City Council,31/03/2022,Children and Families,Learning,Supplies and Services,Other Hired And Contracted Services,265,11/03/2022,2203-00208,0.00,320.76,R,Abc@D'S Childcare,No
Http://opendatacommunities.org/id/metropolitan-district-council/leeds,Leeds City Council,31/03/2022,City Development,Economic Development,Supplies and Services,Grant Related Expenditure,290,15/03/2022,2203-00209,0.00,1623.00,R,Abdalla Denay And Abdelrahim Ali,No
Http://opendatacommunities.org/id/metropolitan-district-council/leeds,Leeds City Council,31/03/2022,Communities Housing and Environment,Benefits Welfare and Poverty,Supplies and Services,Grant Related Expenditure,298,07/03/2022,2203-00210,0.00,500.00,R,REDACTED PERSONAL DATA,No
Http://opendatacommunities.org/id/metropolitan-district-council/leeds,Leeds City Council,31/03/2022,Communities Housing and Environment,Customer Access,Supplies and Services,Bought In Professional Services,277,23/03/2022,2203-00211,0.00,22.50,R,Abdiqafar Abdullahi,No
Http://opendatacommunities.org/id/metropolitan-district-council/leeds,Leeds City Council,31/03/2022,Communities Housing and Environment,Customer Access,Supplies and Services,Bought In Professional Services,277,30/03/2022,2203-00212,0.00,18.00,R,Abdiqafar Abdullahi,No
Http://opendatacommunities.org/id/metropolitan-district-council/leeds,Leeds City Council,31/03/2022,Communities Housing and Environment,Benefits Welfare and Poverty,Supplies and Services,Grant Related Expenditure,298,17/03/2022,2203-00213,0.00,500.00,R,REDACTED PERSONAL DATA,No
Http://opendatacommunities.org/id/metropolitan-district-council/leeds,Leeds City Council,31/03/2022,Communities Housing and Environment,Elections Licensing and Registration,External Income,Admissions Booking Fees & Ticket Sales,933,18/03/2022,2203-00214,0.00,260.00,R,REDACTED PERSONAL DATA,No
Http://opendatacommunities.org/id/metropolitan-district-council/leeds,Leeds City Council,31/03/2022,Communities Housing and Environment,Car Parking Services,External Income,Penalties Fines & Car Parking Charges,934,24/03/2022,2203-00215,0.00,30.00,R,REDACTED PERSONAL DATA,No
Http://opendatacommunities.org/id/metropolitan-district-council/leeds,Leeds City Council,31/03/2022,Communities Housing and Environment,Elections Licensing and Registration,External Income,Admissions Booking Fees & Ticket Sales,933,18/03/2022,2203-00216,0.00,260.00,R,REDACTED PERSONAL DATA,No
Http://opendatacommunities.org/id/metropolitan-district-council/leeds,Leeds City Council,31/03/2022,Communities Housing and Environment,Elections Licensing and Registration,External Income,Admissions Booking Fees & Ticket Sales,933,01/03/2022,2203-00217,0.00,130.00,R,REDACTED PERSONAL DATA,No
Http://opendatacommunities.org/id/metropolitan-district-council/leeds,Leeds City Council,31/03/2022,Communities Housing and Environment,Customer Access,Supplies and Services,Bought In Professional Services,277,02/03/2022,2203-00218,0.00,18.00,R,Abdulahad Denha,No
Http://opendatacommunities.org/id/metropolitan-district-council/leeds,Leeds City Council,31/03/2022,Communities Housing and Environment,Customer Access,Supplies and Services,Bought In Professional Services,277,10/03/2022,2203-00219,0.00,18.00,R,Abdulahad Denha,No
Http://opendatacommunities.org/id/metropolitan-district-council/leeds,Leeds City Council,31/03/2022,Communities Housing and Environment,Customer Access,Supplies and Services,Bought In Professional Services,277,10/03/2022,2203-00220,0.00,27.00,R,Abdulahad Denha,No
Http://opendatacommunities.org/id/metropolitan-district-council/leeds,Leeds City Council,31/03/2022,Communities Housing and Environment,Customer Access,Supplies and Services,Bought In Professional Services,277,10/03/2022,2203-00221,0.00,18.00,R,Abdulahad Denha,No
Http://opendatacommunities.org/id/metropolitan-district-council/leeds,Leeds City Council,31/03/2022,Communities Housing and Environment,Customer Access,Supplies and Services,Bought In Professional Services,277,16/03/2022,2203-00222,0.00,18.00,R,Abdulahad Denha,No
Http://opendatacommunities.org/id/metropolitan-district-council/leeds,Leeds City Council,31/03/2022,Communities Housing and Environment,Customer Access,Supplies and Services,Bought In Professional Services,277,16/03/2022,2203-00223,0.00,18.00,R,Abdulahad Denha,No
Http://opendatacommunities.org/id/metropolitan-district-council/leeds,Leeds City Council,31/03/2022,Communities Housing and Environment,Customer Access,Supplies and Services,Bought In Professional Services,277,16/03/2022,2203-00224,0.00,18.00,R,Abdulahad Denha,No
Http://opendatacommunities.org/id/metropolitan-district-council/leeds,Leeds City Council,31/03/2022,Communities Housing and Environment,Customer Access,Supplies and Services,Bought In Professional Services,277,23/03/2022,2203-00225,0.00,9.00,R,Abdulahad Denha,No
Http://opendatacommunities.org/id/metropolitan-district-council/leeds,Leeds City Council,31/03/2022,Communities Housing and Environment,Customer Access,Supplies and Services,Bought In Professional Services,277,23/03/2022,2203-00226,0.00,18.00,R,Abdulahad Denha,No
Http://opendatacommunities.org/id/metropolitan-district-council/leeds,Leeds City Council,31/03/2022,Communities Housing and Environment,Benefits Welfare and Poverty,Supplies and Services,Grant Related Expenditure,290,01/03/2022,2203-00227,0.00,30.00,R,REDACTED PERSONAL DATA,No
Http://opendatacommunities.org/id/metropolitan-district-council/leeds,Leeds City Council,31/03/2022,Communities Housing and Environment,Customer Access,Supplies and Services,Bought In Professional Services,277,02/03/2022,2203-00228,0.00,27.00,R,Abdulrahim Dastyar,No
Http://opendatacommunities.org/id/metropolitan-district-council/leeds,Leeds City Council,31/03/2022,Communities Housing and Environment,Customer Access,Supplies and Services,Bought In Professional Services,277,02/03/2022,2203-00229,0.00,13.50,R,Abdulrahim Dastyar,No
Http://opendatacommunities.org/id/metropolitan-district-council/leeds,Leeds City Council,31/03/2022,Communities Housing and Environment,Customer Access,Supplies and Services,Bought In Professional Services,277,02/03/2022,2203-00230,0.00,13.50,R,Abdulrahim Dastyar,No
Http://opendatacommunities.org/id/metropolitan-district-council/leeds,Leeds City Council,31/03/2022,Communities Housing and Environment,Customer Access,Supplies and Services,Bought In Professional Services,277,02/03/2022,2203-00231,0.00,18.00,R,Abdulrahim Dastyar,No
Http://opendatacommunities.org/id/metropolitan-district-council/leeds,Leeds City Council,31/03/2022,Communities Housing and Environment,Customer Access,Supplies and Services,Bought In Professional Services,277,10/03/2022,2203-00232,0.00,27.00,R,Abdulrahim Dastyar,No
Http://opendatacommunities.org/id/metropolitan-district-council/leeds,Leeds City Council,31/03/2022,Communities Housing and Environment,Customer Access,Supplies and Services,Bought In Professional Services,277,10/03/2022,2203-00233,0.00,9.00,R,Abdulrahim Dastyar,No
Http://opendatacommunities.org/id/metropolitan-district-council/leeds,Leeds City Council,31/03/2022,Communities Housing and Environment,Customer Access,Supplies and Services,Bought In Professional Services,277,16/03/2022,2203-00234,0.00,18.00,R,Abdulrahim Dastyar,No
Http://opendatacommunities.org/id/metropolitan-district-council/leeds,Leeds City Council,31/03/2022,Communities Housing and Environment,Customer Access,Supplies and Services,Bought In Professional Services,277,23/03/2022,2203-00235,0.00,19.50,R,Abdulrahim Dastyar,No
Http://opendatacommunities.org/id/metropolitan-district-council/leeds,Leeds City Council,31/03/2022,Communities Housing and Environment,Customer Access,Supplies and Services,Bought In Professional Services,277,23/03/2022,2203-00236,0.00,18.00,R,Abdulrahim Dastyar,No
Http://opendatacommunities.org/id/metropolitan-district-council/leeds,Leeds City Council,31/03/2022,Communities Housing and Environment,Customer Access,Supplies and Services,Bought In Professional Services,277,23/03/2022,2203-00237,0.00,18.00,R,Abdulrahim Dastyar,No
Http://opendatacommunities.org/id/metropolitan-district-council/leeds,Leeds City Council,31/03/2022,Communities Housing and Environment,Customer Access,Supplies and Services,Bought In Professional Services,277,30/03/2022,2203-00238,0.00,27.00,R,Abdulrahim Dastyar,No
Http://opendatacommunities.org/id/metropolitan-district-council/leeds,Leeds City Council,31/03/2022,Communities Housing and Environment,Customer Access,Supplies and Services,Bought In Professional Services,277,30/03/2022,2203-00239,0.00,13.50,R,Abdulrahim Dastyar,No
Http://opendatacommunities.org/id/metropolitan-district-council/leeds,Leeds City Council,31/03/2022,Communities Housing and Environment,Customer Access,Supplies and Services,Bought In Professional Services,277,30/03/2022,2203-00240,0.00,18.00,R,Abdulrahim Dastyar,No
Http://opendatacommunities.org/id/metropolitan-district-council/leeds,Leeds City Council,31/03/2022,Communities Housing and Environment,Customer Access,Supplies and Services,Bought In Professional Services,277,30/03/2022,2203-00241,0.00,18.00,R,Abdulrahim Dastyar,No
Http://opendatacommunities.org/id/metropolitan-district-council/leeds,Leeds City Council,31/03/2022,Children and Families,Social Care,Appropriations,16 Plus Top Up Allowance,625,04/03/2022,2203-00242,0.00,30.00,R,REDACTED PERSONAL DATA,No
Http://opendatacommunities.org/id/metropolitan-district-council/leeds,Leeds City Council,31/03/2022,Children and Families,Social Care,Appropriations,16 Plus Top Up Allowance,625,11/03/2022,2203-00243,0.00,30.00,R,REDACTED PERSONAL DATA,No
Http://opendatacommunities.org/id/metropolitan-district-council/leeds,Leeds City Council,31/03/2022,Children and Families,Social Care,Appropriations,16 Plus Top Up Allowance,625,18/03/2022,2203-00244,0.00,30.00,R,REDACTED PERSONAL DATA,No
Http://opendatacommunities.org/id/metropolitan-district-council/leeds,Leeds City Council,31/03/2022,Adults and Health,Services For Older People - 65 And Over,Agency Payments,Nursing Home,570,02/03/2022,2203-00245,0.00,27503.76,R,Aberford Hall,No
Http://opendatacommunities.org/id/metropolitan-district-council/leeds,Leeds City Council,31/03/2022,Adults and Health,Services For Older People - 65 And Over,Agency Payments,Nursing Home,570,16/03/2022,2203-00246,0.00,5486.98,R,Aberford Hall,No
Http://opendatacommunities.org/id/metropolitan-district-council/leeds,Leeds City Council,31/03/2022,Adults and Health,Services For Older People - 65 And Over,Agency Payments,Nursing Home,570,30/03/2022,2203-00247,0.00,30233.46,R,Aberford Hall,No
Http://opendatacommunities.org/id/metropolitan-district-council/leeds,Leeds City Council,31/03/2022,Strategic Accounts,Miscellaneous,Supplies and Services,Non-Recurring Grants,227,02/03/2022,2203-00248,0.00,300.00,R,Aberford Village Hall,No
Http://opendatacommunities.org/id/metropolitan-district-council/leeds,Leeds City Council,31/03/2022,Resources,Leeds Building Services,Supplies and Services,Operational Materials,205,18/03/2022,2203-00249,0.00,724.30,R,ABI GARAGE DOORS LTD,No
Http://opendatacommunities.org/id/metropolitan-district-council/leeds,Leeds City Council,31/03/2022,Resources,Leeds Building Services,Supplies and Services,Operational Materials,205,18/03/2022,2203-00250,0.00,1086.45,R,ABI GARAGE DOORS LTD,No
Http://opendatacommunities.org/id/metropolitan-district-council/leeds,Leeds City Council,31/03/2022,Resources,Leeds Building Services,Supplies and Services,Operational Materials,205,18/03/2022,2203-00251,0.00,404.65,R,ABI GARAGE DOORS LTD,No
Http://opendatacommunities.org/id/metropolitan-district-council/leeds,Leeds City Council,31/03/2022,Resources,Leeds Building Services,Supplies and Services,Operational Materials,205,18/03/2022,2203-00252,0.00,404.65,R,ABI GARAGE DOORS LTD,No
Http://opendatacommunities.org/id/metropolitan-district-council/leeds,Leeds City Council,31/03/2022,Resources,Leeds Building Services,Supplies and Services,Operational Materials,205,18/03/2022,2203-00253,0.00,404.65,R,ABI GARAGE DOORS LTD,No
Http://opendatacommunities.org/id/metropolitan-district-council/leeds,Leeds City Council,31/03/2022,Resources,Leeds Building Services,Supplies and Services,Operational Materials,205,18/03/2022,2203-00254,0.00,404.65,R,ABI GARAGE DOORS LTD,No
Http://opendatacommunities.org/id/metropolitan-district-council/leeds,Leeds City Council,31/03/2022,Resources,Leeds Building Services,Supplies and Services,Operational Materials,205,18/03/2022,2203-00255,0.00,404.65,R,ABI GARAGE DOORS LTD,No
Http://opendatacommunities.org/id/metropolitan-district-council/leeds,Leeds City Council,31/03/2022,Resources,Leeds Building Services,Supplies and Services,Operational Materials,205,18/03/2022,2203-00256,0.00,362.15,R,ABI GARAGE DOORS LTD,No
Http://opendatacommunities.org/id/metropolitan-district-council/leeds,Leeds City Council,31/03/2022,Resources,Leeds Building Services,Supplies and Services,Operational Materials,205,18/03/2022,2203-00257,0.00,363.22,R,ABI GARAGE DOORS LTD,No
Http://opendatacommunities.org/id/metropolitan-district-council/leeds,Leeds City Council,31/03/2022,Resources,Leeds Building Services,Supplies and Services,Operational Materials,205,18/03/2022,2203-00258,0.00,363.22,R,ABI GARAGE DOORS LTD,No
Http://opendatacommunities.org/id/metropolitan-district-council/leeds,Leeds City Council,31/03/2022,Resources,Leeds Building Services,Supplies and Services,Operational Materials,205,25/03/2022,2203-00259,0.00,16.00,R,ABI GARAGE DOORS LTD,No
Http://opendatacommunities.org/id/metropolitan-district-council/leeds,Leeds City Council,31/03/2022,Communities Housing and Environment,Car Parking Services,External Income,Penalties Fines & Car Parking Charges,934,24/03/2022,2203-00260,0.00,35.00,R,REDACTED PERSONAL DATA,No
Http://opendatacommunities.org/id/metropolitan-district-council/leeds,Leeds City Council,31/03/2022,Children and Families,Social Care,External Income,Nursery Fees Income,926,04/03/2022,2203-00261,0.00,73.00,R,REDACTED PERSONAL DATA,No
Http://opendatacommunities.org/id/metropolitan-district-council/leeds,Leeds City Council,31/03/2022,Communities Housing and Environment,Customer Access,Supplies and Services,Bought In Professional Services,277,02/03/2022,2203-00262,0.00,9.00,R,Abida Begum,No
Http://opendatacommunities.org/id/metropolitan-district-council/leeds,Leeds City Council,31/03/2022,Communities Housing and Environment,Customer Access,Supplies and Services,Bought In Professional Services,277,23/03/2022,2203-00263,0.00,9.00,R,Abida Begum,No
Http://opendatacommunities.org/id/metropolitan-district-council/leeds,Leeds City Council,31/03/2022,Communities Housing and Environment,Customer Access,Supplies and Services,Bought In Professional Services,277,23/03/2022,2203-00264,0.00,48.00,R,Abida Begum,No
Http://opendatacommunities.org/id/metropolitan-district-council/leeds,Leeds City Council,31/03/2022,Communities Housing and Environment,Customer Access,Supplies and Services,Bought In Professional Services,277,23/03/2022,2203-00265,0.00,12.60,R,Abida Begum,No
Http://opendatacommunities.org/id/metropolitan-district-council/leeds,Leeds City Council,31/03/2022,Communities Housing and Environment,Customer Access,Supplies and Services,Bought In Professional Services,277,23/03/2022,2203-00266,0.00,9.00,R,Abida Begum,No
Http://opendatacommunities.org/id/metropolitan-district-council/leeds,Leeds City Council,31/03/2022,Resources,Legal Services,Internal Recharges,Legal Disbursements,411,16/03/2022,2203-00267,0.00,300.00,R,Abigail Cheetham,No
Http://opendatacommunities.org/id/metropolitan-district-council/leeds,Leeds City Council,31/03/2022,Strategic Landlord,Property and Contracts,Internal Recharges,Legal Disbursements,411,25/03/2022,2203-00268,0.00,1250.00,R,Abigail Cheetham,No
Http://opendatacommunities.org/id/metropolitan-district-council/leeds,Leeds City Council,31/03/2022,Communities Housing and Environment,Waste Management,Supplies and Services,Publication And Promotion,267,14/03/2022,2203-00269,0.00,30.00,R,REDACTED PERSONAL DATA,No
Http://opendatacommunities.org/id/metropolitan-district-council/leeds,Leeds City Council,31/03/2022,Children and Families,Social Care,Agency Payments,Placement Support,550,02/03/2022,2203-00270,0.00,24.96,R,REDACTED PERSONAL DATA,No
Http://opendatacommunities.org/id/metropolitan-district-council/leeds,Leeds City Council,31/03/2022,Children and Families,Social Care,Agency Payments,Contact,548,21/03/2022,2203-00271,0.00,8.49,R,REDACTED PERSONAL DATA,No
Http://opendatacommunities.org/id/metropolitan-district-council/leeds,Leeds City Council,31/03/2022,Children and Families,Social Care,Agency Payments,Contact,548,21/03/2022,2203-00272,0.00,8.48,R,REDACTED PERSONAL DATA,No
Http://opendatacommunities.org/id/metropolitan-district-council/leeds,Leeds City Council,31/03/2022,Children and Families,Social Care,Appropriations,Leaving Care Grants,635,21/03/2022,2203-00273,0.00,159.00,R,REDACTED PERSONAL DATA,No
Http://opendatacommunities.org/id/metropolitan-district-council/leeds,Leeds City Council,31/03/2022,Children and Families,Social Care,Agency Payments,Contact,548,21/03/2022,2203-00274,0.00,8.18,R,REDACTED PERSONAL DATA,No
Http://opendatacommunities.org/id/metropolitan-district-council/leeds,Leeds City Council,31/03/2022,Children and Families,Social Care,Agency Payments,Placement Support,550,21/03/2022,2203-00275,0.00,5.90,R,REDACTED PERSONAL DATA,No
Http://opendatacommunities.org/id/metropolitan-district-council/leeds,Leeds City Council,31/03/2022,Children and Families,Social Care,Agency Payments, Direct Work,549,22/03/2022,2203-00276,0.00,7.59,R,REDACTED PERSONAL DATA,No
Http://opendatacommunities.org/id/metropolitan-district-council/leeds,Leeds City Council,31/03/2022,Children and Families,Social Care,Appropriations,Leaving Care Allowances,634,22/03/2022,2203-00277,0.00,4.59,R,REDACTED PERSONAL DATA,No
Http://opendatacommunities.org/id/metropolitan-district-council/leeds,Leeds City Council,31/03/2022,Children and Families,Social Care,Agency Payments,Contact,548,23/03/2022,2203-00278,0.00,7.95,R,REDACTED PERSONAL DATA,No
Http://opendatacommunities.org/id/metropolitan-district-council/leeds,Leeds City Council,31/03/2022,City Development,Economic Development,Supplies and Services,Grant Related Expenditure,298,10/03/2022,2203-00279,0.00,6000.00,R,Abraham Moon & Sons,No
Http://opendatacommunities.org/id/metropolitan-district-council/leeds,Leeds City Council,31/03/2022,Children and Families,Social Care,Supplies and Services,General Amenity For Clients/Residents,285,25/02/2022,2203-00280,0.00,153.49,R,Absolute Home Textiles,Yes
Http://opendatacommunities.org/id/metropolitan-district-council/leeds,Leeds City Council,31/03/2022,Children and Families,Social Care,Agency Payments,Services Rendered By Other Organisations,511,02/03/2022,2203-00281,0.00,11336.40,R,Academies Enterprise Trust (AET),No
Http://opendatacommunities.org/id/metropolitan-district-council/leeds,Leeds City Council,31/03/2022,Children and Families,Social Care,Agency Payments,Services Rendered By Other Organisations,511,04/03/2022,2203-00282,0.00,38133.00,R,Academies Enterprise Trust (AET),No
Http://opendatacommunities.org/id/metropolitan-district-council/leeds,Leeds City Council,31/03/2022,Children and Families,Social Care,Agency Payments,Services Rendered By Other Organisations,511,04/03/2022,2203-00283,0.00,4590.00,R,Academies Enterprise Trust (AET),No
Http://opendatacommunities.org/id/metropolitan-district-council/leeds,Leeds City Council,31/03/2022,Children and Families,Social Care,Agency Payments,Services Rendered By Other Organisations,511,04/03/2022,2203-00284,0.00,286.20,R,Academies Enterprise Trust (AET),No
Http://opendatacommunities.org/id/metropolitan-district-council/leeds,Leeds City Council,31/03/2022,Children and Families,Learning,Supplies and Services,Other Hired And Contracted Services,265,31/03/2022,2203-00285,0.00,3821.38,R,Academies Enterprise Trust (AET),No
Http://opendatacommunities.org/id/metropolitan-district-council/leeds,Leeds City Council,31/03/2022,Adults and Health,Social Services Support Services,Employees,Training & Development,70,10/03/2022,2203-00286,0.00,3115.00,R,ACAS,No
Http://opendatacommunities.org/id/metropolitan-district-council/leeds,Leeds City Council,31/03/2022,Communities Housing and Environment,Car Parking Services,External Income,Penalties Fines & Car Parking Charges,934,02/03/2022,2203-00287,0.00,60.00,R,REDACTED PERSONAL DATA,No
Http://opendatacommunities.org/id/metropolitan-district-council/leeds,Leeds City Council,31/03/2022,Communities Housing and Environment,Waste Management,Transport,Repair & Maintenance of  Plant,342,10/02/2022,2203-00288,0.00,114.50,R,Access Locksmiths,Yes
Http://opendatacommunities.org/id/metropolitan-district-council/leeds,Leeds City Council,31/03/2022,Resources,Leeds Building Services,Supplies and Services,Operational Materials,205,02/03/2022,2203-00289,0.00,157.22,R,ACCESS LOCKSMITHS (LEEDS) LIMITED,No
Http://opendatacommunities.org/id/metropolitan-district-council/leeds,Leeds City Council,31/03/2022,Resources,Leeds Building Services,Supplies and Services,Operational Materials,205,02/03/2022,2203-00290,0.00,77.82,R,ACCESS LOCKSMITHS (LEEDS) LIMITED,No
Http://opendatacommunities.org/id/metropolitan-district-council/leeds,Leeds City Council,31/03/2022,Strategic Landlord,Property and Contracts,Premises,General Maintenance,104,08/03/2022,2203-00291,0.00,38.50,R,ACCESS LOCKSMITHS (LEEDS) LIMITED,No
Http://opendatacommunities.org/id/metropolitan-district-council/leeds,Leeds City Council,31/03/2022,Strategic Landlord,Housing Management,Supplies and Services,Resaleable Materials,204,08/03/2022,2203-00292,0.00,124.00,R,ACCESS LOCKSMITHS (LEEDS) LIMITED,No
Http://opendatacommunities.org/id/metropolitan-district-council/leeds,Leeds City Council,31/03/2022,Strategic Landlord,Property and Contracts,Premises,General Maintenance,104,11/03/2022,2203-00293,0.00,139.58,R,ACCESS LOCKSMITHS (LEEDS) LIMITED,No
Http://opendatacommunities.org/id/metropolitan-district-council/leeds,Leeds City Council,31/03/2022,Resources,Commercial Services,Supplies and Services,Operational Furniture And Equipment,203,11/03/2022,2203-00294,0.00,21.00,R,ACCESS LOCKSMITHS (LEEDS) LIMITED,No
Http://opendatacommunities.org/id/metropolitan-district-council/leeds,Leeds City Council,31/03/2022,Strategic Landlord,HRA Housing Leeds,Capital,OTHER COSTS,7,11/03/2022,2203-00295,0.00,752.38,C,ACCESS LOCKSMITHS (LEEDS) LIMITED,No
Http://opendatacommunities.org/id/metropolitan-district-council/leeds,Leeds City Council,31/03/2022,Strategic Landlord,HRA Housing Leeds,Capital,OTHER COSTS,7,11/03/2022,2203-00296,0.00,44.00,C,ACCESS LOCKSMITHS (LEEDS) LIMITED,No
Http://opendatacommunities.org/id/metropolitan-district-council/leeds,Leeds City Council,31/03/2022,Strategic Landlord,Housing Management,Supplies and Services,Resaleable Materials,204,11/03/2022,2203-00297,0.00,62.00,R,ACCESS LOCKSMITHS (LEEDS) LIMITED,No
Http://opendatacommunities.org/id/metropolitan-district-council/leeds,Leeds City Council,31/03/2022,Strategic Landlord,Housing Management,Supplies and Services,Resaleable Materials,204,11/03/2022,2203-00298,0.00,62.00,R,ACCESS LOCKSMITHS (LEEDS) LIMITED,No
Http://opendatacommunities.org/id/metropolitan-district-council/leeds,Leeds City Council,31/03/2022,Strategic Landlord,Housing Management,Supplies and Services,Resaleable Materials,204,11/03/2022,2203-00299,0.00,226.48,R,ACCESS LOCKSMITHS (LEEDS) LIMITED,No
Http://opendatacommunities.org/id/metropolitan-district-council/leeds,Leeds City Council,31/03/2022,Strategic Landlord,Housing Management,Premises,General Maintenance,104,11/03/2022,2203-00300,0.00,253.00,R,ACCESS LOCKSMITHS (LEEDS) LIMITED,No
Http://opendatacommunities.org/id/metropolitan-district-council/leeds,Leeds City Council,31/03/2022,Strategic Landlord,HRA Housing Leeds,Capital,OTHER COSTS,7,11/03/2022,2203-00301,0.00,111.99,C,ACCESS LOCKSMITHS (LEEDS) LIMITED,No
Http://opendatacommunities.org/id/metropolitan-district-council/leeds,Leeds City Council,31/03/2022,Resources,Leeds Building Services,Supplies and Services,Operational Materials,205,11/03/2022,2203-00302,0.00,484.60,R,ACCESS LOCKSMITHS (LEEDS) LIMITED,No
Http://opendatacommunities.org/id/metropolitan-district-council/leeds,Leeds City Council,31/03/2022,Communities Housing and Environment,Waste Management,Supplies and Services,Operational Furniture And Equipment,203,16/03/2022,2203-00303,0.00,572.50,R,ACCESS LOCKSMITHS (LEEDS) LIMITED,No
Http://opendatacommunities.org/id/metropolitan-district-council/leeds,Leeds City Council,31/03/2022,Strategic Landlord,Property and Contracts,Premises,General Maintenance,104,18/03/2022,2203-00304,0.00,200.35,R,ACCESS LOCKSMITHS (LEEDS) LIMITED,No
Http://opendatacommunities.org/id/metropolitan-district-council/leeds,Leeds City Council,31/03/2022,Strategic Landlord,Housing Management,Supplies and Services,Resaleable Materials,204,25/03/2022,2203-00305,0.00,148.50,R,ACCESS LOCKSMITHS (LEEDS) LIMITED,No
Http://opendatacommunities.org/id/metropolitan-district-council/leeds,Leeds City Council,31/03/2022,Strategic Landlord,HRA Housing Leeds,Capital,OTHER COSTS,7,25/03/2022,2203-00306,0.00,90.08,C,ACCESS LOCKSMITHS (LEEDS) LIMITED,No
Http://opendatacommunities.org/id/metropolitan-district-council/leeds,Leeds City Council,31/03/2022,Strategic Landlord,HRA Housing Leeds,Capital,OTHER COSTS,7,25/03/2022,2203-00307,0.00,752.38,C,ACCESS LOCKSMITHS (LEEDS) LIMITED,No
Http://opendatacommunities.org/id/metropolitan-district-council/leeds,Leeds City Council,31/03/2022,Strategic Landlord,Housing Management,Supplies and Services,Operational Furniture And Equipment,203,25/03/2022,2203-00308,0.00,99.20,R,ACCESS LOCKSMITHS (LEEDS) LIMITED,No
Http://opendatacommunities.org/id/metropolitan-district-council/leeds,Leeds City Council,31/03/2022,Strategic Landlord,Housing Management,Supplies and Services,Resaleable Materials,204,25/03/2022,2203-00309,0.00,24.80,R,ACCESS LOCKSMITHS (LEEDS) LIMITED,No
Http://opendatacommunities.org/id/metropolitan-district-council/leeds,Leeds City Council,31/03/2022,Strategic Landlord,Housing Management,Supplies and Services,Resaleable Materials,204,25/03/2022,2203-00310,0.00,372.00,R,ACCESS LOCKSMITHS (LEEDS) LIMITED,No
Http://opendatacommunities.org/id/metropolitan-district-council/leeds,Leeds City Council,31/03/2022,Strategic Landlord,Property and Contracts,Premises,Maintenance Of Buildings,101,25/03/2022,2203-00311,0.00,306.51,R,ACCESS LOCKSMITHS (LEEDS) LIMITED,No
Http://opendatacommunities.org/id/metropolitan-district-council/leeds,Leeds City Council,31/03/2022,Strategic Landlord,Property and Contracts,Premises,General Maintenance,104,30/03/2022,2203-00312,0.00,174.76,R,ACCESS LOCKSMITHS (LEEDS) LIMITED,No
Http://opendatacommunities.org/id/metropolitan-district-council/leeds,Leeds City Council,31/03/2022,Resources,Leeds Building Services,Supplies and Services,Operational Materials,205,30/03/2022,2203-00313,0.00,9.00,R,ACCESS LOCKSMITHS (LEEDS) LIMITED,No
Http://opendatacommunities.org/id/metropolitan-district-council/leeds,Leeds City Council,31/03/2022,Resources,Leeds Building Services,Supplies and Services,Operational Materials,205,30/03/2022,2203-00314,0.00,117.00,R,ACCESS LOCKSMITHS (LEEDS) LIMITED,No
Http://opendatacommunities.org/id/metropolitan-district-council/leeds,Leeds City Council,31/03/2022,Resources,Leeds Building Services,Supplies and Services,Operational Materials,205,30/03/2022,2203-00315,0.00,59.33,R,ACCESS LOCKSMITHS (LEEDS) LIMITED,No
Http://opendatacommunities.org/id/metropolitan-district-council/leeds,Leeds City Council,31/03/2022,Resources,Leeds Building Services,Supplies and Services,Operational Materials,205,30/03/2022,2203-00316,0.00,405.92,R,ACCESS LOCKSMITHS (LEEDS) LIMITED,No
Http://opendatacommunities.org/id/metropolitan-district-council/leeds,Leeds City Council,31/03/2022,Resources,Leeds Building Services,Supplies and Services,Operational Materials,205,30/03/2022,2203-00317,0.00,118.17,R,ACCESS LOCKSMITHS (LEEDS) LIMITED,No
Http://opendatacommunities.org/id/metropolitan-district-council/leeds,Leeds City Council,31/03/2022,Resources,Leeds Building Services,Supplies and Services,Operational Materials,205,30/03/2022,2203-00318,0.00,89.30,R,ACCESS LOCKSMITHS (LEEDS) LIMITED,No
Http://opendatacommunities.org/id/metropolitan-district-council/leeds,Leeds City Council,31/03/2022,Adults and Health,Social Services Support Services,Supplies and Services,Computer Software & Equipment,214,18/03/2022,2203-00319,0.00,1455.00,R,Access Uk Ltd,No
Http://opendatacommunities.org/id/metropolitan-district-council/leeds,Leeds City Council,31/03/2022,Adults and Health,Social Services Support Services,Supplies and Services,Computer Software & Equipment,214,21/03/2022,2203-00320,0.00,1455.00,R,Access Uk Ltd,No
Http://opendatacommunities.org/id/metropolitan-district-council/leeds,Leeds City Council,31/03/2022,Adults and Health,Social Services Support Services,Supplies and Services,Computer Software & Equipment,214,21/03/2022,2203-00321,0.00,1455.00,R,Access Uk Ltd,No
Http://opendatacommunities.org/id/metropolitan-district-council/leeds,Leeds City Council,31/03/2022,Adults and Health,Social Services Support Services,Supplies and Services,Computer Software & Equipment,214,31/03/2022,2203-00322,0.00,1455.00,R,Access Uk Ltd,No
Http://opendatacommunities.org/id/metropolitan-district-council/leeds,Leeds City Council,31/03/2022,City Development,Libraries Arts & Heritage,Supplies and Services,Other Hired And Contracted Services,265,17/03/2022,2203-00323,0.00,3250.00,R,Accessible By Design Ltd,No
Http://opendatacommunities.org/id/metropolitan-district-council/leeds,Leeds City Council,31/03/2022,Insurance,Insurance,Supplies and Services,Insurance Claims,248,10/03/2022,2203-00324,0.00,3723.00,R,Accident Exchange Ltd,No
Http://opendatacommunities.org/id/metropolitan-district-council/leeds,Leeds City Council,31/03/2022,Insurance,Insurance,Supplies and Services,Insurance Claims,248,14/03/2022,2203-00325,0.00,3468.11,R,Accidnet Assist,No
Http://opendatacommunities.org/id/metropolitan-district-council/leeds,Leeds City Council,31/03/2022,Communities Housing and Environment,Parks and Countryside,Supplies and Services,Operational Materials,205,15/02/2022,2203-00326,0.00,160.90,R,Accles & Shelvoke Limi,Yes
Http://opendatacommunities.org/id/metropolitan-district-council/leeds,Leeds City Council,31/03/2022,City Development,Markets & City Centre Management,Premises,General Maintenance,104,02/02/2022,2203-00327,0.00,124.25,R,Accu.Co.Uk,Yes
Http://opendatacommunities.org/id/metropolitan-district-council/leeds,Leeds City Council,31/03/2022,City Development,Recreation,Transport,External Hire -Occasional,304,02/03/2022,2203-00328,0.00,116.20,R,ACE CONTAINER SERVICES LIMITED,No
Http://opendatacommunities.org/id/metropolitan-district-council/leeds,Leeds City Council,31/03/2022,City Development,Recreation,Transport,External Hire -Occasional,304,31/03/2022,2203-00329,0.00,128.65,R,ACE CONTAINER SERVICES LIMITED,No
Http://opendatacommunities.org/id/metropolitan-district-council/leeds,Leeds City Council,31/03/2022,City Development,Economic Development,Supplies and Services,Grant Related Expenditure,290,11/03/2022,2203-00330,0.00,5482.00,R,Ace Leaflet Distribution & Print Ltd,No
Http://opendatacommunities.org/id/metropolitan-district-council/leeds,Leeds City Council,31/03/2022,Communities Housing and Environment,Parks and Countryside,Supplies and Services,Operational Materials,205,02/02/2022,2203-00331,0.00,246.95,R,Acme Facilities Group,Yes
Http://opendatacommunities.org/id/metropolitan-district-council/leeds,Leeds City Council,31/03/2022,Communities Housing and Environment,Parks and Countryside,Supplies and Services,Operational Materials,205,15/02/2022,2203-00332,0.00,8.19,R,Acme Facilities Group,Yes
Http://opendatacommunities.org/id/metropolitan-district-council/leeds,Leeds City Council,31/03/2022,City Development,Recreation,Supplies and Services,Other Hired And Contracted Services,265,24/03/2022,2203-00333,0.00,241.50,R,Acoo Review Ltd,No
Http://opendatacommunities.org/id/metropolitan-district-council/leeds,Leeds City Council,31/03/2022,Children and Families,Social Care,Agency Payments,General External Residential Placements,507,04/03/2022,2203-00334,0.00,17249.29,R,Acorn Care & Education Ltd (Sales),No
Http://opendatacommunities.org/id/metropolitan-district-council/leeds,Leeds City Council,31/03/2022,Children and Families,Social Care,Agency Payments,General External Residential Placements,507,04/03/2022,2203-00335,0.00,24117.42,R,Acorn Care & Education Ltd (Sales),No
Http://opendatacommunities.org/id/metropolitan-district-council/leeds,Leeds City Council,31/03/2022,Children and Families,Social Care,Agency Payments,General External Residential Placements,507,04/03/2022,2203-00336,0.00,15580.00,R,Acorn Care & Education Ltd (Sales),No
Http://opendatacommunities.org/id/metropolitan-district-council/leeds,Leeds City Council,31/03/2022,Children and Families,Social Care,Agency Payments,General External Residential Placements,507,11/03/2022,2203-00337,0.00,529.74,R,Acorn Care & Education Ltd (Sales),No
Http://opendatacommunities.org/id/metropolitan-district-council/leeds,Leeds City Council,31/03/2022,Children and Families,Social Care,Agency Payments,General External Residential Placements,507,11/03/2022,2203-00338,0.00,627.05,R,Acorn Care & Education Ltd (Sales),No
Http://opendatacommunities.org/id/metropolitan-district-council/leeds,Leeds City Council,31/03/2022,Children and Families,Social Care,Agency Payments,General External Residential Placements,507,11/03/2022,2203-00339,0.00,478.47,R,Acorn Care & Education Ltd (Sales),No
Http://opendatacommunities.org/id/metropolitan-district-council/leeds,Leeds City Council,31/03/2022,Children and Families,Social Care,Agency Payments,General External Residential Placements,507,11/03/2022,2203-00340,0.00,566.37,R,Acorn Care & Education Ltd (Sales),No
Http://opendatacommunities.org/id/metropolitan-district-council/leeds,Leeds City Council,31/03/2022,Resources,Commercial Services,Transport,Private Hire,360,25/03/2022,2203-00341,0.00,1200.00,R,Acorn Care & Education Ltd (Sales),No
Http://opendatacommunities.org/id/metropolitan-district-council/leeds,Leeds City Council,31/03/2022,Children and Families,Social Care,Agency Payments,Section 17,551,15/03/2022,2203-00342,0.00,2500.00,R,Acorn Housing,No
Http://opendatacommunities.org/id/metropolitan-district-council/leeds,Leeds City Council,31/03/2022,Adults and Health,Other Adult Services,Agency Payments,Residential - Drugs & Alcohol,583,30/03/2022,2203-00343,0.00,2200.00,R,Acorn Recovery Projects,No
Http://opendatacommunities.org/id/metropolitan-district-council/leeds,Leeds City Council,31/03/2022,Children and Families,Social Care,Agency Payments,Services Rendered By Other Organisations,511,04/03/2022,2203-00344,0.00,5875.30,R,ACORNS NURSERY,No
Http://opendatacommunities.org/id/metropolitan-district-council/leeds,Leeds City Council,31/03/2022,Children and Families,Social Care,Agency Payments,Services Rendered By Other Organisations,511,04/03/2022,2203-00345,0.00,108.00,R,ACORNS NURSERY,No
Http://opendatacommunities.org/id/metropolitan-district-council/leeds,Leeds City Council,31/03/2022,Adults and Health,Services For Older People - 65 And Over,Agency Payments,Nursing Home,570,02/03/2022,2203-00346,0.00,20359.41,R,Acre Green,No
Http://opendatacommunities.org/id/metropolitan-district-council/leeds,Leeds City Council,31/03/2022,Adults and Health,Services For Older People - 65 And Over,Agency Payments,Residential,580,02/03/2022,2203-00347,0.00,3927.20,R,Acre Green,No
Http://opendatacommunities.org/id/metropolitan-district-council/leeds,Leeds City Council,31/03/2022,Adults and Health,Services For Older People Under 65 P/Dis,Agency Payments,Nursing Home,570,02/03/2022,2203-00348,0.00,1970.40,R,Acre Green,No
Http://opendatacommunities.org/id/metropolitan-district-council/leeds,Leeds City Council,31/03/2022,Adults and Health,Services For Older People Under 65 P/Dis,Agency Payments,Residential,580,02/03/2022,2203-00349,0.00,1767.20,R,Acre Green,No
Http://opendatacommunities.org/id/metropolitan-district-council/leeds,Leeds City Council,31/03/2022,Adults and Health,Services For Older People - 65 And Over,Agency Payments,Nursing Home,570,16/03/2022,2203-00350,0.00,10587.30,R,Acre Green,No
Http://opendatacommunities.org/id/metropolitan-district-council/leeds,Leeds City Council,31/03/2022,Adults and Health,Services For Older People - 65 And Over,Agency Payments,Nursing Home,570,30/03/2022,2203-00351,0.00,38499.01,R,Acre Green,No
Http://opendatacommunities.org/id/metropolitan-district-council/leeds,Leeds City Council,31/03/2022,Adults and Health,Services For Older People - 65 And Over,Agency Payments,Residential,580,30/03/2022,2203-00352,0.00,3927.20,R,Acre Green,No
Http://opendatacommunities.org/id/metropolitan-district-council/leeds,Leeds City Council,31/03/2022,Adults and Health,Services For Older People Under 65 P/Dis,Agency Payments,Nursing Home,570,30/03/2022,2203-00353,0.00,1970.40,R,Acre Green,No
Http://opendatacommunities.org/id/metropolitan-district-council/leeds,Leeds City Council,31/03/2022,Adults and Health,Services For Older People Under 65 P/Dis,Agency Payments,Residential,580,30/03/2022,2203-00354,0.00,1767.20,R,Acre Green,No
Http://opendatacommunities.org/id/metropolitan-district-council/leeds,Leeds City Council,31/03/2022,Children and Families,Social Care,Agency Payments,Services Rendered By Other Organisations,511,02/03/2022,2203-00355,0.00,1286.40,R,Acre Wood Day Nursery,No
Http://opendatacommunities.org/id/metropolitan-district-council/leeds,Leeds City Council,31/03/2022,Children and Families,Social Care,Agency Payments,Services Rendered By Other Organisations,511,04/03/2022,2203-00356,0.00,5418.90,R,Acre Wood Day Nursery,No
Http://opendatacommunities.org/id/metropolitan-district-council/leeds,Leeds City Council,31/03/2022,Children and Families,Social Care,Agency Payments,Services Rendered By Other Organisations,511,04/03/2022,2203-00357,0.00,1573.50,R,Acre Wood Day Nursery,No
Http://opendatacommunities.org/id/metropolitan-district-council/leeds,Leeds City Council,31/03/2022,Children and Families,Learning,Supplies and Services,Bought In Professional Services,277,30/03/2022,2203-00358,0.00,5171.61,R,Act Fast NL Ltd,No
Http://opendatacommunities.org/id/metropolitan-district-council/leeds,Leeds City Council,31/03/2022,Children and Families,Learning,Supplies and Services,Bought In Professional Services,277,30/03/2022,2203-00359,0.00,3266.28,R,Act Fast NL Ltd,No
Http://opendatacommunities.org/id/metropolitan-district-council/leeds,Leeds City Council,31/03/2022,Children and Families,Learning,Supplies and Services,Bought In Professional Services,277,30/03/2022,2203-00360,0.00,5171.61,R,Act Fast NL Ltd,No
Http://opendatacommunities.org/id/metropolitan-district-council/leeds,Leeds City Council,31/03/2022,City Development,Highways,Supplies and Services,Operational Materials,205,11/03/2022,2203-00361,0.00,52.48,R,Actavo Hire And Sales Uk Limited,No
Http://opendatacommunities.org/id/metropolitan-district-council/leeds,Leeds City Council,31/03/2022,Adults and Health,Services For Adults Under 65 Mental/Dis,Agency Payments,Home Care,568,04/03/2022,2203-00362,0.00,1440.00,R,Action First Assessments Ltd,No
Http://opendatacommunities.org/id/metropolitan-district-council/leeds,Leeds City Council,31/03/2022,Adults and Health,Services For Adults Under 65 Mental/Dis,Agency Payments,Home Care,568,04/03/2022,2203-00363,0.00,1440.00,R,Action First Assessments Ltd,No
Http://opendatacommunities.org/id/metropolitan-district-council/leeds,Leeds City Council,31/03/2022,Adults and Health,Services For Adults Under 65 Mental/Dis,Agency Payments,Home Care,568,04/03/2022,2203-00364,0.00,500.00,R,Action First Assessments Ltd,No
Http://opendatacommunities.org/id/metropolitan-district-council/leeds,Leeds City Council,31/03/2022,Adults and Health,Services For Adults Under 65 Mental/Dis,Agency Payments,Home Care,568,04/03/2022,2203-00365,0.00,250.00,R,Action First Assessments Ltd,No
Http://opendatacommunities.org/id/metropolitan-district-council/leeds,Leeds City Council,31/03/2022,Adults and Health,Services For Adults Under 65 Mental/Dis,Agency Payments,Home Care,568,04/03/2022,2203-00366,0.00,720.00,R,Action First Assessments Ltd,No
Http://opendatacommunities.org/id/metropolitan-district-council/leeds,Leeds City Council,31/03/2022,Adults and Health,Services For Adults Under 65 Mental/Dis,Agency Payments,Home Care,568,04/03/2022,2203-00367,0.00,720.00,R,Action First Assessments Ltd,No
Http://opendatacommunities.org/id/metropolitan-district-council/leeds,Leeds City Council,31/03/2022,Children and Families,Social Care,Agency Payments,Independent Fostering Agencies,509,04/03/2022,2203-00368,0.00,5060.44,R,Action For Children Services Ltd,No
Http://opendatacommunities.org/id/metropolitan-district-council/leeds,Leeds City Council,31/03/2022,City Development,Recreation,Supplies and Services,Other Hired And Contracted Services,265,23/03/2022,2203-00369,0.00,996.00,R,ACTION FOR GIPTON ELDERLY,No
Http://opendatacommunities.org/id/metropolitan-district-council/leeds,Leeds City Council,31/03/2022,Children and Families,Social Care,Agency Payments,Services Rendered By Other Organisations,511,02/03/2022,2203-00370,0.00,2251.20,R,ACTIVE KIDS YEADON LLP,No
Http://opendatacommunities.org/id/metropolitan-district-council/leeds,Leeds City Council,31/03/2022,Children and Families,Social Care,Agency Payments,Services Rendered By Other Organisations,511,04/03/2022,2203-00371,0.00,13272.96,R,ACTIVE KIDS YEADON LLP,No
Http://opendatacommunities.org/id/metropolitan-district-council/leeds,Leeds City Council,31/03/2022,Children and Families,Social Care,Agency Payments,Services Rendered By Other Organisations,511,04/03/2022,2203-00372,0.00,63.00,R,ACTIVE KIDS YEADON LLP,No
Http://opendatacommunities.org/id/metropolitan-district-council/leeds,Leeds City Council,31/03/2022,Adults and Health,Services For Adults Under 65 Mental/Dis,Agency Payments,Sheltered Accommodation,569,02/03/2022,2203-00373,0.00,8865.02,R,Active Pathways,No
Http://opendatacommunities.org/id/metropolitan-district-council/leeds,Leeds City Council as Accountable Body,31/03/2022,Social Services Pooled Budgets,Jcs For People With Learning Disabilitie,Agency Payments,Sheltered Accommodation,569,02/03/2022,2203-00374,0.00,12452.52,R,Active Pathways,No
Http://opendatacommunities.org/id/metropolitan-district-council/leeds,Leeds City Council,31/03/2022,Adults and Health,Services For Adults Under 65 Mental/Dis,Agency Payments,Sheltered Accommodation,569,30/03/2022,2203-00375,0.00,55898.04,R,Active Pathways,No
Http://opendatacommunities.org/id/metropolitan-district-council/leeds,Leeds City Council as Accountable Body,31/03/2022,Social Services Pooled Budgets,Jcs For People With Learning Disabilitie,Agency Payments,Sheltered Accommodation,569,30/03/2022,2203-00376,0.00,12452.52,R,Active Pathways,No
Http://opendatacommunities.org/id/metropolitan-district-council/leeds,Leeds City Council,31/03/2022,Communities Housing and Environment,Waste Management,Supplies and Services,Recycling & Reuse Charges,234,03/03/2022,2203-00377,0.00,1017.36,R,Acumen Waste Services Ltd,No
Http://opendatacommunities.org/id/metropolitan-district-council/leeds,Leeds City Council,31/03/2022,Communities Housing and Environment,Waste Management,Supplies and Services,Recycling & Reuse Charges,234,03/03/2022,2203-00378,0.00,957.60,R,Acumen Waste Services Ltd,No
Http://opendatacommunities.org/id/metropolitan-district-council/leeds,Leeds City Council,31/03/2022,Communities Housing and Environment,Waste Management,Supplies and Services,Recycling & Reuse Charges,234,03/03/2022,2203-00379,0.00,1008.72,R,Acumen Waste Services Ltd,No
Http://opendatacommunities.org/id/metropolitan-district-council/leeds,Leeds City Council,31/03/2022,Communities Housing and Environment,Waste Management,Supplies and Services,Recycling & Reuse Charges,234,10/03/2022,2203-00380,0.00,1003.68,R,Acumen Waste Services Ltd,No
Http://opendatacommunities.org/id/metropolitan-district-council/leeds,Leeds City Council,31/03/2022,Communities Housing and Environment,Waste Management,Supplies and Services,Recycling & Reuse Charges,234,10/03/2022,2203-00381,0.00,990.00,R,Acumen Waste Services Ltd,No
Http://opendatacommunities.org/id/metropolitan-district-council/leeds,Leeds City Council,31/03/2022,Communities Housing and Environment,Waste Management,Supplies and Services,Recycling & Reuse Charges,234,10/03/2022,2203-00382,0.00,979.20,R,Acumen Waste Services Ltd,No
Http://opendatacommunities.org/id/metropolitan-district-council/leeds,Leeds City Council,31/03/2022,Communities Housing and Environment,Waste Management,Supplies and Services,Recycling & Reuse Charges,234,10/03/2022,2203-00383,0.00,995.04,R,Acumen Waste Services Ltd,No
Http://opendatacommunities.org/id/metropolitan-district-council/leeds,Leeds City Council,31/03/2022,Communities Housing and Environment,Waste Management,Supplies and Services,Recycling & Reuse Charges,234,10/03/2022,2203-00384,0.00,1011.60,R,Acumen Waste Services Ltd,No
Http://opendatacommunities.org/id/metropolitan-district-council/leeds,Leeds City Council,31/03/2022,Communities Housing and Environment,Waste Management,Supplies and Services,Recycling & Reuse Charges,234,10/03/2022,2203-00385,0.00,910.80,R,Acumen Waste Services Ltd,No
Http://opendatacommunities.org/id/metropolitan-district-council/leeds,Leeds City Council,31/03/2022,Communities Housing and Environment,Waste Management,Supplies and Services,Recycling & Reuse Charges,234,16/03/2022,2203-00386,0.00,8894.16,R,Acumen Waste Services Ltd,No
Http://opendatacommunities.org/id/metropolitan-district-council/leeds,Leeds City Council,31/03/2022,Communities Housing and Environment,Waste Management,Supplies and Services,Recycling & Reuse Charges,234,16/03/2022,2203-00387,0.00,1026.00,R,Acumen Waste Services Ltd,No
Http://opendatacommunities.org/id/metropolitan-district-council/leeds,Leeds City Council,31/03/2022,Communities Housing and Environment,Waste Management,Supplies and Services,Recycling & Reuse Charges,234,16/03/2022,2203-00388,0.00,992.88,R,Acumen Waste Services Ltd,No
Http://opendatacommunities.org/id/metropolitan-district-council/leeds,Leeds City Council,31/03/2022,Communities Housing and Environment,Waste Management,Supplies and Services,Recycling & Reuse Charges,234,18/03/2022,2203-00389,0.00,974.88,R,Acumen Waste Services Ltd,No
Http://opendatacommunities.org/id/metropolitan-district-council/leeds,Leeds City Council,31/03/2022,Communities Housing and Environment,Waste Management,Supplies and Services,Recycling & Reuse Charges,234,18/03/2022,2203-00390,0.00,997.92,R,Acumen Waste Services Ltd,No
Http://opendatacommunities.org/id/metropolitan-district-council/leeds,Leeds City Council,31/03/2022,Communities Housing and Environment,Waste Management,Supplies and Services,Recycling & Reuse Charges,234,18/03/2022,2203-00391,0.00,988.56,R,Acumen Waste Services Ltd,No
Http://opendatacommunities.org/id/metropolitan-district-council/leeds,Leeds City Council,31/03/2022,Communities Housing and Environment,Waste Management,Supplies and Services,Recycling & Reuse Charges,234,23/03/2022,2203-00392,0.00,864.72,R,Acumen Waste Services Ltd,No
Http://opendatacommunities.org/id/metropolitan-district-council/leeds,Leeds City Council,31/03/2022,Communities Housing and Environment,Waste Management,Supplies and Services,Recycling & Reuse Charges,234,23/03/2022,2203-00393,0.00,987.12,R,Acumen Waste Services Ltd,No
Http://opendatacommunities.org/id/metropolitan-district-council/leeds,Leeds City Council,31/03/2022,Communities Housing and Environment,Waste Management,Supplies and Services,Recycling & Reuse Charges,234,25/03/2022,2203-00394,0.00,882.72,R,Acumen Waste Services Ltd,No
Http://opendatacommunities.org/id/metropolitan-district-council/leeds,Leeds City Council,31/03/2022,Communities Housing and Environment,Waste Management,Supplies and Services,Recycling & Reuse Charges,234,25/03/2022,2203-00395,0.00,957.60,R,Acumen Waste Services Ltd,No
Http://opendatacommunities.org/id/metropolitan-district-council/leeds,Leeds City Council,31/03/2022,Communities Housing and Environment,Waste Management,Supplies and Services,Recycling & Reuse Charges,234,25/03/2022,2203-00396,0.00,993.60,R,Acumen Waste Services Ltd,No
Http://opendatacommunities.org/id/metropolitan-district-council/leeds,Leeds City Council,31/03/2022,Communities Housing and Environment,Waste Management,Supplies and Services,Recycling & Reuse Charges,234,25/03/2022,2203-00397,0.00,905.76,R,Acumen Waste Services Ltd,No
Http://opendatacommunities.org/id/metropolitan-district-council/leeds,Leeds City Council,31/03/2022,Communities Housing and Environment,Waste Management,Supplies and Services,Recycling & Reuse Charges,234,25/03/2022,2203-00398,0.00,1008.07,R,Acumen Waste Services Ltd,No
Http://opendatacommunities.org/id/metropolitan-district-council/leeds,Leeds City Council,31/03/2022,Communities Housing and Environment,Waste Management,Supplies and Services,Recycling & Reuse Charges,234,30/03/2022,2203-00399,0.00,1011.60,R,Acumen Waste Services Ltd,No
Http://opendatacommunities.org/id/metropolitan-district-council/leeds,Leeds City Council,31/03/2022,Communities Housing and Environment,Waste Management,Supplies and Services,Waste Disposal Charges,236,31/03/2022,2203-00400,0.00,976.20,R,Acumen Waste Services Ltd,No
Http://opendatacommunities.org/id/metropolitan-district-council/leeds,Leeds City Council,31/03/2022,Communities Housing and Environment,Waste Management,Supplies and Services,Waste Disposal Charges,236,31/03/2022,2203-00401,0.00,1141.45,R,Acumen Waste Services Ltd,No
Http://opendatacommunities.org/id/metropolitan-district-council/leeds,Leeds City Council,31/03/2022,Resources,Shared Services,Supplies and Services,Other Hired And Contracted Services,265,02/03/2022,2203-00402,0.00,1131.75,R,AD3 Envelope Printers Limited,No
Http://opendatacommunities.org/id/metropolitan-district-council/leeds,Leeds City Council,31/03/2022,Resources,Shared Services,Supplies and Services,Other Hired And Contracted Services,265,30/03/2022,2203-00403,0.00,84.38,R,AD3 Envelope Printers Limited,No
Http://opendatacommunities.org/id/metropolitan-district-council/leeds,Leeds City Council,31/03/2022,Communities Housing and Environment,Benefits Welfare and Poverty,Supplies and Services,Grant Related Expenditure,298,18/03/2022,2203-00404,0.00,500.00,R,REDACTED PERSONAL DATA,No
Http://opendatacommunities.org/id/metropolitan-district-council/leeds,Leeds City Council,31/03/2022,Communities Housing and Environment,Benefits Welfare and Poverty,Supplies and Services,Grant Related Expenditure,298,07/03/2022,2203-00405,0.00,500.00,R,REDACTED PERSONAL DATA,No
Http://opendatacommunities.org/id/metropolitan-district-council/leeds,Leeds City Council,31/03/2022,Children and Families,Social Care,Appropriations,Leaving Care Allowances,634,04/03/2022,2203-00406,0.00,50.00,R,REDACTED PERSONAL DATA,No
Http://opendatacommunities.org/id/metropolitan-district-council/leeds,Leeds City Council,31/03/2022,Children and Families,Social Care,Appropriations,Leaving Care Allowances,634,10/03/2022,2203-00407,0.00,15.00,R,REDACTED PERSONAL DATA,No
Http://opendatacommunities.org/id/metropolitan-district-council/leeds,Leeds City Council,31/03/2022,Children and Families,Social Care,Appropriations,Leaving Care Allowances,634,10/03/2022,2203-00408,0.00,50.00,R,REDACTED PERSONAL DATA,No
Http://opendatacommunities.org/id/metropolitan-district-council/leeds,Leeds City Council,31/03/2022,Children and Families,Social Care,Appropriations,Leaving Care Allowances,634,18/03/2022,2203-00409,0.00,50.00,R,REDACTED PERSONAL DATA,No
Http://opendatacommunities.org/id/metropolitan-district-council/leeds,Leeds City Council,31/03/2022,Communities Housing and Environment,Benefits Welfare and Poverty,Supplies and Services,Grant Related Expenditure,298,23/03/2022,2203-00410,0.00,500.00,R,REDACTED PERSONAL DATA,No
Http://opendatacommunities.org/id/metropolitan-district-council/leeds,Leeds City Council,31/03/2022,Communities Housing and Environment,Benefits Welfare and Poverty,Supplies and Services,Grant Related Expenditure,298,28/03/2022,2203-00411,0.00,500.00,R,REDACTED PERSONAL DATA,No
Http://opendatacommunities.org/id/metropolitan-district-council/leeds,Leeds City Council,31/03/2022,Communities Housing and Environment,Benefits Welfare and Poverty,Supplies and Services,Grant Related Expenditure,298,18/03/2022,2203-00412,0.00,500.00,R,REDACTED PERSONAL DATA,No
Http://opendatacommunities.org/id/metropolitan-district-council/leeds,Leeds City Council,31/03/2022,Communities Housing and Environment,Benefits Welfare and Poverty,Supplies and Services,Grant Related Expenditure,298,28/03/2022,2203-00413,0.00,500.00,R,REDACTED PERSONAL DATA,No
Http://opendatacommunities.org/id/metropolitan-district-council/leeds,Leeds City Council,31/03/2022,City Development,Recreation,External Income,Sporting & Other Recreational Fees,928,16/03/2022,2203-00414,0.00,95.70,R,REDACTED PERSONAL DATA,No
Http://opendatacommunities.org/id/metropolitan-district-council/leeds,Leeds City Council,31/03/2022,Communities Housing and Environment,Benefits Welfare and Poverty,Supplies and Services,Grant Related Expenditure,290,30/03/2022,2203-00415,0.00,500.00,R,REDACTED PERSONAL DATA,No
Http://opendatacommunities.org/id/metropolitan-district-council/leeds,Leeds City Council,31/03/2022,City Development,Economic Development,Supplies and Services,Grant Related Expenditure,290,08/03/2022,2203-00416,0.00,6000.00,R,Adamson Retail (Manchester) Ltd,No
Http://opendatacommunities.org/id/metropolitan-district-council/leeds,Leeds City Council,31/03/2022,Adults and Health,Services For Older People - 65 And Over,Agency Payments,Nursing Home,570,02/03/2022,2203-00417,0.00,2648.00,R,Adbolton Hall,No
Http://opendatacommunities.org/id/metropolitan-district-council/leeds,Leeds City Council,31/03/2022,Adults and Health,Services For Older People - 65 And Over,Agency Payments,Nursing Home,570,30/03/2022,2203-00418,0.00,2648.00,R,Adbolton Hall,No
Http://opendatacommunities.org/id/metropolitan-district-council/leeds,Leeds City Council,31/03/2022,City Development,Highways,Capital,OTHER COSTS,7,10/03/2022,2203-00419,0.00,25784.82,C,Addleshaw Goddard Client Account,No
Http://opendatacommunities.org/id/metropolitan-district-council/leeds,Leeds City Council,31/03/2022,Children and Families,Social Care,Agency Payments,Services Rendered By Voluntary Sector,505,02/03/2022,2203-00420,0.00,4180.80,R,ADEL PRE SCHOOL,No
Http://opendatacommunities.org/id/metropolitan-district-council/leeds,Leeds City Council,31/03/2022,Children and Families,Social Care,Agency Payments,Services Rendered By Voluntary Sector,505,04/03/2022,2203-00421,0.00,8135.04,R,ADEL PRE SCHOOL,No
Http://opendatacommunities.org/id/metropolitan-district-council/leeds,Leeds City Council,31/03/2022,Children and Families,Social Care,Agency Payments,Services Rendered By Voluntary Sector,505,04/03/2022,2203-00422,0.00,590.40,R,ADEL PRE SCHOOL,No
Http://opendatacommunities.org/id/metropolitan-district-council/leeds,Leeds City Council,31/03/2022,Children and Families,Social Care,Agency Payments,Services Rendered By Voluntary Sector,505,04/03/2022,2203-00423,0.00,381.60,R,ADEL PRE SCHOOL,No
Http://opendatacommunities.org/id/metropolitan-district-council/leeds,Leeds City Council,31/03/2022,City Development,Recreation,Supplies and Services,Bought In Professional Services,277,02/03/2022,2203-00424,0.00,160.00,R,Adele Battersby,No
Http://opendatacommunities.org/id/metropolitan-district-council/leeds,Leeds City Council,31/03/2022,City Development,Recreation,Supplies and Services,Bought In Professional Services,277,02/03/2022,2203-00425,0.00,420.00,R,Adele Battersby,No
Http://opendatacommunities.org/id/metropolitan-district-council/leeds,Leeds City Council,31/03/2022,City Development,Recreation,Supplies and Services,Bought In Professional Services,277,02/03/2022,2203-00426,0.00,40.00,R,Adele Battersby,No
Http://opendatacommunities.org/id/metropolitan-district-council/leeds,Leeds City Council,31/03/2022,City Development,Recreation,Supplies and Services,Bought In Professional Services,277,18/03/2022,2203-00427,0.00,60.00,R,Adele Battersby,No
Http://opendatacommunities.org/id/metropolitan-district-council/leeds,Leeds City Council,31/03/2022,City Development,Recreation,Supplies and Services,Bought In Professional Services,277,25/03/2022,2203-00428,0.00,180.00,R,Adele Battersby,No
Http://opendatacommunities.org/id/metropolitan-district-council/leeds,Leeds City Council,31/03/2022,City Development,Recreation,Supplies and Services,Bought In Professional Services,277,30/03/2022,2203-00429,0.00,420.00,R,Adele Battersby,No
Http://opendatacommunities.org/id/metropolitan-district-council/leeds,Leeds City Council,31/03/2022,City Development,Recreation,Supplies and Services,Bought In Professional Services,277,30/03/2022,2203-00430,0.00,20.00,R,Adele Battersby,No
Http://opendatacommunities.org/id/metropolitan-district-council/leeds,Leeds City Council,31/03/2022,Children and Families,Social Care,Agency Payments,Services Rendered By Other Organisations,511,02/03/2022,2203-00431,0.00,643.20,R,REDACTED PERSONAL DATA,No
Http://opendatacommunities.org/id/metropolitan-district-council/leeds,Leeds City Council,31/03/2022,Children and Families,Social Care,Agency Payments,Services Rendered By Other Organisations,511,04/03/2022,2203-00432,0.00,1605.60,R,REDACTED PERSONAL DATA,No
Http://opendatacommunities.org/id/metropolitan-district-council/leeds,Leeds City Council,31/03/2022,Children and Families,Social Care,Agency Payments,Services Rendered By Other Organisations,511,04/03/2022,2203-00433,0.00,225.00,R,REDACTED PERSONAL DATA,No
Http://opendatacommunities.org/id/metropolitan-district-council/leeds,Leeds City Council,31/03/2022,City Development,Recreation,External Income,Swimming Bath Charges,923,22/03/2022,2203-00434,0.00,74.95,R,REDACTED PERSONAL DATA,No
Http://opendatacommunities.org/id/metropolitan-district-council/leeds,Leeds City Council,31/03/2022,Communities Housing and Environment,Benefits Welfare and Poverty,Supplies and Services,Grant Related Expenditure,290,04/03/2022,2203-00435,0.00,500.00,R,REDACTED PERSONAL DATA,No
Http://opendatacommunities.org/id/metropolitan-district-council/leeds,Leeds City Council,31/03/2022,Children and Families,Social Care,Agency Payments,Contact,548,25/03/2022,2203-00436,0.00,32.00,R,REDACTED PERSONAL DATA,No
Http://opendatacommunities.org/id/metropolitan-district-council/leeds,Leeds City Council,31/03/2022,Communities Housing and Environment,Benefits Welfare and Poverty,Supplies and Services,Grant Related Expenditure,290,02/03/2022,2203-00437,0.00,500.00,R,REDACTED PERSONAL DATA,No
Http://opendatacommunities.org/id/metropolitan-district-council/leeds,Leeds City Council,31/03/2022,Communities Housing and Environment,Benefits Welfare and Poverty,Supplies and Services,Grant Related Expenditure,298,02/03/2022,2203-00438,0.00,500.00,R,REDACTED PERSONAL DATA,No
Http://opendatacommunities.org/id/metropolitan-district-council/leeds,Leeds City Council,31/03/2022,Children and Families,Social Care,Agency Payments,Contact,548,04/03/2022,2203-00439,0.00,5.50,R,REDACTED PERSONAL DATA,No
Http://opendatacommunities.org/id/metropolitan-district-council/leeds,Leeds City Council,31/03/2022,Children and Families,Social Care,Agency Payments,Contact,548,18/03/2022,2203-00440,0.00,5.50,R,REDACTED PERSONAL DATA,No
Http://opendatacommunities.org/id/metropolitan-district-council/leeds,Leeds City Council,31/03/2022,Children and Families,Social Care,Agency Payments,Section 17,551,04/03/2022,2203-00441,0.00,79.20,R,REDACTED PERSONAL DATA,No
Http://opendatacommunities.org/id/metropolitan-district-council/leeds,Leeds City Council,31/03/2022,Children and Families,Social Care,Agency Payments,Section 17,551,11/03/2022,2203-00442,0.00,79.20,R,REDACTED PERSONAL DATA,No
Http://opendatacommunities.org/id/metropolitan-district-council/leeds,Leeds City Council,31/03/2022,Children and Families,Social Care,Agency Payments,Section 17,551,18/03/2022,2203-00443,0.00,79.20,R,REDACTED PERSONAL DATA,No
Http://opendatacommunities.org/id/metropolitan-district-council/leeds,Leeds City Council,31/03/2022,Children and Families,Social Care,Agency Payments,Section 17,551,25/03/2022,2203-00444,0.00,79.20,R,REDACTED PERSONAL DATA,No
Http://opendatacommunities.org/id/metropolitan-district-council/leeds,Leeds City Council,31/03/2022,Communities Housing and Environment,Benefits Welfare and Poverty,Supplies and Services,Grant Related Expenditure,298,25/03/2022,2203-00445,0.00,500.00,R,REDACTED PERSONAL DATA,No
Http://opendatacommunities.org/id/metropolitan-district-council/leeds,Leeds City Council,31/03/2022,Resources,Leeds Building Services,Supplies and Services,Operational Materials,205,03/03/2022,2203-00446,0.00,87.64,R,ADI-Gardiner Ltd,No
Http://opendatacommunities.org/id/metropolitan-district-council/leeds,Leeds City Council,31/03/2022,Resources,Leeds Building Services,Supplies and Services,Operational Materials,205,03/03/2022,2203-00447,0.00,87.64,R,ADI-Gardiner Ltd,No
Http://opendatacommunities.org/id/metropolitan-district-council/leeds,Leeds City Council,31/03/2022,Resources,Leeds Building Services,Supplies and Services,Operational Materials,205,03/03/2022,2203-00448,0.00,87.64,R,ADI-Gardiner Ltd,No
Http://opendatacommunities.org/id/metropolitan-district-council/leeds,Leeds City Council,31/03/2022,Resources,Leeds Building Services,Supplies and Services,Operational Materials,205,08/03/2022,2203-00449,0.00,668.99,R,ADI-Gardiner Ltd,No
Http://opendatacommunities.org/id/metropolitan-district-council/leeds,Leeds City Council,31/03/2022,Resources,Leeds Building Services,Supplies and Services,Operational Materials,205,08/03/2022,2203-00450,0.00,155.99,R,ADI-Gardiner Ltd,No
Http://opendatacommunities.org/id/metropolitan-district-council/leeds,Leeds City Council,31/03/2022,Resources,Leeds Building Services,Supplies and Services,Operational Materials,205,08/03/2022,2203-00451,0.00,422.40,R,ADI-Gardiner Ltd,No
Http://opendatacommunities.org/id/metropolitan-district-council/leeds,Leeds City Council,31/03/2022,Resources,Leeds Building Services,Supplies and Services,Operational Materials,205,08/03/2022,2203-00452,0.00,1022.27,R,ADI-Gardiner Ltd,No
Http://opendatacommunities.org/id/metropolitan-district-council/leeds,Leeds City Council,31/03/2022,Resources,Leeds Building Services,Supplies and Services,Operational Materials,205,08/03/2022,2203-00453,0.00,94.65,R,ADI-Gardiner Ltd,No
Http://opendatacommunities.org/id/metropolitan-district-council/leeds,Leeds City Council,31/03/2022,Resources,Leeds Building Services,Supplies and Services,Operational Materials,205,08/03/2022,2203-00454,0.00,24.04,R,ADI-Gardiner Ltd,No
Http://opendatacommunities.org/id/metropolitan-district-council/leeds,Leeds City Council,31/03/2022,Resources,Leeds Building Services,Supplies and Services,Operational Materials,205,08/03/2022,2203-00455,0.00,765.00,R,ADI-Gardiner Ltd,No
Http://opendatacommunities.org/id/metropolitan-district-council/leeds,Leeds City Council,31/03/2022,Resources,Leeds Building Services,Supplies and Services,Operational Materials,205,10/03/2022,2203-00456,0.00,155.99,R,ADI-Gardiner Ltd,No
Http://opendatacommunities.org/id/metropolitan-district-council/leeds,Leeds City Council,31/03/2022,Resources,Leeds Building Services,Supplies and Services,STORES - CENTRAL AND OTHER DEPOTS,005,10/03/2022,2203-00457,0.00,118.80,R,ADI-Gardiner Ltd,No
Http://opendatacommunities.org/id/metropolitan-district-council/leeds,Leeds City Council,31/03/2022,Resources,Leeds Building Services,Supplies and Services,Operational Materials,205,16/03/2022,2203-00458,0.00,1107.37,R,ADI-Gardiner Ltd,No
Http://opendatacommunities.org/id/metropolitan-district-council/leeds,Leeds City Council,31/03/2022,Resources,Leeds Building Services,Supplies and Services,Operational Materials,205,16/03/2022,2203-00459,0.00,988.21,R,ADI-Gardiner Ltd,No
Http://opendatacommunities.org/id/metropolitan-district-council/leeds,Leeds City Council,31/03/2022,Resources,Leeds Building Services,Supplies and Services,Operational Materials,205,17/03/2022,2203-00460,0.00,287.97,R,ADI-Gardiner Ltd,No
Http://opendatacommunities.org/id/metropolitan-district-council/leeds,Leeds City Council,31/03/2022,Resources,Leeds Building Services,Supplies and Services,Operational Materials,205,17/03/2022,2203-00461,0.00,1636.80,R,ADI-Gardiner Ltd,No
Http://opendatacommunities.org/id/metropolitan-district-council/leeds,Leeds City Council,31/03/2022,Resources,Leeds Building Services,Supplies and Services,Operational Materials,205,18/03/2022,2203-00462,0.00,723.83,R,ADI-Gardiner Ltd,No
Http://opendatacommunities.org/id/metropolitan-district-council/leeds,Leeds City Council,31/03/2022,Resources,Leeds Building Services,Supplies and Services,Operational Materials,205,22/03/2022,2203-00463,0.00,474.85,R,ADI-Gardiner Ltd,No
Http://opendatacommunities.org/id/metropolitan-district-council/leeds,Leeds City Council,31/03/2022,Resources,Leeds Building Services,Supplies and Services,STORES - CENTRAL AND OTHER DEPOTS,005,23/03/2022,2203-00464,0.00,1082.40,R,ADI-Gardiner Ltd,No
Http://opendatacommunities.org/id/metropolitan-district-council/leeds,Leeds City Council,31/03/2022,Resources,Leeds Building Services,Supplies and Services,STORES - CENTRAL AND OTHER DEPOTS,005,23/03/2022,2203-00465,0.00,118.80,R,ADI-Gardiner Ltd,No
Http://opendatacommunities.org/id/metropolitan-district-council/leeds,Leeds City Council,31/03/2022,Resources,Leeds Building Services,Supplies and Services,Operational Materials,205,23/03/2022,2203-00466,0.00,260.74,R,ADI-Gardiner Ltd,No
Http://opendatacommunities.org/id/metropolitan-district-council/leeds,Leeds City Council,31/03/2022,Resources,Leeds Building Services,Supplies and Services,Operational Materials,205,23/03/2022,2203-00467,0.00,156.19,R,ADI-Gardiner Ltd,No
Http://opendatacommunities.org/id/metropolitan-district-council/leeds,Leeds City Council,31/03/2022,Resources,Leeds Building Services,Supplies and Services,Operational Materials,205,23/03/2022,2203-00468,0.00,193.53,R,ADI-Gardiner Ltd,No
Http://opendatacommunities.org/id/metropolitan-district-council/leeds,Leeds City Council,31/03/2022,Resources,Leeds Building Services,Supplies and Services,Operational Materials,205,23/03/2022,2203-00469,0.00,272.04,R,ADI-Gardiner Ltd,No
Http://opendatacommunities.org/id/metropolitan-district-council/leeds,Leeds City Council,31/03/2022,Resources,Leeds Building Services,Supplies and Services,Operational Materials,205,25/03/2022,2203-00470,0.00,1938.13,R,ADI-Gardiner Ltd,No
Http://opendatacommunities.org/id/metropolitan-district-council/leeds,Leeds City Council,31/03/2022,Resources,Leeds Building Services,Supplies and Services,Operational Materials,205,25/03/2022,2203-00471,0.00,1909.13,R,ADI-Gardiner Ltd,No
Http://opendatacommunities.org/id/metropolitan-district-council/leeds,Leeds City Council,31/03/2022,Resources,Leeds Building Services,Supplies and Services,Operational Materials,205,25/03/2022,2203-00472,0.00,103.69,R,ADI-Gardiner Ltd,No
Http://opendatacommunities.org/id/metropolitan-district-council/leeds,Leeds City Council,31/03/2022,Resources,Leeds Building Services,Supplies and Services,Operational Materials,205,25/03/2022,2203-00473,0.00,81.45,R,ADI-Gardiner Ltd,No
Http://opendatacommunities.org/id/metropolitan-district-council/leeds,Leeds City Council,31/03/2022,Resources,Leeds Building Services,Supplies and Services,Operational Materials,205,25/03/2022,2203-00474,0.00,153.21,R,ADI-Gardiner Ltd,No
Http://opendatacommunities.org/id/metropolitan-district-council/leeds,Leeds City Council,31/03/2022,Resources,Leeds Building Services,Supplies and Services,Operational Materials,205,30/03/2022,2203-00475,0.00,341.78,R,ADI-Gardiner Ltd,No
Http://opendatacommunities.org/id/metropolitan-district-council/leeds,Leeds City Council,31/03/2022,Resources,Leeds Building Services,Supplies and Services,Operational Materials,205,30/03/2022,2203-00476,0.00,82.54,R,ADI-Gardiner Ltd,No
Http://opendatacommunities.org/id/metropolitan-district-council/leeds,Leeds City Council,31/03/2022,Communities Housing and Environment,Benefits Welfare and Poverty,Supplies and Services,Grant Related Expenditure,298,03/03/2022,2203-00477,0.00,500.00,R,REDACTED PERSONAL DATA,No
Http://opendatacommunities.org/id/metropolitan-district-council/leeds,Leeds City Council,31/03/2022,Communities Housing and Environment,Benefits Welfare and Poverty,Supplies and Services,Grant Related Expenditure,298,15/03/2022,2203-00478,0.00,500.00,R,REDACTED PERSONAL DATA,No
Http://opendatacommunities.org/id/metropolitan-district-council/leeds,Leeds City Council,31/03/2022,Insurance,Insurance,Supplies and Services,Insurance Claims,248,17/03/2022,2203-00479,0.00,240.00,R,Admiral Law,No
Http://opendatacommunities.org/id/metropolitan-district-council/leeds,Leeds City Council,31/03/2022,City Development,Libraries Arts & Heritage,Supplies and Services,Publication And Promotion,267,15/02/2022,2203-00480,0.00,7.19,R,Adobe,Yes
Http://opendatacommunities.org/id/metropolitan-district-council/leeds,Leeds City Council,31/03/2022,City Development,Libraries Arts & Heritage,Supplies and Services,Computer Software & Equipment,214,02/02/2022,2203-00481,0.00,41.62,R,Adobe Creative Cloud,Yes
Http://opendatacommunities.org/id/metropolitan-district-council/leeds,Leeds City Council,31/03/2022,City Development,Libraries Arts & Heritage,Supplies and Services,Computer Software & Equipment,214,08/02/2022,2203-00482,0.00,-19.99,R,Adobe Stock,Yes
Http://opendatacommunities.org/id/metropolitan-district-council/leeds,Leeds City Council,31/03/2022,City Development,Libraries Arts & Heritage,Supplies and Services,Computer Software & Equipment,214,07/02/2022,2203-00483,0.00,19.99,R,Adobe Stock Trial,Yes
Http://opendatacommunities.org/id/metropolitan-district-council/leeds,Leeds City Council,31/03/2022,City Development,Libraries Arts & Heritage,Supplies and Services,Computer Software & Equipment,214,23/02/2022,2203-00484,0.00,9.98,R,Adobe.Com,Yes
Http://opendatacommunities.org/id/metropolitan-district-council/leeds,Leeds City Council,31/03/2022,Children and Families,Social Care,Agency Payments,Independent Fostering Agencies,509,04/03/2022,2203-00485,0.00,3565.00,R,Adolescent And Childrens Trust,No
Http://opendatacommunities.org/id/metropolitan-district-council/leeds,Leeds City Council,31/03/2022,Children and Families,Social Care,Agency Payments,Independent Fostering Agencies,509,04/03/2022,2203-00486,0.00,3565.00,R,Adolescent And Childrens Trust,No
Http://opendatacommunities.org/id/metropolitan-district-council/leeds,Leeds City Council,31/03/2022,Children and Families,Social Care,Agency Payments,Independent Fostering Agencies,509,04/03/2022,2203-00487,0.00,3565.00,R,Adolescent And Childrens Trust,No
Http://opendatacommunities.org/id/metropolitan-district-council/leeds,Leeds City Council,31/03/2022,Children and Families,Social Care,Agency Payments,Independent Fostering Agencies,509,04/03/2022,2203-00488,0.00,3751.00,R,Adolescent And Childrens Trust,No
Http://opendatacommunities.org/id/metropolitan-district-council/leeds,Leeds City Council,31/03/2022,Children and Families,Social Care,Agency Payments,Independent Fostering Agencies,509,04/03/2022,2203-00489,0.00,3751.00,R,Adolescent And Childrens Trust,No
Http://opendatacommunities.org/id/metropolitan-district-council/leeds,Leeds City Council,31/03/2022,Children and Families,Social Care,Agency Payments,Independent Fostering Agencies,509,04/03/2022,2203-00490,0.00,3565.00,R,Adolescent And Childrens Trust,No
Http://opendatacommunities.org/id/metropolitan-district-council/leeds,Leeds City Council,31/03/2022,Children and Families,Social Care,Agency Payments,Independent Fostering Agencies,509,04/03/2022,2203-00491,0.00,3751.00,R,Adolescent And Childrens Trust,No
Http://opendatacommunities.org/id/metropolitan-district-council/leeds,Leeds City Council,31/03/2022,Children and Families,Social Care,Agency Payments,Independent Fostering Agencies,509,04/03/2022,2203-00492,0.00,3751.00,R,Adolescent And Childrens Trust,No
Http://opendatacommunities.org/id/metropolitan-district-council/leeds,Leeds City Council,31/03/2022,Children and Families,Social Care,Agency Payments,Independent Fostering Agencies,509,04/03/2022,2203-00493,0.00,3551.67,R,Adolescent And Childrens Trust,No
Http://opendatacommunities.org/id/metropolitan-district-council/leeds,Leeds City Council,31/03/2022,Children and Families,Social Care,Agency Payments,Independent Fostering Agencies,509,04/03/2022,2203-00494,0.00,3751.00,R,Adolescent And Childrens Trust,No
Http://opendatacommunities.org/id/metropolitan-district-council/leeds,Leeds City Council,31/03/2022,Children and Families,Social Care,Agency Payments,Independent Fostering Agencies,509,04/03/2022,2203-00495,0.00,3565.00,R,Adolescent And Childrens Trust,No
Http://opendatacommunities.org/id/metropolitan-district-council/leeds,Leeds City Council,31/03/2022,Adults and Health,Services For Adults Under 65 Mental/Dis,Agency Payments,Home Care,568,01/03/2022,2203-00496,0.00,66.00,R,Adopt Healthcare,No
Http://opendatacommunities.org/id/metropolitan-district-council/leeds,Leeds City Council,31/03/2022,Adults and Health,Services For Adults Under 65 Mental/Dis,Agency Payments,Home Care,568,02/03/2022,2203-00497,0.00,204.00,R,Adopt Healthcare,No
Http://opendatacommunities.org/id/metropolitan-district-council/leeds,Leeds City Council,31/03/2022,Adults and Health,Services For Adults Under 65 Mental/Dis,Agency Payments,Home Care,568,02/03/2022,2203-00498,0.00,132.00,R,Adopt Healthcare,No
Http://opendatacommunities.org/id/metropolitan-district-council/leeds,Leeds City Council,31/03/2022,Adults and Health,Services For Adults Under 65 Mental/Dis,Agency Payments,Home Care,568,02/03/2022,2203-00499,0.00,198.00,R,Adopt Healthcare,No
Http://opendatacommunities.org/id/metropolitan-district-council/leeds,Leeds City Council,31/03/2022,Adults and Health,Services For Adults Under 65 Mental/Dis,Agency Payments,Home Care,568,04/03/2022,2203-00500,0.00,194.50,R,Adopt Healthcare,No
Http://opendatacommunities.org/id/metropolitan-district-council/leeds,Leeds City Council,31/03/2022,Adults and Health,Services For Adults Under 65 Mental/Dis,Agency Payments,Home Care,568,04/03/2022,2203-00501,0.00,189.00,R,Adopt Healthcare,No
Http://opendatacommunities.org/id/metropolitan-district-council/leeds,Leeds City Council,31/03/2022,Adults and Health,Services For Adults Under 65 Mental/Dis,Agency Payments,Home Care,568,04/03/2022,2203-00502,0.00,287.25,R,Adopt Healthcare,No
Http://opendatacommunities.org/id/metropolitan-district-council/leeds,Leeds City Council,31/03/2022,Adults and Health,Services For Adults Under 65 Mental/Dis,Agency Payments,Home Care,568,04/03/2022,2203-00503,0.00,287.25,R,Adopt Healthcare,No
Http://opendatacommunities.org/id/metropolitan-district-council/leeds,Leeds City Council,31/03/2022,Adults and Health,Services For Adults Under 65 Mental/Dis,Agency Payments,Home Care,568,10/03/2022,2203-00504,0.00,287.25,R,Adopt Healthcare,No
Http://opendatacommunities.org/id/metropolitan-district-council/leeds,Leeds City Council,31/03/2022,Adults and Health,Services For Adults Under 65 Mental/Dis,Agency Payments,Home Care,568,11/03/2022,2203-00505,0.00,214.50,R,Adopt Healthcare,No
Http://opendatacommunities.org/id/metropolitan-district-council/leeds,Leeds City Council,31/03/2022,Adults and Health,Services For Adults Under 65 Mental/Dis,Agency Payments,Home Care,568,11/03/2022,2203-00506,0.00,194.50,R,Adopt Healthcare,No
Http://opendatacommunities.org/id/metropolitan-district-council/leeds,Leeds City Council,31/03/2022,Adults and Health,Services For Adults Under 65 Mental/Dis,Agency Payments,Home Care,568,11/03/2022,2203-00507,0.00,204.00,R,Adopt Healthcare,No
Http://opendatacommunities.org/id/metropolitan-district-council/leeds,Leeds City Council,31/03/2022,Adults and Health,Services For Adults Under 65 Mental/Dis,Agency Payments,Home Care,568,11/03/2022,2203-00508,0.00,198.00,R,Adopt Healthcare,No
Http://opendatacommunities.org/id/metropolitan-district-council/leeds,Leeds City Council,31/03/2022,Adults and Health,Services For Adults Under 65 Mental/Dis,Agency Payments,Home Care,568,16/03/2022,2203-00509,0.00,287.25,R,Adopt Healthcare,No
Http://opendatacommunities.org/id/metropolitan-district-council/leeds,Leeds City Council,31/03/2022,Adults and Health,Services For Adults Under 65 Mental/Dis,Agency Payments,Home Care,568,16/03/2022,2203-00510,0.00,287.25,R,Adopt Healthcare,No
Http://opendatacommunities.org/id/metropolitan-district-council/leeds,Leeds City Council,31/03/2022,Adults and Health,Services For Adults Under 65 Mental/Dis,Agency Payments,Home Care,568,16/03/2022,2203-00511,0.00,189.00,R,Adopt Healthcare,No
Http://opendatacommunities.org/id/metropolitan-district-council/leeds,Leeds City Council,31/03/2022,Adults and Health,Services For Adults Under 65 Mental/Dis,Agency Payments,Home Care,568,16/03/2022,2203-00512,0.00,189.00,R,Adopt Healthcare,No
Http://opendatacommunities.org/id/metropolitan-district-council/leeds,Leeds City Council,31/03/2022,Adults and Health,Services For Adults Under 65 Mental/Dis,Agency Payments,Home Care,568,16/03/2022,2203-00513,0.00,189.00,R,Adopt Healthcare,No
Http://opendatacommunities.org/id/metropolitan-district-council/leeds,Leeds City Council,31/03/2022,Adults and Health,Services For Adults Under 65 Mental/Dis,Agency Payments,Home Care,568,16/03/2022,2203-00514,0.00,189.00,R,Adopt Healthcare,No
Http://opendatacommunities.org/id/metropolitan-district-council/leeds,Leeds City Council,31/03/2022,Adults and Health,Services For Adults Under 65 Mental/Dis,Agency Payments,Home Care,568,16/03/2022,2203-00515,0.00,189.00,R,Adopt Healthcare,No
Http://opendatacommunities.org/id/metropolitan-district-council/leeds,Leeds City Council,31/03/2022,Adults and Health,Services For Adults Under 65 Mental/Dis,Agency Payments,Home Care,568,16/03/2022,2203-00516,0.00,132.00,R,Adopt Healthcare,No
Http://opendatacommunities.org/id/metropolitan-district-council/leeds,Leeds City Council,31/03/2022,Adults and Health,Services For Adults Under 65 Mental/Dis,Agency Payments,Home Care,568,16/03/2022,2203-00517,0.00,132.00,R,Adopt Healthcare,No
Http://opendatacommunities.org/id/metropolitan-district-council/leeds,Leeds City Council,31/03/2022,Adults and Health,Services For Adults Under 65 Mental/Dis,Agency Payments,Home Care,568,17/03/2022,2203-00518,0.00,189.00,R,Adopt Healthcare,No
Http://opendatacommunities.org/id/metropolitan-district-council/leeds,Leeds City Council,31/03/2022,Adults and Health,Services For Adults Under 65 Mental/Dis,Agency Payments,Home Care,568,23/03/2022,2203-00519,0.00,287.25,R,Adopt Healthcare,No
Http://opendatacommunities.org/id/metropolitan-district-council/leeds,Leeds City Council,31/03/2022,Adults and Health,Services For Adults Under 65 Mental/Dis,Agency Payments,Home Care,568,23/03/2022,2203-00520,0.00,189.00,R,Adopt Healthcare,No
Http://opendatacommunities.org/id/metropolitan-district-council/leeds,Leeds City Council,31/03/2022,Adults and Health,Services For Adults Under 65 Mental/Dis,Agency Payments,Home Care,568,23/03/2022,2203-00521,0.00,132.00,R,Adopt Healthcare,No
Http://opendatacommunities.org/id/metropolitan-district-council/leeds,Leeds City Council,31/03/2022,Children and Families,Social Care,Agency Payments,Placement Support,550,04/03/2022,2203-00522,0.00,21.15,R,REDACTED PERSONAL DATA,No
Http://opendatacommunities.org/id/metropolitan-district-council/leeds,Leeds City Council,31/03/2022,Children and Families,Social Care,Agency Payments,Placement Support,550,11/03/2022,2203-00523,0.00,21.15,R,REDACTED PERSONAL DATA,No
Http://opendatacommunities.org/id/metropolitan-district-council/leeds,Leeds City Council,31/03/2022,Children and Families,Social Care,Agency Payments,Placement Support,550,18/03/2022,2203-00524,0.00,21.15,R,REDACTED PERSONAL DATA,No
Http://opendatacommunities.org/id/metropolitan-district-council/leeds,Leeds City Council,31/03/2022,Children and Families,Social Care,Agency Payments,Placement Support,550,25/03/2022,2203-00525,0.00,21.15,R,REDACTED PERSONAL DATA,No
Http://opendatacommunities.org/id/metropolitan-district-council/leeds,Leeds City Council,31/03/2022,Children and Families,Social Care,Agency Payments,Allowances,546,31/03/2022,2203-00526,0.00,226.03,R,REDACTED PERSONAL DATA,No
Http://opendatacommunities.org/id/metropolitan-district-council/leeds,Leeds City Council as Accountable Body,31/03/2022,Social Services Pooled Budgets,Jcs For People With Learning Disabilitie,Agency Payments,Residential,580,04/03/2022,2203-00527,0.00,2609.36,R,ADRIAN HOUSE,No
Http://opendatacommunities.org/id/metropolitan-district-council/leeds,Leeds City Council as Accountable Body,31/03/2022,Social Services Pooled Budgets,Jcs For People With Learning Disabilitie,Agency Payments,Residential,580,30/03/2022,2203-00528,0.00,2609.36,R,ADRIAN HOUSE,No
Http://opendatacommunities.org/id/metropolitan-district-council/leeds,Leeds City Council,31/03/2022,Communities Housing and Environment,Benefits Welfare and Poverty,Supplies and Services,Grant Related Expenditure,298,14/03/2022,2203-00529,0.00,500.00,R,REDACTED PERSONAL DATA,No
Http://opendatacommunities.org/id/metropolitan-district-council/leeds,Leeds City Council,31/03/2022,Communities Housing and Environment,Benefits Welfare and Poverty,Supplies and Services,Grant Related Expenditure,290,14/03/2022,2203-00530,0.00,500.00,R,REDACTED PERSONAL DATA,No
Http://opendatacommunities.org/id/metropolitan-district-council/leeds,Leeds City Council,31/03/2022,Insurance,Insurance,Supplies and Services,Insurance Claims,248,23/03/2022,2203-00531,0.00,250.00,R,REDACTED PERSONAL DATA,No
Http://opendatacommunities.org/id/metropolitan-district-council/leeds,Leeds City Council,31/03/2022,Resources,Corporate Property Management,Premises,Maintenance Of Buildings,101,04/03/2022,2203-00532,0.00,240.00,R,ADT Fire And Security Plc,No
Http://opendatacommunities.org/id/metropolitan-district-council/leeds,Leeds City Council,31/03/2022,Strategic Landlord,Property and Contracts,Premises,General Maintenance,104,24/03/2022,2203-00533,0.00,536.84,R,ADT Fire And Security Plc,No
Http://opendatacommunities.org/id/metropolitan-district-council/leeds,Leeds City Council,31/03/2022,Children and Families,Social Care,Internal Recharges,Legal Disbursements,411,04/03/2022,2203-00534,0.00,969.60,R,ADVANCED CHILD CARE ASSESSMENTS LTD,No
Http://opendatacommunities.org/id/metropolitan-district-council/leeds,Leeds City Council,31/03/2022,Children and Families,Social Care,Internal Recharges,Legal Disbursements,411,17/03/2022,2203-00535,0.00,969.60,R,ADVANCED CHILD CARE ASSESSMENTS LTD,No
Http://opendatacommunities.org/id/metropolitan-district-council/leeds,Leeds City Council,31/03/2022,Children and Families,Social Care,Internal Recharges,Legal Disbursements,411,25/03/2022,2203-00536,0.00,1109.60,R,ADVANCED CHILD CARE ASSESSMENTS LTD,No
Http://opendatacommunities.org/id/metropolitan-district-council/leeds,Leeds City Council,31/03/2022,Children and Families,Social Care,Internal Recharges,Legal Disbursements,411,25/03/2022,2203-00537,0.00,1162.10,R,ADVANCED CHILD CARE ASSESSMENTS LTD,No
Http://opendatacommunities.org/id/metropolitan-district-council/leeds,Leeds City Council,31/03/2022,Adults and Health,Services For Older People - 65 And Over,Agency Payments,Home Care,568,02/03/2022,2203-00538,0.00,671.84,R,Advanced Medcare Ltd,No
Http://opendatacommunities.org/id/metropolitan-district-council/leeds,Leeds City Council,31/03/2022,Adults and Health,Services For Older People - 65 And Over,Agency Payments,Home Care,568,02/03/2022,2203-00539,0.00,1569.10,R,Advanced Medcare Ltd,No
Http://opendatacommunities.org/id/metropolitan-district-council/leeds,Leeds City Council,31/03/2022,Adults and Health,Services For Older People - 65 And Over,Agency Payments,Home Care,568,02/03/2022,2203-00540,0.00,388.96,R,Advanced Medcare Ltd,No
Http://opendatacommunities.org/id/metropolitan-district-council/leeds,Leeds City Council,31/03/2022,Adults and Health,Services For Older People Under 65 P/Dis,Agency Payments,Home Care,568,02/03/2022,2203-00541,0.00,1485.12,R,Advanced Medcare Ltd,No
Http://opendatacommunities.org/id/metropolitan-district-council/leeds,Leeds City Council,31/03/2022,Adults and Health,Services For Older People - 65 And Over,Agency Payments,Home Care,568,02/03/2022,2203-00542,0.00,97.24,R,Advanced Medcare Ltd,No
Http://opendatacommunities.org/id/metropolitan-district-council/leeds,Leeds City Council,31/03/2022,Adults and Health,Services For Older People - 65 And Over,Agency Payments,Home Care,568,02/03/2022,2203-00543,0.00,495.04,R,Advanced Medcare Ltd,No
Http://opendatacommunities.org/id/metropolitan-district-council/leeds,Leeds City Council,31/03/2022,Adults and Health,Services For Older People - 65 And Over,Agency Payments,HCAIT Other,577,02/03/2022,2203-00544,0.00,282.88,R,Advanced Medcare Ltd,No
Http://opendatacommunities.org/id/metropolitan-district-council/leeds,Leeds City Council,31/03/2022,Adults and Health,Other Adult Services,Agency Payments,HCAIT Other,577,01/03/2022,2203-00545,0.00,2282.00,R,Advantage Healthcare Ltd,No
Http://opendatacommunities.org/id/metropolitan-district-council/leeds,Leeds City Council,31/03/2022,Adults and Health,Services For Older People - 65 And Over,Agency Payments,Home Care,568,01/03/2022,2203-00546,0.00,13020.30,R,Advantage Healthcare Ltd,No
Http://opendatacommunities.org/id/metropolitan-district-council/leeds,Leeds City Council as Accountable Body,31/03/2022,Social Services Pooled Budgets,Jcs For People With Learning Disabilitie,Agency Payments,Home Care,568,11/03/2022,2203-00547,0.00,1623.90,R,Advantage Healthcare Ltd,No
Http://opendatacommunities.org/id/metropolitan-district-council/leeds,Leeds City Council as Accountable Body,31/03/2022,Social Services Pooled Budgets,Jcs For People With Learning Disabilitie,Agency Payments,Home Care,568,18/03/2022,2203-00548,0.00,1969.40,R,Advantage Healthcare Ltd,No
Http://opendatacommunities.org/id/metropolitan-district-council/leeds,Leeds City Council as Accountable Body,31/03/2022,Social Services Pooled Budgets,Jcs For People With Learning Disabilitie,Agency Payments,Home Care,568,23/03/2022,2203-00549,0.00,1964.22,R,Advantage Healthcare Ltd,No
Http://opendatacommunities.org/id/metropolitan-district-council/leeds,Leeds City Council as Accountable Body,31/03/2022,Social Services Pooled Budgets,Jcs For People With Learning Disabilitie,Agency Payments,Home Care,568,25/03/2022,2203-00550,0.00,1969.40,R,Advantage Healthcare Ltd,No
Http://opendatacommunities.org/id/metropolitan-district-council/leeds,Leeds City Council as Accountable Body,31/03/2022,Social Services Pooled Budgets,Jcs For People With Learning Disabilitie,Agency Payments,Home Care,568,31/03/2022,2203-00551,0.00,1010.60,R,Advantage Healthcare Ltd,No
Http://opendatacommunities.org/id/metropolitan-district-council/leeds,Leeds City Council,31/03/2022,City Development,Economic Development,Supplies and Services,Grant Related Expenditure,290,15/03/2022,2203-00552,0.00,389.00,R,Adventures For Students Ltd,No
Http://opendatacommunities.org/id/metropolitan-district-council/leeds,Leeds City Council,31/03/2022,Adults and Health,Services For Older People - 65 And Over,Agency Payments,Payments To Voluntary Organisations,561,02/03/2022,2203-00553,0.00,104750.00,R,Advonet,No
Http://opendatacommunities.org/id/metropolitan-district-council/leeds,Leeds City Council,31/03/2022,Adults and Health,Services For Older People - 65 And Over,Supplies and Services,'Well Being' Large Grants Projects,230,02/03/2022,2203-00554,0.00,50000.00,R,Advonet,No
Http://opendatacommunities.org/id/metropolitan-district-council/leeds,Leeds City Council,31/03/2022,Adults and Health,Assessment And Care Management,Supplies and Services,Other Hired And Contracted Services,265,02/03/2022,2203-00555,0.00,141.90,R,Advonet,No
Http://opendatacommunities.org/id/metropolitan-district-council/leeds,Leeds City Council,31/03/2022,Adults and Health,Services For Older People - 65 And Over,Agency Payments,Payments To Voluntary Organisations,561,11/03/2022,2203-00556,0.00,104750.00,R,Advonet,No
Http://opendatacommunities.org/id/metropolitan-district-council/leeds,Leeds City Council as Accountable Body,31/03/2022,Social Services Pooled Budgets,Jcs For People With Learning Disabilitie,Supplies and Services,Other Hired And Contracted Services,265,11/03/2022,2203-00557,0.00,114.90,R,Advonet,No
Http://opendatacommunities.org/id/metropolitan-district-council/leeds,Leeds City Council as Accountable Body,31/03/2022,Social Services Pooled Budgets,Jcs For People With Learning Disabilitie,Supplies and Services,Other Hired And Contracted Services,265,11/03/2022,2203-00558,0.00,20.10,R,Advonet,No
Http://opendatacommunities.org/id/metropolitan-district-council/leeds,Leeds City Council as Accountable Body,31/03/2022,Social Services Pooled Budgets,Jcs For People With Learning Disabilitie,Supplies and Services,Other Hired And Contracted Services,265,11/03/2022,2203-00559,0.00,32.40,R,Advonet,No
Http://opendatacommunities.org/id/metropolitan-district-council/leeds,Leeds City Council,31/03/2022,Adults and Health,Services For Adults Under 65 Mental/Dis,Agency Payments,Home Care,568,11/03/2022,2203-00560,0.00,137.10,R,Advonet,No
Http://opendatacommunities.org/id/metropolitan-district-council/leeds,Leeds City Council as Accountable Body,31/03/2022,Social Services Pooled Budgets,Jcs For People With Learning Disabilitie,Supplies and Services,Other Hired And Contracted Services,265,11/03/2022,2203-00561,0.00,32.70,R,Advonet,No
Http://opendatacommunities.org/id/metropolitan-district-council/leeds,Leeds City Council,31/03/2022,Adults and Health,Services For Adults Under 65 Mental/Dis,Agency Payments,Home Care,568,11/03/2022,2203-00562,0.00,9.90,R,Advonet,No
Http://opendatacommunities.org/id/metropolitan-district-council/leeds,Leeds City Council as Accountable Body,31/03/2022,Social Services Pooled Budgets,Jcs For People With Learning Disabilitie,Supplies and Services,Other Hired And Contracted Services,265,11/03/2022,2203-00563,0.00,39.90,R,Advonet,No
Http://opendatacommunities.org/id/metropolitan-district-council/leeds,Leeds City Council as Accountable Body,31/03/2022,Social Services Pooled Budgets,Jcs For People With Learning Disabilitie,Supplies and Services,Other Hired And Contracted Services,265,18/03/2022,2203-00564,0.00,22.50,R,Advonet,No
Http://opendatacommunities.org/id/metropolitan-district-council/leeds,Leeds City Council as Accountable Body,31/03/2022,Social Services Pooled Budgets,Jcs For People With Learning Disabilitie,Supplies and Services,Other Hired And Contracted Services,265,18/03/2022,2203-00565,0.00,145.50,R,Advonet,No
Http://opendatacommunities.org/id/metropolitan-district-council/leeds,Leeds City Council as Accountable Body,31/03/2022,Social Services Pooled Budgets,Jcs For People With Learning Disabilitie,Supplies and Services,Other Hired And Contracted Services,265,18/03/2022,2203-00566,0.00,90.00,R,Advonet,No
Http://opendatacommunities.org/id/metropolitan-district-council/leeds,Leeds City Council,31/03/2022,City Development,Highways,Capital,OTHER COSTS,7,01/03/2022,2203-00567,0.00,5985.63,C,Aecom Limited,No
Http://opendatacommunities.org/id/metropolitan-district-council/leeds,Leeds City Council,31/03/2022,City Development,Highways,Capital,OTHER COSTS,7,02/03/2022,2203-00568,0.00,82037.66,C,Aecom Limited,No
Http://opendatacommunities.org/id/metropolitan-district-council/leeds,Leeds City Council,31/03/2022,City Development,Highways,Supplies and Services,Bought In Professional Services,277,08/03/2022,2203-00569,0.00,2380.53,R,Aecom Limited,No
Http://opendatacommunities.org/id/metropolitan-district-council/leeds,Leeds City Council,31/03/2022,City Development,Highways,Capital,OTHER COSTS,7,29/03/2022,2203-00570,0.00,496.01,C,Aecom Limited,No
Http://opendatacommunities.org/id/metropolitan-district-council/leeds,Leeds City Council,31/03/2022,City Development,Asset Management,Capital,OTHER COSTS,7,29/03/2022,2203-00571,0.00,17313.00,C,Aecom Limited,No
Http://opendatacommunities.org/id/metropolitan-district-council/leeds,Leeds City Council,31/03/2022,City Development,Highways,Capital,OTHER COSTS,7,30/03/2022,2203-00572,0.00,4176.00,C,Aecom Limited,No
Http://opendatacommunities.org/id/metropolitan-district-council/leeds,Leeds City Council,31/03/2022,Adults and Health,Services For Older People - 65 And Over,Agency Payments,Home Care,568,01/03/2022,2203-00573,0.00,5094.90,R,Aegis Care Solutions Ltd,No
Http://opendatacommunities.org/id/metropolitan-district-council/leeds,Leeds City Council,31/03/2022,Adults and Health,Services For Adults Under 65 Mental/Dis,Agency Payments,Home Care,568,04/03/2022,2203-00574,0.00,1204.02,R,Aegis Care Solutions Ltd,No
Http://opendatacommunities.org/id/metropolitan-district-council/leeds,Leeds City Council,31/03/2022,Adults and Health,Services For Adults Under 65 Mental/Dis,Agency Payments,Home Care,568,04/03/2022,2203-00575,0.00,751.60,R,Aegis Care Solutions Ltd,No
Http://opendatacommunities.org/id/metropolitan-district-council/leeds,Leeds City Council,31/03/2022,Adults and Health,Services For Adults Under 65 Mental/Dis,Agency Payments,Home Care,568,04/03/2022,2203-00576,0.00,475.20,R,Aegis Care Solutions Ltd,No
Http://opendatacommunities.org/id/metropolitan-district-council/leeds,Leeds City Council,31/03/2022,Adults and Health,Services For Adults Under 65 Mental/Dis,Agency Payments,Home Care,568,04/03/2022,2203-00577,0.00,1224.27,R,Aegis Care Solutions Ltd,No
Http://opendatacommunities.org/id/metropolitan-district-council/leeds,Leeds City Council,31/03/2022,Adults and Health,Services For Adults Under 65 Mental/Dis,Agency Payments,Home Care,568,04/03/2022,2203-00578,0.00,4590.40,R,Aegis Care Solutions Ltd,No
Http://opendatacommunities.org/id/metropolitan-district-council/leeds,Leeds City Council,31/03/2022,Adults and Health,Services For Adults Under 65 Mental/Dis,Agency Payments,Home Care,568,04/03/2022,2203-00579,0.00,2036.12,R,Aegis Care Solutions Ltd,No
Http://opendatacommunities.org/id/metropolitan-district-council/leeds,Leeds City Council,31/03/2022,Adults and Health,Services For Adults Under 65 Mental/Dis,Agency Payments,Home Care,568,04/03/2022,2203-00580,0.00,1308.00,R,Aegis Care Solutions Ltd,No
Http://opendatacommunities.org/id/metropolitan-district-council/leeds,Leeds City Council,31/03/2022,Adults and Health,Services For Adults Under 65 Mental/Dis,Agency Payments,Home Care,568,04/03/2022,2203-00581,0.00,1769.10,R,Aegis Care Solutions Ltd,No
Http://opendatacommunities.org/id/metropolitan-district-council/leeds,Leeds City Council,31/03/2022,Adults and Health,Services For Adults Under 65 Mental/Dis,Agency Payments,Home Care,568,04/03/2022,2203-00582,0.00,1147.60,R,Aegis Care Solutions Ltd,No
Http://opendatacommunities.org/id/metropolitan-district-council/leeds,Leeds City Council,31/03/2022,Adults and Health,Services For Adults Under 65 Mental/Dis,Agency Payments,Home Care,568,04/03/2022,2203-00583,0.00,284.80,R,Aegis Care Solutions Ltd,No
Http://opendatacommunities.org/id/metropolitan-district-council/leeds,Leeds City Council,31/03/2022,Adults and Health,Services For Older People - 65 And Over,Agency Payments,Home Care,568,16/03/2022,2203-00584,0.00,31548.08,R,Aegis Care Solutions Ltd,No
Http://opendatacommunities.org/id/metropolitan-district-council/leeds,Leeds City Council,31/03/2022,Adults and Health,Services For Older People - 65 And Over,Agency Payments,HCAIT Other,577,16/03/2022,2203-00585,0.00,345.06,R,Aegis Care Solutions Ltd,No
Http://opendatacommunities.org/id/metropolitan-district-council/leeds,Leeds City Council,31/03/2022,Adults and Health,Services For Older People Under 65 P/Dis,Agency Payments,Home Care,568,16/03/2022,2203-00586,0.00,9394.79,R,Aegis Care Solutions Ltd,No
Http://opendatacommunities.org/id/metropolitan-district-council/leeds,Leeds City Council as Accountable Body,31/03/2022,Social Services Pooled Budgets,Jcs For People With Learning Disabilitie,Agency Payments,Home Care,568,16/03/2022,2203-00587,0.00,1977.92,R,Aegis Care Solutions Ltd,No
Http://opendatacommunities.org/id/metropolitan-district-council/leeds,Leeds City Council,31/03/2022,City Development,Economic Development,Supplies and Services,Grant Related Expenditure,290,15/03/2022,2203-00588,0.00,4018.00,R,Aerotech Abrasives Group,No
Http://opendatacommunities.org/id/metropolitan-district-council/leeds,Leeds City Council as Accountable Body,31/03/2022,Social Services Pooled Budgets,Jcs For People With Learning Disabilitie,Agency Payments,Day Centre,564,02/03/2022,2203-00589,0.00,14319.00,R,Affinity Trust,No
Http://opendatacommunities.org/id/metropolitan-district-council/leeds,Leeds City Council as Accountable Body,31/03/2022,Social Services Pooled Budgets,Jcs For People With Learning Disabilitie,Agency Payments,Day Centre,564,02/03/2022,2203-00590,0.00,9142.77,R,Affinity Trust,No
Http://opendatacommunities.org/id/metropolitan-district-council/leeds,Leeds City Council as Accountable Body,31/03/2022,Social Services Pooled Budgets,Jcs For People With Learning Disabilitie,Agency Payments,Day Centre,564,15/03/2022,2203-00591,0.00,15494.88,R,Affinity Trust,No
Http://opendatacommunities.org/id/metropolitan-district-council/leeds,Leeds City Council,31/03/2022,Adults and Health,Assessment And Care Management,Agency Payments,Home Care,568,15/03/2022,2203-00592,0.00,679.60,R,Affinity Trust,No
Http://opendatacommunities.org/id/metropolitan-district-council/leeds,Leeds City Council,31/03/2022,Adults and Health,Services For Older People - 65 And Over,Agency Payments,Home Care,568,15/03/2022,2203-00593,0.00,543.68,R,Affinity Trust,No
Http://opendatacommunities.org/id/metropolitan-district-council/leeds,Leeds City Council,31/03/2022,Adults and Health,Assessment And Care Management,Agency Payments,Home Care,568,16/03/2022,2203-00594,0.00,135.92,R,Affinity Trust,No
Http://opendatacommunities.org/id/metropolitan-district-council/leeds,Leeds City Council,31/03/2022,Adults and Health,Services For Adults Under 65 Mental/Dis,Agency Payments,Home Care,568,16/03/2022,2203-00595,0.00,543.68,R,Affinity Trust,No
Http://opendatacommunities.org/id/metropolitan-district-council/leeds,Leeds City Council,31/03/2022,Adults and Health,Services For Adults Under 65 Mental/Dis,Agency Payments,HCAIT Community Support,575,16/03/2022,2203-00596,0.00,339.80,R,Affinity Trust,No
Http://opendatacommunities.org/id/metropolitan-district-council/leeds,Leeds City Council,31/03/2022,Adults and Health,Services For Older People - 65 And Over,Agency Payments,HCAIT Community Support,575,16/03/2022,2203-00597,0.00,611.64,R,Affinity Trust,No
Http://opendatacommunities.org/id/metropolitan-district-council/leeds,Leeds City Council,31/03/2022,Adults and Health,Services For Older People Under 65 P/Dis,Agency Payments,Home Care,568,16/03/2022,2203-00598,0.00,815.52,R,Affinity Trust,No
Http://opendatacommunities.org/id/metropolitan-district-council/leeds,Leeds City Council,31/03/2022,Adults and Health,Services For Older People Under 65 P/Dis,Agency Payments,HCAIT Community Support,575,16/03/2022,2203-00599,0.00,747.56,R,Affinity Trust,No
Http://opendatacommunities.org/id/metropolitan-district-council/leeds,Leeds City Council as Accountable Body,31/03/2022,Social Services Pooled Budgets,Jcs For People With Learning Disabilitie,Agency Payments,Home Care,568,16/03/2022,2203-00600,0.00,339.80,R,Affinity Trust,No
Http://opendatacommunities.org/id/metropolitan-district-council/leeds,Leeds City Council,31/03/2022,Adults and Health,Services For Older People - 65 And Over,Agency Payments,Home Care,568,16/03/2022,2203-00601,0.00,12650.41,R,Affinity Trust,No
Http://opendatacommunities.org/id/metropolitan-district-council/leeds,Leeds City Council as Accountable Body,31/03/2022,Social Services Pooled Budgets,Jcs For People With Learning Disabilitie,Agency Payments,Day Centre,564,25/03/2022,2203-00602,0.00,19467.70,R,Affinity Trust,No
Http://opendatacommunities.org/id/metropolitan-district-council/leeds,Leeds City Council as Accountable Body,31/03/2022,Social Services Pooled Budgets,Jcs For People With Learning Disabilitie,Agency Payments,Sheltered Accommodation,569,02/03/2022,2203-00603,0.00,139754.78,R,Affinity Trust North Divisional Office,No
Http://opendatacommunities.org/id/metropolitan-district-council/leeds,Leeds City Council as Accountable Body,31/03/2022,Social Services Pooled Budgets,Jcs For People With Learning Disabilitie,Agency Payments,Sheltered Accommodation,569,30/03/2022,2203-00604,0.00,121494.65,R,Affinity Trust North Divisional Office,No
Http://opendatacommunities.org/id/metropolitan-district-council/leeds,Leeds City Council,31/03/2022,Communities Housing and Environment,Parks and Countryside,Transport,Hire Of Movable Plant & Machinery,315,24/02/2022,2203-00605,0.00,3800.00,R,Afi Uplift,Yes
Http://opendatacommunities.org/id/metropolitan-district-council/leeds,Leeds City Council,31/03/2022,Communities Housing and Environment,Elections Licensing and Registration,External Income,Admissions Booking Fees & Ticket Sales,933,01/03/2022,2203-00606,0.00,260.00,R,REDACTED PERSONAL DATA,No
Http://opendatacommunities.org/id/metropolitan-district-council/leeds,Leeds City Council,31/03/2022,Communities Housing and Environment,Customer Access,Supplies and Services,Other Hired And Contracted Services,265,02/03/2022,2203-00607,0.00,300.00,R,Agency For Good Ltd,No
Http://opendatacommunities.org/id/metropolitan-district-council/leeds,Leeds City Council,31/03/2022,Communities Housing and Environment,Customer Access,Supplies and Services,Other Hired And Contracted Services,265,23/03/2022,2203-00608,0.00,300.00,R,Agency For Good Ltd,No
Http://opendatacommunities.org/id/metropolitan-district-council/leeds,Leeds City Council,31/03/2022,Communities Housing and Environment,Benefits Welfare and Poverty,Supplies and Services,Grant Related Expenditure,298,07/03/2022,2203-00609,0.00,500.00,R,REDACTED PERSONAL DATA,No
Http://opendatacommunities.org/id/metropolitan-district-council/leeds,Leeds City Council,31/03/2022,Communities Housing and Environment,Benefits Welfare and Poverty,Supplies and Services,Grant Related Expenditure,290,09/03/2022,2203-00610,0.00,500.00,R,REDACTED PERSONAL DATA,No
Http://opendatacommunities.org/id/metropolitan-district-council/leeds,Leeds City Council,31/03/2022,Communities Housing and Environment,Benefits Welfare and Poverty,Supplies and Services,Grant Related Expenditure,298,01/03/2022,2203-00611,0.00,500.00,R,REDACTED PERSONAL DATA,No
Http://opendatacommunities.org/id/metropolitan-district-council/leeds,Leeds City Council,31/03/2022,Communities Housing and Environment,Benefits Welfare and Poverty,Supplies and Services,Grant Related Expenditure,298,21/03/2022,2203-00612,0.00,500.00,R,REDACTED PERSONAL DATA,No
Http://opendatacommunities.org/id/metropolitan-district-council/leeds,Leeds City Council,31/03/2022,Communities Housing and Environment,Parks and Countryside,Supplies and Services,Operational Materials,205,21/02/2022,2203-00613,0.00,139.45,R,Agrovista UK Ltd,Yes
Http://opendatacommunities.org/id/metropolitan-district-council/leeds,Leeds City Council,31/03/2022,City Development,Recreation,External Income,Sporting & Other Recreational Fees,928,22/03/2022,2203-00614,0.00,162.17,R,REDACTED PERSONAL DATA,No
Http://opendatacommunities.org/id/metropolitan-district-council/leeds,Leeds City Council,31/03/2022,Communities Housing and Environment,Benefits Welfare and Poverty,Supplies and Services,Grant Related Expenditure,298,15/03/2022,2203-00615,0.00,500.00,R,REDACTED PERSONAL DATA,No
Http://opendatacommunities.org/id/metropolitan-district-council/leeds,Leeds City Council,31/03/2022,Communities Housing and Environment,Customer Access,Supplies and Services,Bought In Professional Services,277,02/03/2022,2203-00616,0.00,14.10,R,Ahmed Moustafa Moustafa Mousa,No
Http://opendatacommunities.org/id/metropolitan-district-council/leeds,Leeds City Council,31/03/2022,Communities Housing and Environment,Benefits Welfare and Poverty,Supplies and Services,Grant Related Expenditure,298,08/03/2022,2203-00617,0.00,500.00,R,REDACTED PERSONAL DATA,No
Http://opendatacommunities.org/id/metropolitan-district-council/leeds,Leeds City Council,31/03/2022,Communities Housing and Environment,Benefits Welfare and Poverty,Supplies and Services,Grant Related Expenditure,298,09/03/2022,2203-00618,0.00,500.00,R,REDACTED PERSONAL DATA,No
Http://opendatacommunities.org/id/metropolitan-district-council/leeds,Leeds City Council,31/03/2022,City Development,Economic Development,Supplies and Services,Grant Related Expenditure,290,21/03/2022,2203-00619,0.00,1000.00,R,AI Tech Events,No
Http://opendatacommunities.org/id/metropolitan-district-council/leeds,Leeds City Council,31/03/2022,City Development,Economic Development,Supplies and Services,Grant Related Expenditure,298,08/03/2022,2203-00620,0.00,6000.00,R,AIA Solicitors,No
Http://opendatacommunities.org/id/metropolitan-district-council/leeds,Leeds City Council,31/03/2022,Communities Housing and Environment,Benefits Welfare and Poverty,Supplies and Services,Grant Related Expenditure,298,09/03/2022,2203-00621,0.00,500.00,R,REDACTED PERSONAL DATA,No
Http://opendatacommunities.org/id/metropolitan-district-council/leeds,Leeds City Council,31/03/2022,Communities Housing and Environment,Benefits Welfare and Poverty,Supplies and Services,Grant Related Expenditure,298,02/03/2022,2203-00622,0.00,500.00,R,REDACTED PERSONAL DATA,No
Http://opendatacommunities.org/id/metropolitan-district-council/leeds,Leeds City Council as Accountable Body,31/03/2022,Social Services Pooled Budgets,Leeds Community Equip Store Pooled Budgt,Supplies and Services,Other Equipment,203,01/03/2022,2203-00623,0.00,3600.00,R,AIDAPT BATHROOMS LTD,No
Http://opendatacommunities.org/id/metropolitan-district-council/leeds,Leeds City Council as Accountable Body,31/03/2022,Social Services Pooled Budgets,Leeds Community Equip Store Pooled Budgt,Supplies and Services,Other Equipment,203,01/03/2022,2203-00624,0.00,570.00,R,AIDAPT BATHROOMS LTD,No
Http://opendatacommunities.org/id/metropolitan-district-council/leeds,Leeds City Council as Accountable Body,31/03/2022,Social Services Pooled Budgets,Leeds Community Equip Store Pooled Budgt,Supplies and Services,Other Equipment,203,01/03/2022,2203-00625,0.00,3822.00,R,AIDAPT BATHROOMS LTD,No
Http://opendatacommunities.org/id/metropolitan-district-council/leeds,Leeds City Council as Accountable Body,31/03/2022,Social Services Pooled Budgets,Leeds Community Equip Store Pooled Budgt,Supplies and Services,Other Equipment,203,04/03/2022,2203-00626,0.00,4464.00,R,AIDAPT BATHROOMS LTD,No
Http://opendatacommunities.org/id/metropolitan-district-council/leeds,Leeds City Council as Accountable Body,31/03/2022,Social Services Pooled Budgets,Leeds Community Equip Store Pooled Budgt,Supplies and Services,Other Equipment,203,11/03/2022,2203-00627,0.00,1764.00,R,AIDAPT BATHROOMS LTD,No
Http://opendatacommunities.org/id/metropolitan-district-council/leeds,Leeds City Council as Accountable Body,31/03/2022,Social Services Pooled Budgets,Leeds Community Equip Store Pooled Budgt,Supplies and Services,Other Equipment,203,25/03/2022,2203-00628,0.00,-430.00,R,AIDAPT BATHROOMS LTD,No
Http://opendatacommunities.org/id/metropolitan-district-council/leeds,Leeds City Council as Accountable Body,31/03/2022,Social Services Pooled Budgets,Leeds Community Equip Store Pooled Budgt,Supplies and Services,Other Equipment,203,25/03/2022,2203-00629,0.00,540.00,R,AIDAPT BATHROOMS LTD,No
Http://opendatacommunities.org/id/metropolitan-district-council/leeds,Leeds City Council as Accountable Body,31/03/2022,Social Services Pooled Budgets,Leeds Community Equip Store Pooled Budgt,Supplies and Services,Other Equipment,203,25/03/2022,2203-00630,0.00,810.00,R,AIDAPT BATHROOMS LTD,No
Http://opendatacommunities.org/id/metropolitan-district-council/leeds,Leeds City Council as Accountable Body,31/03/2022,Social Services Pooled Budgets,Leeds Community Equip Store Pooled Budgt,Supplies and Services,Other Equipment,203,25/03/2022,2203-00631,0.00,540.00,R,AIDAPT BATHROOMS LTD,No
Http://opendatacommunities.org/id/metropolitan-district-council/leeds,Leeds City Council as Accountable Body,31/03/2022,Social Services Pooled Budgets,Leeds Community Equip Store Pooled Budgt,Supplies and Services,Other Equipment,203,25/03/2022,2203-00632,0.00,5337.50,R,AIDAPT BATHROOMS LTD,No
Http://opendatacommunities.org/id/metropolitan-district-council/leeds,Leeds City Council as Accountable Body,31/03/2022,Social Services Pooled Budgets,Leeds Community Equip Store Pooled Budgt,Supplies and Services,Other Equipment,203,28/03/2022,2203-00633,0.00,720.00,R,AIDAPT BATHROOMS LTD,No
Http://opendatacommunities.org/id/metropolitan-district-council/leeds,Leeds City Council as Accountable Body,31/03/2022,Social Services Pooled Budgets,Leeds Community Equip Store Pooled Budgt,Supplies and Services,Other Equipment,203,28/03/2022,2203-00634,0.00,8568.00,R,AIDAPT BATHROOMS LTD,No
Http://opendatacommunities.org/id/metropolitan-district-council/leeds,Leeds City Council as Accountable Body,31/03/2022,Social Services Pooled Budgets,Leeds Community Equip Store Pooled Budgt,Supplies and Services,Other Equipment,203,30/03/2022,2203-00635,0.00,7840.00,R,AIDAPT BATHROOMS LTD,No
Http://opendatacommunities.org/id/metropolitan-district-council/leeds,Leeds City Council,31/03/2022,Communities Housing and Environment,Benefits Welfare and Poverty,Supplies and Services,Grant Related Expenditure,298,07/03/2022,2203-00636,0.00,500.00,R,REDACTED PERSONAL DATA,No
Http://opendatacommunities.org/id/metropolitan-district-council/leeds,Leeds City Council,31/03/2022,Communities Housing and Environment,Benefits Welfare and Poverty,Supplies and Services,Grant Related Expenditure,298,08/03/2022,2203-00637,0.00,500.00,R,REDACTED PERSONAL DATA,No
Http://opendatacommunities.org/id/metropolitan-district-council/leeds,Leeds City Council,31/03/2022,Children and Families,Social Care,Supplies and Services,Conference Meetings,253,24/03/2022,2203-00638,0.00,325.00,R,AIM PROJECT,No
Http://opendatacommunities.org/id/metropolitan-district-council/leeds,Leeds City Council,31/03/2022,Children and Families,Social Care,Supplies and Services,Conference Meetings,253,24/03/2022,2203-00639,0.00,325.00,R,AIM PROJECT,No
Http://opendatacommunities.org/id/metropolitan-district-council/leeds,Leeds City Council,31/03/2022,Communities Housing and Environment,Car Parking Services,External Income,Penalties Fines & Car Parking Charges,934,24/03/2022,2203-00640,0.00,30.00,R,REDACTED PERSONAL DATA,No
Http://opendatacommunities.org/id/metropolitan-district-council/leeds,Leeds City Council,31/03/2022,Communities Housing and Environment,Benefits Welfare and Poverty,Supplies and Services,Grant Related Expenditure,298,31/03/2022,2203-00641,0.00,500.00,R,REDACTED PERSONAL DATA,No
Http://opendatacommunities.org/id/metropolitan-district-council/leeds,Leeds City Council,31/03/2022,Communities Housing and Environment,Benefits Welfare and Poverty,Supplies and Services,Grant Related Expenditure,290,15/03/2022,2203-00642,0.00,500.00,R,REDACTED PERSONAL DATA,No
Http://opendatacommunities.org/id/metropolitan-district-council/leeds,Leeds City Council,31/03/2022,Resources,Commercial Services,Supplies and Services,Other Hired And Contracted Services,265,18/03/2022,2203-00643,0.00,242.90,R,REDACTED PERSONAL DATA,No
Http://opendatacommunities.org/id/metropolitan-district-council/leeds,Leeds City Council,31/03/2022,Resources,Commercial Services,Supplies and Services,Other Hired And Contracted Services,265,30/03/2022,2203-00644,0.00,222.40,R,REDACTED PERSONAL DATA,No
Http://opendatacommunities.org/id/metropolitan-district-council/leeds,Leeds City Council,31/03/2022,Children and Families,Social Care,Agency Payments,Contact,548,23/03/2022,2203-00645,0.00,5.20,R,REDACTED PERSONAL DATA,No
Http://opendatacommunities.org/id/metropolitan-district-council/leeds,Leeds City Council,31/03/2022,Resources,Leeds Building Services,Supplies and Services,Operational Materials,205,02/03/2022,2203-00646,0.00,814.45,R,Air Conditioning Accessories,No
Http://opendatacommunities.org/id/metropolitan-district-council/leeds,Leeds City Council,31/03/2022,Resources,Leeds Building Services,Supplies and Services,Operational Materials,205,18/03/2022,2203-00647,0.00,285.37,R,Air Conditioning Accessories,No
Http://opendatacommunities.org/id/metropolitan-district-council/leeds,Leeds City Council,31/03/2022,Resources,Leeds Building Services,Supplies and Services,Operational Materials,205,23/03/2022,2203-00648,0.00,3883.43,R,Air Conditioning Accessories,No
Http://opendatacommunities.org/id/metropolitan-district-council/leeds,Leeds City Council,31/03/2022,Resources,Leeds Building Services,Supplies and Services,Operational Furniture And Equipment,203,24/03/2022,2203-00649,0.00,45.96,R,Air Conditioning Accessories,No
Http://opendatacommunities.org/id/metropolitan-district-council/leeds,Leeds City Council,31/03/2022,Communities Housing and Environment,Environmental Health,Supplies and Services,Other Hired And Contracted Services,265,04/03/2022,2203-00650,0.00,11.25,R,AIR LIQUIDE UK,No
Http://opendatacommunities.org/id/metropolitan-district-council/leeds,Leeds City Council,31/03/2022,Communities Housing and Environment,Environmental Health,Supplies and Services,Other Hired And Contracted Services,265,04/03/2022,2203-00651,0.00,11.25,R,AIR LIQUIDE UK,No
Http://opendatacommunities.org/id/metropolitan-district-council/leeds,Leeds City Council,31/03/2022,Communities Housing and Environment,Environmental Health,Supplies and Services,Other Hired And Contracted Services,265,04/03/2022,2203-00652,0.00,17.38,R,AIR LIQUIDE UK,No
Http://opendatacommunities.org/id/metropolitan-district-council/leeds,Leeds City Council,31/03/2022,Communities Housing and Environment,Environmental Health,Supplies and Services,Other Hired And Contracted Services,265,04/03/2022,2203-00653,0.00,78.75,R,AIR LIQUIDE UK,No
Http://opendatacommunities.org/id/metropolitan-district-council/leeds,Leeds City Council,31/03/2022,Communities Housing and Environment,Environmental Health,Supplies and Services,Other Hired And Contracted Services,265,30/03/2022,2203-00654,0.00,11.25,R,AIR LIQUIDE UK,No
Http://opendatacommunities.org/id/metropolitan-district-council/leeds,Leeds City Council,31/03/2022,Communities Housing and Environment,Environmental Health,Supplies and Services,Other Hired And Contracted Services,265,30/03/2022,2203-00655,0.00,11.25,R,AIR LIQUIDE UK,No
Http://opendatacommunities.org/id/metropolitan-district-council/leeds,Leeds City Council,31/03/2022,Communities Housing and Environment,Environmental Health,Supplies and Services,Other Hired And Contracted Services,265,30/03/2022,2203-00656,0.00,17.38,R,AIR LIQUIDE UK,No
Http://opendatacommunities.org/id/metropolitan-district-council/leeds,Leeds City Council,31/03/2022,Communities Housing and Environment,Environmental Health,Supplies and Services,Other Hired And Contracted Services,265,30/03/2022,2203-00657,0.00,78.75,R,AIR LIQUIDE UK,No
Http://opendatacommunities.org/id/metropolitan-district-council/leeds,Leeds City Council,31/03/2022,Children and Families,Social Care,Supplies and Services,Holidays-  Service Users,284,10/02/2022,2203-00658,0.00,389.41,R,Airbnb * Hm4zztnbmd,Yes
Http://opendatacommunities.org/id/metropolitan-district-council/leeds,Leeds City Council,31/03/2022,Communities Housing and Environment,Parks and Countryside,Supplies and Services,Other Hired And Contracted Services,265,01/03/2022,2203-00659,0.00,2207.00,R,Aire Valley Tree Services Ltd,No
Http://opendatacommunities.org/id/metropolitan-district-council/leeds,Leeds City Council,31/03/2022,Communities Housing and Environment,Parks and Countryside,Supplies and Services,Other Hired And Contracted Services,265,17/03/2022,2203-00660,0.00,1800.00,R,Aire Valley Tree Services Ltd,No
Http://opendatacommunities.org/id/metropolitan-district-council/leeds,Leeds City Council,31/03/2022,Communities Housing and Environment,Parks and Countryside,Supplies and Services,Other Hired And Contracted Services,265,25/03/2022,2203-00661,0.00,1163.00,R,Aire Valley Tree Services Ltd,No
Http://opendatacommunities.org/id/metropolitan-district-council/leeds,Leeds City Council,31/03/2022,Adults and Health,Services For Older People - 65 And Over,Agency Payments,Residential Care Dementia,571,02/03/2022,2203-00662,0.00,44378.60,R,Aire View Residential Home,No
Http://opendatacommunities.org/id/metropolitan-district-council/leeds,Leeds City Council,31/03/2022,Adults and Health,Services For Older People - 65 And Over,Agency Payments,Residential,580,02/03/2022,2203-00663,0.00,1755.20,R,Aire View Residential Home,No
Http://opendatacommunities.org/id/metropolitan-district-council/leeds,Leeds City Council,31/03/2022,Adults and Health,Services For Older People - 65 And Over,Agency Payments,Nursing Home,570,16/03/2022,2203-00664,0.00,5189.23,R,Aire View Residential Home,No
Http://opendatacommunities.org/id/metropolitan-district-council/leeds,Leeds City Council,31/03/2022,Adults and Health,Services For Older People - 65 And Over,Agency Payments,Residential Care Dementia,571,30/03/2022,2203-00665,0.00,39278.97,R,Aire View Residential Home,No
Http://opendatacommunities.org/id/metropolitan-district-council/leeds,Leeds City Council,31/03/2022,Adults and Health,Services For Older People - 65 And Over,Agency Payments,Residential,580,30/03/2022,2203-00666,0.00,1755.20,R,Aire View Residential Home,No
Http://opendatacommunities.org/id/metropolitan-district-council/leeds,Leeds City Council,31/03/2022,City Development,Recreation,Supplies and Services,Food & Drink,231,09/02/2022,2203-00667,0.00,2.46,R,Aireborough Leisure Centr,Yes
Http://opendatacommunities.org/id/metropolitan-district-council/leeds,Leeds City Council,31/03/2022,Adults and Health,Services For Older People - 65 And Over,Agency Payments,Residential Care Dementia,571,30/03/2022,2203-00668,0.00,781.37,R,Airedale Care Home,No
Http://opendatacommunities.org/id/metropolitan-district-council/leeds,Leeds City Council,31/03/2022,Resources,Commercial Services,Supplies and Services,Operational Furniture And Equipment,203,04/03/2022,2203-00669,0.00,2080.00,R,AIREDALE CATERING EQUIPMENT LTD,No
Http://opendatacommunities.org/id/metropolitan-district-council/leeds,Leeds City Council,31/03/2022,Resources,Commercial Services,Supplies and Services,Operational Furniture And Equipment,203,04/03/2022,2203-00670,0.00,1310.00,R,AIREDALE CATERING EQUIPMENT LTD,No
Http://opendatacommunities.org/id/metropolitan-district-council/leeds,Leeds City Council,31/03/2022,Resources,Commercial Services,Supplies and Services,Operational Furniture And Equipment,203,11/03/2022,2203-00671,0.00,1396.00,R,AIREDALE CATERING EQUIPMENT LTD,No
Http://opendatacommunities.org/id/metropolitan-district-council/leeds,Leeds City Council,31/03/2022,Resources,Commercial Services,Premises,Fixtures & Fittings,131,11/03/2022,2203-00672,0.00,2850.00,R,AIREDALE CATERING EQUIPMENT LTD,No
Http://opendatacommunities.org/id/metropolitan-district-council/leeds,Leeds City Council,31/03/2022,Adults and Health,Services For Older People - 65 And Over,Supplies and Services,Operational Furniture And Equipment,203,21/03/2022,2203-00673,0.00,6696.00,R,AIREDALE CATERING EQUIPMENT LTD,No
Http://opendatacommunities.org/id/metropolitan-district-council/leeds,Leeds City Council,31/03/2022,Resources,Commercial Services,Supplies and Services,Operational Furniture And Equipment,203,24/03/2022,2203-00674,0.00,2685.00,R,AIREDALE CATERING EQUIPMENT LTD,No
Http://opendatacommunities.org/id/metropolitan-district-council/leeds,Leeds City Council,31/03/2022,Resources,Commercial Services,Premises,Fixtures & Fittings,131,25/03/2022,2203-00675,0.00,22900.00,R,AIREDALE CATERING EQUIPMENT LTD,No
Http://opendatacommunities.org/id/metropolitan-district-council/leeds,Leeds City Council,31/03/2022,Resources,Leeds Building Services,Supplies and Services,Other Hired And Contracted Services,265,25/03/2022,2203-00676,0.00,3871.00,R,AIREDALE CATERING EQUIPMENT LTD,No
Http://opendatacommunities.org/id/metropolitan-district-council/leeds,Leeds City Council,31/03/2022,Adults and Health,Services For Older People - 65 And Over,Agency Payments,Nursing Home,570,01/03/2022,2203-00677,0.00,3962.70,R,Airedale Residential Home,No
Http://opendatacommunities.org/id/metropolitan-district-council/leeds,Leeds City Council,31/03/2022,Adults and Health,Services For Older People - 65 And Over,Agency Payments,Residential Care Dementia,571,02/03/2022,2203-00678,0.00,3065.80,R,Airedale Residential Home,No
Http://opendatacommunities.org/id/metropolitan-district-council/leeds,Leeds City Council,31/03/2022,Adults and Health,Services For Older People - 65 And Over,Agency Payments,Residential,580,02/03/2022,2203-00679,0.00,17308.39,R,Airedale Residential Home,No
Http://opendatacommunities.org/id/metropolitan-district-council/leeds,Leeds City Council,31/03/2022,Adults and Health,Services For Older People Under 65 P/Dis,Agency Payments,Residential,580,02/03/2022,2203-00680,0.00,1838.08,R,Airedale Residential Home,No
Http://opendatacommunities.org/id/metropolitan-district-council/leeds,Leeds City Council,31/03/2022,Adults and Health,Services For Older People - 65 And Over,Agency Payments,Residential Care Dementia,571,30/03/2022,2203-00681,0.00,16023.54,R,Airedale Residential Home,No
Http://opendatacommunities.org/id/metropolitan-district-council/leeds,Leeds City Council,31/03/2022,Adults and Health,Services For Older People - 65 And Over,Agency Payments,Residential,580,30/03/2022,2203-00682,0.00,16041.92,R,Airedale Residential Home,No
Http://opendatacommunities.org/id/metropolitan-district-council/leeds,Leeds City Council,31/03/2022,Adults and Health,Services For Older People Under 65 P/Dis,Agency Payments,Residential,580,30/03/2022,2203-00683,0.00,93.75,R,Airedale Residential Home,No
Http://opendatacommunities.org/id/metropolitan-district-council/leeds,Leeds City Council,31/03/2022,City Development,Employment & Skills,Agency Payments,Contributions To Partnerships,544,24/03/2022,2203-00684,0.00,5914.57,R,Airnow Cybersecurity Limited,No
Http://opendatacommunities.org/id/metropolitan-district-council/leeds,Leeds City Council,31/03/2022,City Development,Employment & Skills,Agency Payments,Contributions To Partnerships,544,24/03/2022,2203-00685,0.00,1010.75,R,Airnow Cybersecurity Limited,No
Http://opendatacommunities.org/id/metropolitan-district-council/leeds,Leeds City Council,31/03/2022,Children and Families,Social Care,Transport,Public Transport Expenses,310,08/02/2022,2203-00686,0.00,10.45,R,Airpay 40720682-Amber Car,Yes
Http://opendatacommunities.org/id/metropolitan-district-council/leeds,Leeds City Council,31/03/2022,Communities Housing and Environment,Community Safety,Supplies and Services,Bought In Professional Services,277,04/03/2022,2203-00687,0.00,1044.80,R,AIRWAVE SOLUTIONS LTD,No
Http://opendatacommunities.org/id/metropolitan-district-council/leeds,Leeds City Council,31/03/2022,Adults and Health,Services For Adults Under 65 Mental/Dis,Agency Payments,Fees - Level 4,520,03/03/2022,2203-00688,0.00,175.00,R,AIT Mitra Limited,No
Http://opendatacommunities.org/id/metropolitan-district-council/leeds,Leeds City Council,31/03/2022,Adults and Health,Services For Adults Under 65 Mental/Dis,Agency Payments,Fees - Level 4,520,10/03/2022,2203-00689,0.00,175.00,R,AIT Mitra Limited,No
Http://opendatacommunities.org/id/metropolitan-district-council/leeds,Leeds City Council,31/03/2022,Adults and Health,Services For Adults Under 65 Mental/Dis,Agency Payments,Fees - Level 4,520,10/03/2022,2203-00690,0.00,175.00,R,AIT Mitra Limited,No
Http://opendatacommunities.org/id/metropolitan-district-council/leeds,Leeds City Council,31/03/2022,Adults and Health,Services For Adults Under 65 Mental/Dis,Agency Payments,Fees - Level 4,520,16/03/2022,2203-00691,0.00,175.00,R,AIT Mitra Limited,No
Http://opendatacommunities.org/id/metropolitan-district-council/leeds,Leeds City Council,31/03/2022,Adults and Health,Services For Adults Under 65 Mental/Dis,Agency Payments,Fees - Level 4,520,17/03/2022,2203-00692,0.00,261.00,R,AIT Mitra Limited,No
Http://opendatacommunities.org/id/metropolitan-district-council/leeds,Leeds City Council,31/03/2022,Adults and Health,Services For Adults Under 65 Mental/Dis,Agency Payments,Fees - Level 4,520,17/03/2022,2203-00693,0.00,175.00,R,AIT Mitra Limited,No
Http://opendatacommunities.org/id/metropolitan-district-council/leeds,Leeds City Council,31/03/2022,Adults and Health,Services For Adults Under 65 Mental/Dis,Agency Payments,Fees - Level 4,520,17/03/2022,2203-00694,0.00,175.00,R,AIT Mitra Limited,No
Http://opendatacommunities.org/id/metropolitan-district-council/leeds,Leeds City Council,31/03/2022,Adults and Health,Services For Adults Under 65 Mental/Dis,Agency Payments,Fees - Level 4,520,17/03/2022,2203-00695,0.00,175.00,R,AIT Mitra Limited,No
Http://opendatacommunities.org/id/metropolitan-district-council/leeds,Leeds City Council,31/03/2022,Adults and Health,Services For Adults Under 65 Mental/Dis,Agency Payments,Fees - Level 4,520,17/03/2022,2203-00696,0.00,175.00,R,AIT Mitra Limited,No
Http://opendatacommunities.org/id/metropolitan-district-council/leeds,Leeds City Council,31/03/2022,Adults and Health,Services For Adults Under 65 Mental/Dis,Agency Payments,Fees - Level 4,520,17/03/2022,2203-00697,0.00,175.00,R,AIT Mitra Limited,No
Http://opendatacommunities.org/id/metropolitan-district-council/leeds,Leeds City Council,31/03/2022,Adults and Health,Services For Adults Under 65 Mental/Dis,Agency Payments,Fees - Level 4,520,17/03/2022,2203-00698,0.00,175.00,R,AIT Mitra Limited,No
Http://opendatacommunities.org/id/metropolitan-district-council/leeds,Leeds City Council,31/03/2022,Adults and Health,Services For Adults Under 65 Mental/Dis,Agency Payments,Fees - Level 4,520,17/03/2022,2203-00699,0.00,175.00,R,AIT Mitra Limited,No
Http://opendatacommunities.org/id/metropolitan-district-council/leeds,Leeds City Council,31/03/2022,Adults and Health,Services For Adults Under 65 Mental/Dis,Agency Payments,Fees - Level 4,520,17/03/2022,2203-00700,0.00,175.00,R,AIT Mitra Limited,No
Http://opendatacommunities.org/id/metropolitan-district-council/leeds,Leeds City Council,31/03/2022,Adults and Health,Services For Adults Under 65 Mental/Dis,Agency Payments,Fees - Level 4,520,25/03/2022,2203-00701,0.00,175.00,R,AIT Mitra Limited,No
Http://opendatacommunities.org/id/metropolitan-district-council/leeds,Leeds City Council as Accountable Body,31/03/2022,Social Services Pooled Budgets,Jcs For People With Learning Disabilitie,Agency Payments,Residential,580,02/03/2022,2203-00702,0.00,6778.44,R,AITCH care homes,No
Http://opendatacommunities.org/id/metropolitan-district-council/leeds,Leeds City Council as Accountable Body,31/03/2022,Social Services Pooled Budgets,Jcs For People With Learning Disabilitie,Agency Payments,Residential,580,30/03/2022,2203-00703,0.00,6778.44,R,AITCH care homes,No
Http://opendatacommunities.org/id/metropolitan-district-council/leeds,Leeds City Council,31/03/2022,Communities Housing and Environment,Parks and Countryside,Supplies and Services,Operational Materials,205,23/02/2022,2203-00704,0.00,442.70,R,Aitkens Sportsturf Limite,Yes
Http://opendatacommunities.org/id/metropolitan-district-council/leeds,Leeds City Council,31/03/2022,Resources,Leeds Building Services,Supplies and Services,Operational Materials,205,02/03/2022,2203-00705,0.00,713.20,R,AJM FIXINGS & POWER TOOLS LTD,No
Http://opendatacommunities.org/id/metropolitan-district-council/leeds,Leeds City Council,31/03/2022,Resources,Leeds Building Services,Supplies and Services,Operational Furniture And Equipment,203,02/03/2022,2203-00706,0.00,147.20,R,AJM FIXINGS & POWER TOOLS LTD,No
Http://opendatacommunities.org/id/metropolitan-district-council/leeds,Leeds City Council,31/03/2022,Resources,Leeds Building Services,Premises,Cleaning Maintenance & Toiletries,127,02/03/2022,2203-00707,0.00,79.50,R,AJM FIXINGS & POWER TOOLS LTD,No
Http://opendatacommunities.org/id/metropolitan-district-council/leeds,Leeds City Council,31/03/2022,Resources,Leeds Building Services,Premises,Cleaning Maintenance & Toiletries,127,02/03/2022,2203-00708,0.00,977.52,R,AJM FIXINGS & POWER TOOLS LTD,No
Http://opendatacommunities.org/id/metropolitan-district-council/leeds,Leeds City Council,31/03/2022,Resources,Leeds Building Services,Supplies and Services,Operational Furniture And Equipment,203,02/03/2022,2203-00709,0.00,260.00,R,AJM FIXINGS & POWER TOOLS LTD,No
Http://opendatacommunities.org/id/metropolitan-district-council/leeds,Leeds City Council,31/03/2022,Resources,Leeds Building Services,Premises,Cleaning Maintenance & Toiletries,127,02/03/2022,2203-00710,0.00,43.80,R,AJM FIXINGS & POWER TOOLS LTD,No
Http://opendatacommunities.org/id/metropolitan-district-council/leeds,Leeds City Council,31/03/2022,Resources,Leeds Building Services,Supplies and Services,STORES - CENTRAL AND OTHER DEPOTS,005,02/03/2022,2203-00711,0.00,202.96,R,AJM FIXINGS & POWER TOOLS LTD,No
Http://opendatacommunities.org/id/metropolitan-district-council/leeds,Leeds City Council,31/03/2022,Resources,Leeds Building Services,Supplies and Services,Operational Furniture And Equipment,203,02/03/2022,2203-00712,0.00,260.00,R,AJM FIXINGS & POWER TOOLS LTD,No
Http://opendatacommunities.org/id/metropolitan-district-council/leeds,Leeds City Council,31/03/2022,Resources,Leeds Building Services,Premises,Cleaning Maintenance & Toiletries,127,02/03/2022,2203-00713,0.00,245.20,R,AJM FIXINGS & POWER TOOLS LTD,No
Http://opendatacommunities.org/id/metropolitan-district-council/leeds,Leeds City Council,31/03/2022,Resources,Leeds Building Services,Supplies and Services,Operational Materials,205,02/03/2022,2203-00714,0.00,22.11,R,AJM FIXINGS & POWER TOOLS LTD,No
Http://opendatacommunities.org/id/metropolitan-district-council/leeds,Leeds City Council,31/03/2022,Resources,Leeds Building Services,Supplies and Services,Operational Furniture And Equipment,203,02/03/2022,2203-00715,0.00,394.16,R,AJM FIXINGS & POWER TOOLS LTD,No
Http://opendatacommunities.org/id/metropolitan-district-council/leeds,Leeds City Council,31/03/2022,Resources,Leeds Building Services,Supplies and Services,Operational Furniture And Equipment,203,02/03/2022,2203-00716,0.00,125.00,R,AJM FIXINGS & POWER TOOLS LTD,No
Http://opendatacommunities.org/id/metropolitan-district-council/leeds,Leeds City Council,31/03/2022,Resources,Leeds Building Services,Supplies and Services,Operational Furniture And Equipment,203,02/03/2022,2203-00717,0.00,19.99,R,AJM FIXINGS & POWER TOOLS LTD,No
Http://opendatacommunities.org/id/metropolitan-district-council/leeds,Leeds City Council,31/03/2022,Resources,Leeds Building Services,Supplies and Services,Operational Furniture And Equipment,203,02/03/2022,2203-00718,0.00,965.00,R,AJM FIXINGS & POWER TOOLS LTD,No
Http://opendatacommunities.org/id/metropolitan-district-council/leeds,Leeds City Council,31/03/2022,Resources,Leeds Building Services,Supplies and Services,Operational Furniture And Equipment,203,02/03/2022,2203-00719,0.00,354.00,R,AJM FIXINGS & POWER TOOLS LTD,No
Http://opendatacommunities.org/id/metropolitan-district-council/leeds,Leeds City Council,31/03/2022,Resources,Leeds Building Services,Supplies and Services,Operational Furniture And Equipment,203,02/03/2022,2203-00720,0.00,1447.50,R,AJM FIXINGS & POWER TOOLS LTD,No
Http://opendatacommunities.org/id/metropolitan-district-council/leeds,Leeds City Council,31/03/2022,Resources,Leeds Building Services,Supplies and Services,Operational Furniture And Equipment,203,02/03/2022,2203-00721,0.00,260.00,R,AJM FIXINGS & POWER TOOLS LTD,No
Http://opendatacommunities.org/id/metropolitan-district-council/leeds,Leeds City Council,31/03/2022,Resources,Leeds Building Services,Supplies and Services,Operational Furniture And Equipment,203,02/03/2022,2203-00722,0.00,109.90,R,AJM FIXINGS & POWER TOOLS LTD,No
Http://opendatacommunities.org/id/metropolitan-district-council/leeds,Leeds City Council,31/03/2022,Resources,Leeds Building Services,Supplies and Services,Operational Furniture And Equipment,203,02/03/2022,2203-00723,0.00,659.70,R,AJM FIXINGS & POWER TOOLS LTD,No
Http://opendatacommunities.org/id/metropolitan-district-council/leeds,Leeds City Council,31/03/2022,Resources,Leeds Building Services,Supplies and Services,Operational Furniture And Equipment,203,02/03/2022,2203-00724,0.00,299.99,R,AJM FIXINGS & POWER TOOLS LTD,No
Http://opendatacommunities.org/id/metropolitan-district-council/leeds,Leeds City Council,31/03/2022,Resources,Leeds Building Services,Supplies and Services,Operational Furniture And Equipment,203,04/03/2022,2203-00725,0.00,266.00,R,AJM FIXINGS & POWER TOOLS LTD,No
Http://opendatacommunities.org/id/metropolitan-district-council/leeds,Leeds City Council,31/03/2022,Resources,Leeds Building Services,Supplies and Services,Operational Furniture And Equipment,203,04/03/2022,2203-00726,0.00,653.16,R,AJM FIXINGS & POWER TOOLS LTD,No
Http://opendatacommunities.org/id/metropolitan-district-council/leeds,Leeds City Council,31/03/2022,Resources,Leeds Building Services,Premises,Cleaning Maintenance & Toiletries,127,04/03/2022,2203-00727,0.00,95.00,R,AJM FIXINGS & POWER TOOLS LTD,No
Http://opendatacommunities.org/id/metropolitan-district-council/leeds,Leeds City Council,31/03/2022,Resources,Leeds Building Services,Supplies and Services,Operational Furniture And Equipment,203,04/03/2022,2203-00728,0.00,519.00,R,AJM FIXINGS & POWER TOOLS LTD,No
Http://opendatacommunities.org/id/metropolitan-district-council/leeds,Leeds City Council,31/03/2022,Resources,Leeds Building Services,Supplies and Services,Operational Furniture And Equipment,203,04/03/2022,2203-00729,0.00,456.00,R,AJM FIXINGS & POWER TOOLS LTD,No
Http://opendatacommunities.org/id/metropolitan-district-council/leeds,Leeds City Council,31/03/2022,Resources,Leeds Building Services,Premises,Cleaning Maintenance & Toiletries,127,04/03/2022,2203-00730,0.00,15.33,R,AJM FIXINGS & POWER TOOLS LTD,No
Http://opendatacommunities.org/id/metropolitan-district-council/leeds,Leeds City Council,31/03/2022,Resources,Leeds Building Services,Supplies and Services,Operational Furniture And Equipment,203,04/03/2022,2203-00731,0.00,106.20,R,AJM FIXINGS & POWER TOOLS LTD,No
Http://opendatacommunities.org/id/metropolitan-district-council/leeds,Leeds City Council,31/03/2022,Resources,Leeds Building Services,Supplies and Services,Operational Furniture And Equipment,203,04/03/2022,2203-00732,0.00,819.59,R,AJM FIXINGS & POWER TOOLS LTD,No
Http://opendatacommunities.org/id/metropolitan-district-council/leeds,Leeds City Council,31/03/2022,Resources,Leeds Building Services,Supplies and Services,Operational Furniture And Equipment,203,09/03/2022,2203-00733,0.00,105.45,R,AJM FIXINGS & POWER TOOLS LTD,No
Http://opendatacommunities.org/id/metropolitan-district-council/leeds,Leeds City Council,31/03/2022,Resources,Leeds Building Services,Supplies and Services,Operational Furniture And Equipment,203,09/03/2022,2203-00734,0.00,359.16,R,AJM FIXINGS & POWER TOOLS LTD,No
Http://opendatacommunities.org/id/metropolitan-district-council/leeds,Leeds City Council,31/03/2022,Resources,Leeds Building Services,Supplies and Services,Operational Furniture And Equipment,203,09/03/2022,2203-00735,0.00,525.83,R,AJM FIXINGS & POWER TOOLS LTD,No
Http://opendatacommunities.org/id/metropolitan-district-council/leeds,Leeds City Council,31/03/2022,Resources,Leeds Building Services,Supplies and Services,Operational Furniture And Equipment,203,09/03/2022,2203-00736,0.00,750.00,R,AJM FIXINGS & POWER TOOLS LTD,No
Http://opendatacommunities.org/id/metropolitan-district-council/leeds,Leeds City Council,31/03/2022,Resources,Leeds Building Services,Supplies and Services,Operational Furniture And Equipment,203,09/03/2022,2203-00737,0.00,750.00,R,AJM FIXINGS & POWER TOOLS LTD,No
Http://opendatacommunities.org/id/metropolitan-district-council/leeds,Leeds City Council,31/03/2022,Resources,Leeds Building Services,Supplies and Services,Operational Furniture And Equipment,203,14/03/2022,2203-00738,0.00,359.16,R,AJM FIXINGS & POWER TOOLS LTD,No
Http://opendatacommunities.org/id/metropolitan-district-council/leeds,Leeds City Council,31/03/2022,Resources,Leeds Building Services,Supplies and Services,Operational Furniture And Equipment,203,23/03/2022,2203-00739,0.00,518.00,R,AJM FIXINGS & POWER TOOLS LTD,No
Http://opendatacommunities.org/id/metropolitan-district-council/leeds,Leeds City Council,31/03/2022,Resources,Leeds Building Services,Supplies and Services,Operational Furniture And Equipment,203,23/03/2022,2203-00740,0.00,518.00,R,AJM FIXINGS & POWER TOOLS LTD,No
Http://opendatacommunities.org/id/metropolitan-district-council/leeds,Leeds City Council,31/03/2022,Resources,Leeds Building Services,Premises,Cleaning Maintenance & Toiletries,127,23/03/2022,2203-00741,0.00,168.52,R,AJM FIXINGS & POWER TOOLS LTD,No
Http://opendatacommunities.org/id/metropolitan-district-council/leeds,Leeds City Council,31/03/2022,Resources,Leeds Building Services,Supplies and Services,Operational Furniture And Equipment,203,23/03/2022,2203-00742,0.00,139.99,R,AJM FIXINGS & POWER TOOLS LTD,No
Http://opendatacommunities.org/id/metropolitan-district-council/leeds,Leeds City Council,31/03/2022,Resources,Leeds Building Services,Supplies and Services,Operational Materials,205,23/03/2022,2203-00743,0.00,323.70,R,AJM FIXINGS & POWER TOOLS LTD,No
Http://opendatacommunities.org/id/metropolitan-district-council/leeds,Leeds City Council,31/03/2022,Resources,Leeds Building Services,Supplies and Services,Operational Furniture And Equipment,203,23/03/2022,2203-00744,0.00,244.16,R,AJM FIXINGS & POWER TOOLS LTD,No
Http://opendatacommunities.org/id/metropolitan-district-council/leeds,Leeds City Council,31/03/2022,Resources,Leeds Building Services,Supplies and Services,STORES - CENTRAL AND OTHER DEPOTS,005,23/03/2022,2203-00745,0.00,239.90,R,AJM FIXINGS & POWER TOOLS LTD,No
Http://opendatacommunities.org/id/metropolitan-district-council/leeds,Leeds City Council,31/03/2022,Resources,Leeds Building Services,Supplies and Services,Operational Furniture And Equipment,203,23/03/2022,2203-00746,0.00,95.00,R,AJM FIXINGS & POWER TOOLS LTD,No
Http://opendatacommunities.org/id/metropolitan-district-council/leeds,Leeds City Council,31/03/2022,Resources,Leeds Building Services,Supplies and Services,Operational Furniture And Equipment,203,23/03/2022,2203-00747,0.00,99.00,R,AJM FIXINGS & POWER TOOLS LTD,No
Http://opendatacommunities.org/id/metropolitan-district-council/leeds,Leeds City Council,31/03/2022,Resources,Leeds Building Services,Supplies and Services,Operational Furniture And Equipment,203,23/03/2022,2203-00748,0.00,524.83,R,AJM FIXINGS & POWER TOOLS LTD,No
Http://opendatacommunities.org/id/metropolitan-district-council/leeds,Leeds City Council,31/03/2022,Resources,Leeds Building Services,Premises,Cleaning Maintenance & Toiletries,127,23/03/2022,2203-00749,0.00,139.99,R,AJM FIXINGS & POWER TOOLS LTD,No
Http://opendatacommunities.org/id/metropolitan-district-council/leeds,Leeds City Council,31/03/2022,Resources,Leeds Building Services,Supplies and Services,Operational Furniture And Equipment,203,23/03/2022,2203-00750,0.00,94.50,R,AJM FIXINGS & POWER TOOLS LTD,No
Http://opendatacommunities.org/id/metropolitan-district-council/leeds,Leeds City Council,31/03/2022,Resources,Leeds Building Services,Supplies and Services,Operational Furniture And Equipment,203,23/03/2022,2203-00751,0.00,95.00,R,AJM FIXINGS & POWER TOOLS LTD,No
Http://opendatacommunities.org/id/metropolitan-district-council/leeds,Leeds City Council,31/03/2022,Resources,Leeds Building Services,Supplies and Services,Operational Furniture And Equipment,203,23/03/2022,2203-00752,0.00,99.00,R,AJM FIXINGS & POWER TOOLS LTD,No
Http://opendatacommunities.org/id/metropolitan-district-council/leeds,Leeds City Council,31/03/2022,Resources,Leeds Building Services,Supplies and Services,Operational Furniture And Equipment,203,23/03/2022,2203-00753,0.00,110.00,R,AJM FIXINGS & POWER TOOLS LTD,No
Http://opendatacommunities.org/id/metropolitan-district-council/leeds,Leeds City Council,31/03/2022,Resources,Leeds Building Services,Supplies and Services,Operational Furniture And Equipment,203,23/03/2022,2203-00754,0.00,550.79,R,AJM FIXINGS & POWER TOOLS LTD,No
Http://opendatacommunities.org/id/metropolitan-district-council/leeds,Leeds City Council,31/03/2022,Resources,Leeds Building Services,Premises,Cleaning Maintenance & Toiletries,127,23/03/2022,2203-00755,0.00,73.92,R,AJM FIXINGS & POWER TOOLS LTD,No
Http://opendatacommunities.org/id/metropolitan-district-council/leeds,Leeds City Council,31/03/2022,Resources,Leeds Building Services,Supplies and Services,Operational Furniture And Equipment,203,25/03/2022,2203-00756,0.00,463.29,R,AJM FIXINGS & POWER TOOLS LTD,No
Http://opendatacommunities.org/id/metropolitan-district-council/leeds,Leeds City Council,31/03/2022,Communities Housing and Environment,Elections Licensing and Registration,External Income,Admissions Booking Fees & Ticket Sales,933,01/03/2022,2203-00757,0.00,260.00,R,Akmal Bilal,No
Http://opendatacommunities.org/id/metropolitan-district-council/leeds,Leeds City Council,31/03/2022,Resources,Strategic Housing Partnerships,Capital,CONSTRUCTION,3,18/03/2022,2203-00758,0.00,10000.00,C,AKR Construction Ltd,No
Http://opendatacommunities.org/id/metropolitan-district-council/leeds,Leeds City Council,31/03/2022,Resources,Strategic Housing Partnerships,Capital,CONSTRUCTION,3,29/03/2022,2203-00759,0.00,5000.00,C,AKR Construction Ltd,No
Http://opendatacommunities.org/id/metropolitan-district-council/leeds,Leeds City Council,31/03/2022,Communities Housing and Environment,Benefits Welfare and Poverty,Supplies and Services,Grant Related Expenditure,290,14/03/2022,2203-00760,0.00,500.00,R,REDACTED PERSONAL DATA,No
Http://opendatacommunities.org/id/metropolitan-district-council/leeds,Leeds City Council,31/03/2022,Children and Families,Social Care,Agency Payments,Section 17,551,21/02/2022,2203-00761,0.00,166.67,R,Alams Beautiful Blinds,Yes
Http://opendatacommunities.org/id/metropolitan-district-council/leeds,Leeds City Council,31/03/2022,Children and Families,Social Care,Agency Payments,Section 17,551,24/03/2022,2203-00762,0.00,145.83,R,Alams Beautiful Blinds,No
Http://opendatacommunities.org/id/metropolitan-district-council/leeds,Leeds City Council,31/03/2022,City Development,Libraries Arts & Heritage,Supplies and Services,Books & Audio-Visual Materials,206,07/02/2022,2203-00763,0.00,39.99,R,Alamy.Com Limited,Yes
Http://opendatacommunities.org/id/metropolitan-district-council/leeds,Leeds City Council,31/03/2022,Communities Housing and Environment,Car Parking Services,External Income,Penalties Fines & Car Parking Charges,934,28/03/2022,2203-00764,0.00,30.00,R,REDACTED PERSONAL DATA,No
Http://opendatacommunities.org/id/metropolitan-district-council/leeds,Leeds City Council,31/03/2022,Communities Housing and Environment,Car Parking Services,External Income,Penalties Fines & Car Parking Charges,934,28/03/2022,2203-00765,0.00,30.00,R,REDACTED PERSONAL DATA,No
Http://opendatacommunities.org/id/metropolitan-district-council/leeds,Leeds City Council,31/03/2022,Communities Housing and Environment,Benefits Welfare and Poverty,Supplies and Services,Grant Related Expenditure,298,04/03/2022,2203-00766,0.00,500.00,R,REDACTED PERSONAL DATA,No
Http://opendatacommunities.org/id/metropolitan-district-council/leeds,Leeds City Council,31/03/2022,City Development,Libraries Arts & Heritage,External Income,Income from Hire Of Rooms & Equipment,956,21/03/2022,2203-00767,0.00,560.00,R,REDACTED PERSONAL DATA,No
Http://opendatacommunities.org/id/metropolitan-district-council/leeds,Leeds City Council,31/03/2022,Children and Families,Social Care,Agency Payments,Services Rendered By Other Organisations,511,04/03/2022,2203-00768,0.00,535.20,R,REDACTED PERSONAL DATA,No
Http://opendatacommunities.org/id/metropolitan-district-council/leeds,Leeds City Council,31/03/2022,Children and Families,Social Care,Agency Payments,Services Rendered By Other Organisations,511,04/03/2022,2203-00769,0.00,108.00,R,REDACTED PERSONAL DATA,No
Http://opendatacommunities.org/id/metropolitan-district-council/leeds,Leeds City Council,31/03/2022,City Development,Libraries Arts & Heritage,Supplies and Services,Other Hired And Contracted Services,265,18/03/2022,2203-00770,0.00,1000.00,R,Alasdair Beatson,No
Http://opendatacommunities.org/id/metropolitan-district-council/leeds,Leeds City Council,31/03/2022,City Development,Employment & Skills,Agency Payments,Contributions To Partnerships,544,03/03/2022,2203-00771,0.00,716.39,R,Al-Bashir Academy Limited,No
Http://opendatacommunities.org/id/metropolitan-district-council/leeds,Leeds City Council,31/03/2022,Communities Housing and Environment,Benefits Welfare and Poverty,Supplies and Services,Grant Related Expenditure,290,09/03/2022,2203-00772,0.00,500.00,R,REDACTED PERSONAL DATA,No
Http://opendatacommunities.org/id/metropolitan-district-council/leeds,Leeds City Council,31/03/2022,Communities Housing and Environment,Benefits Welfare and Poverty,Supplies and Services,Grant Related Expenditure,298,28/03/2022,2203-00773,0.00,500.00,R,REDACTED PERSONAL DATA,No
Http://opendatacommunities.org/id/metropolitan-district-council/leeds,Leeds City Council,31/03/2022,City Development,Economic Development,Premises,Furniture And Fittings,195,22/02/2022,2203-00774,0.00,3930.95,R,Albion Electric Stores Lt,Yes
Http://opendatacommunities.org/id/metropolitan-district-council/leeds,Leeds City Council,31/03/2022,City Development,Economic Development,Supplies and Services,Grant Related Expenditure,290,15/03/2022,2203-00775,0.00,3418.00,R,ALBION ELECTRIC STORES LTD,No
Http://opendatacommunities.org/id/metropolitan-district-council/leeds,Leeds City Council,31/03/2022,Communities Housing and Environment,Communities,Supplies and Services,Computer Software & Equipment,214,02/03/2022,2203-00776,0.00,500.00,R,Alcium Software Ltd,No
